{"text_format":"1","workbook":"xlsx","n_sheets":24,"sheets":["Identification","CAP EP1","CAP EP2","CAP EP3 AV","CAP EP3 SY","CAP EP3 ST","BAC AV SY ST E2","BAC AV SY ST E31","BAC AV SY ST E32","BAC AV ST E33","BAC SY E33","BAC AV E34","BAC SY E34","BAC ST E34","BAC AG E2","BAC AG E31","BAC AG E32","MC E1 AMT","MC E1 AMP","MC E1 HMT","MC E1 HMP","MC E1 AVI","MC E2","MC E3"],"not_rendered":{"charts":183,"images":1,"macros":1,"external_links":0,"defined_names":23,"comments":0,"pivot_tables":0},"unopened":[],"bounds":{"document_bytes":16777216,"sheet_cells":100000,"rows_first":2000,"rows_last":500,"rows_between":2000,"halvings":0,"cell_chars":16384,"cell_head_chars":4096},"cells_cut":0,"cells_raw":0,"read":"whole","date_system":"1900"}

{"sheet":"Identification","index":0,"n_rows":21,"n_cols":3,"rows_kept":21,"cut":false,"hidden":false,"merged":[[20,2,20,4],[2,0,2,1],[16,0,20,1],[6,2,6,4],[8,2,8,4],[10,2,10,4],[2,2,2,4],[14,0,14,1]]}
[]
[]
["Identifications",null,"Filière Aéronautique"]
["Établissement du candidat"]
["Nom du candidat"]
["Prénom du candidat "]
["CAP :","Sélectionner une option à partir de la liste déroulante",{"$f":"IF(OR(B7=\"Avionique\",B7=\"Systèmes\",B7=\"Structure\"),\"\",\"<=  Sélectionner une option à partir de la liste déroulante\")","v":"<=  Sélectionner une option à partir de la liste déroulante"}]
["Session du CAP"]
["BAC PRO","Sélectionner une option à partir de la liste déroulante",{"$f":"IF(OR(B9=\"Avionique\",B9=\"Systèmes\",B9=\"Structure\",B9=\"Aviation Générale\"),\"\",\"<=  Sélectionner une option à partir de la liste déroulante\")","v":"<=  Sélectionner une option à partir de la liste déroulante"}]
["Session du BAC PRO"]
["Mention Complémentaire","Sélectionner une option à partir de la liste déroulante",{"$f":"IF(OR(B11=\"Avion Moteurs à Turbines AMT\",B11=\"Avion Moteurs à Pistons AMP\",B11=\"Hélicoptère Moteurs à Turbines HMT\",B11=\"Hélicoptère Moteurs à Pistons HMP\",B11=\"Avionique AVI\"),\"\",\"<=  Sélectionner une option à partir de la liste déroulante\")","v":"<=  Sélectionner une option à partir de la liste déroulante"}]
["Session de la MC"]
[]
[]
["Version 0,1"]
[]
["Toutes les cases grisées doivent être renseignées par les professeurs concernés.                       Elles deviennent blanches une fois remplies."]
[]
[]
[]
[null,null,"       Ministère de l'éducation nationale"]

{"sheet":"CAP EP1","index":1,"n_rows":40,"n_cols":18,"rows_kept":40,"cut":false,"hidden":true,"merged":[[27,9,30,9],[24,8,25,8],[24,11,25,11],[24,2,25,2],[26,5,26,8],[27,5,27,6],[28,5,28,6],[27,7,27,8],[28,7,28,8],[24,4,25,4],[24,5,25,5],[24,6,25,6],[24,7,25,7],[24,17,25,17],[24,18,25,18],[24,10,25,10],[24,12,25,12],[24,13,25,13],[24,15,25,15],[24,16,25,16],[0,0,0,7],[1,0,1,1],[1,2,1,7],[2,0,2,1],[2,2,2,7],[3,0,3,1],[3,2,3,7],[4,0,4,1],[4,2,4,7],[5,0,5,1],[5,2,5,7],[6,0,6,1],[6,2,6,7],[7,0,7,1],[7,2,7,7],[8,0,8,1],[8,2,8,7],[9,0,9,1],[9,2,9,7],[10,0,10,7],[11,0,11,7],[12,0,18,7],[19,9,19,10],[20,0,20,1],[21,0,21,7],[22,0,22,1],[23,0,23,1],[38,0,38,1],[39,0,39,1],[39,4,39,7],[33,0,33,7],[35,0,35,1],[35,4,35,7],[36,0,36,1],[36,4,36,7],[37,0,37,1],[32,0,32,1],[32,2,32,7],[29,0,29,8],[24,0,24,1],[25,0,25,1],[26,0,26,1],[24,3,25,3]]}
["Identifications"]
["Diplôme :",null,"Certificat d’aptitude professionnelle « Aéronautique»"]
["Option :  ",null,{"$f":"CONCATENATE(Identification!B7)","v":"Sélectionner une option à partir de la liste déroulante"}]
["Epreuve :",null,"EP1 : Utilisation de la documentation technique "]
["Établissement :",null,{"$f":"CONCATENATE(Identification!B4)","v":""}]
["Session : ",null,{"$f":"CONCATENATE(Identification!B8)","v":""}]
["Nom du candidat :",null,{"$f":"CONCATENATE(Identification!B5)","v":""}]
["Prénom du candidat :",null,{"$f":"CONCATENATE(Identification!B6)","v":""}]
["Date de l'évaluation :"]
["Lieu de l'évaluation (entreprise ou centre de formation) :"]
[]
["Description sommaire du travail demandé (le sujet complet doit être joint à cette fiche) :"]
[]
[]
[]
[]
[]
[]
[]
[]
["Compétences évaluées",null,"Indicateurs de performance                              évaluation","non",0,0.33333333333333331,0.66666666666666663,"3/3",null,null,"Poids de la compétence","Notes","Éval","Notes"]
["C01 - Utiliser des documents techniques relatifs à la réalisation de son opération",null,null,null,null,null,null,null,null,null,1,{"$f":"(SUM(L23:L26))","v":0},{"$f":"SUM(M23:M26)","v":9},{"$f":"SUM(N23:N29)","v":0},null,null,{"$f":"SUM(Q23:Q42)","v":0},{"$f":"IF(Q22=3,1,0)","v":0}]
["-  Contrôler l’applicabilité des documents.",null,"-  Vérification juste de l’applicabilité des documents.",null,null,null,null,null,{"$f":"IF(P23>1,\"◄\",(IF(P23<1,\"◄\",\"\")))","v":"◄"},null,1,{"$f":"SUM(N23)*2","v":0},{"$f":"IF(D23<>\"\",0,K23)","v":1},{"$f":"(IF(F23<>\"\",1/3,0)+IF(G23<>\"\",2/3,0)+IF(H23<>\"\",1,0))*K$22*10*M23/SUM(M$23:M$26)","v":0},null,{"$f":"COUNTA(D23:H23)","v":0},{"$f":"COUNTBLANK(I23)","v":0}]
["-  Repérer les informations techniques, organisationnelles et règlementaires nécessaires à son opération.",null,"-  Exhaustivité du repérage des informations nécessaires à l’opération.",null,null,null,null,null,{"$f":"IF(P24>1,\"◄\",(IF(P24<1,\"◄\",\"\")))","v":"◄"},null,3,{"$f":"SUM(N24)*2","v":0},{"$f":"IF(D24<>\"\",0,K24)","v":3},{"$f":"(IF(F24<>\"\",1/3,0)+IF(G24<>\"\",2/3,0)+IF(H24<>\"\",1,0))*K$22*10*M24/SUM(M$23:M$26)","v":0},null,{"$f":"COUNTA(D24:H24)","v":0},{"$f":"COUNTBLANK(I24)","v":0}]
["-  Repérer les informations liées à la prévention des risques. ",null,"-  Exactitude du décodage des informations.",null,null,null,null,null,{"$f":"IF(P25>1,\"◄\",(IF(P25<1,\"◄\",\"\")))","v":"◄"},null,5,{"$f":"SUM(N25)*2","v":0},{"$f":"IF(D25<>\"\",0,K25)","v":5},{"$f":"(IF(F25<>\"\",1/3,0)+IF(G25<>\"\",2/3,0)+IF(H25<>\"\",1,0))*K$22*10*M25/SUM(M$23:M$26)","v":0},null,{"$f":"COUNTA(D25:H26)","v":0},{"$f":"COUNTBLANK(I25)","v":0}]
["-  Décoder ces informations, y compris celles rédigées en langue anglaise."]
[null,null,null,"Taux d'indicateurs pour C01",null,{"$f":"M22/SUM(K23:K26)","v":1}]
[null,null,null,"Note brute obtenue par calcul automatique (Attention si le taux de couverture des compétences est inférieur à 50%, la note n'est pas recevable) :",null,{"$f":"IF(OR(R22=0,F27<0.5),\"!\",(L22))","v":"!"},null," /20"]
[null,null,null,"Note sur 20 proposée au jury* :",null,null,null,"/20"]
["ATTENTION, si le symbole ◄ apparait dans cette colonne c'est qu'il y a plus d'une valeur donnée à l'indicateur, il faut alors choisir laquelle retenir, ou alors que l'indicateur est coché \"non évalué\""]
["* La note proposée, arrondie au demi point, est décidée par les évaluateurs à partir de la note brute qui peut être modulée de + 0 à + 1 point en fonction de la réactivité du candidat ou de tout autre attitude professionnelle positive observée."]
[]
["Appréciation globale",null,{"$f":"(IF(Q28>0,\"Attention erreur de saisie ! Voir ci-dessus\",\"\"))","v":""}]
[]
[]
["Noms des Correcteurs",null,"Signatures",null,"Date"]
[]
[]
[]
[null,null,null,null,{"$f":"TODAY()","v":"2015-01-07"}]

{"sheet":"CAP EP2","index":2,"n_rows":50,"n_cols":18,"rows_kept":50,"cut":false,"hidden":true,"merged":[[38,5,38,6],[37,7,37,8],[38,7,38,8],[39,0,39,8],[40,0,40,8],[0,0,0,7],[1,0,1,1],[1,2,1,7],[2,0,2,1],[2,2,2,7],[3,0,3,1],[3,2,3,7],[4,0,4,1],[4,2,4,7],[5,0,5,1],[5,2,5,7],[6,0,6,1],[6,2,6,7],[7,0,7,1],[7,2,7,7],[8,0,8,1],[8,2,8,7],[9,0,9,1],[9,2,9,7],[10,0,10,7],[11,0,11,7],[12,0,18,7],[19,9,19,10],[20,0,20,1],[21,0,21,7],[28,0,28,7],[29,0,29,1],[35,5,35,8],[36,5,36,8],[37,5,37,6],[30,0,30,1],[22,0,22,1],[23,0,23,1],[24,0,24,1],[25,0,25,1],[26,0,26,1],[27,0,27,1],[31,11,32,11],[31,0,32,1],[49,0,49,1],[49,4,49,7],[43,0,43,7],[45,0,45,1],[45,4,45,7],[46,0,46,1],[47,0,47,1],[48,0,48,1],[33,0,33,1],[36,9,39,9],[46,4,46,7],[34,0,34,1],[42,0,42,1],[42,2,42,7]]}
["Identifications"]
["Diplôme :",null,"Certificat d’aptitude professionnelle « Aéronautique»"]
["Option :  ",null,{"$f":"CONCATENATE(Identification!B7)","v":"Sélectionner une option à partir de la liste déroulante"}]
["Epreuve :",null,"EP2 : Préparation et réalisation d'une opération de montage ou démontage"]
["Établissement :",null,{"$f":"CONCATENATE(Identification!B4)","v":""}]
["Session : ",null,{"$f":"CONCATENATE(Identification!B8)","v":""}]
["Nom du candidat :",null,{"$f":"CONCATENATE(Identification!B5)","v":""}]
["Prénom du candidat :",null,{"$f":"CONCATENATE(Identification!B6)","v":""}]
["Date de l'évaluation :"]
["Lieu de l'évaluation (entreprise ou centre de formation) :"]
[]
["Description sommaire du travail demandé (le sujet complet doit être joint à cette fiche) :"]
[]
[]
[]
[]
[]
[]
[]
[]
["Compétences évaluées",null,"Indicateurs de performance                              évaluation","non",0,0.33333333333333331,0.66666666666666663,"3/3",null,null,"Poids de la compétence","Notes","Éval","Notes"]
["C02 - Préparer son opération",null,null,null,null,null,null,null,null,null,0.4,{"$f":"(SUM(L23:L28))","v":0},{"$f":"SUM(M23:M28)","v":9},{"$f":"SUM(N23:N28)","v":0},null,null,{"$f":"SUM(Q23:Q43)","v":0},{"$f":"IF(Q22=12,1,0)","v":0}]
["-  Préparer son poste de travail (moyens d’accès et mise en sécurité).",null,"-  Organisation pertinente et sécurisation conforme du poste de travail.",null,null,null,null,null,{"$f":"IF(P23>1,\"◄\",(IF(P23<1,\"◄\",\"\")))","v":"◄"},null,2,{"$f":"SUM(N23)","v":0},{"$f":"IF(D23<>\"\",0,K23)","v":2},{"$f":"(IF(F23<>\"\",1/3,0)+IF(G23<>\"\",2/3,0)+IF(H23<>\"\",1,0))*K$22*20*M23/SUM(M$23:M$28)","v":0},null,{"$f":"COUNTA(D23:H23)","v":0},{"$f":"COUNTBLANK(I23)","v":0}]
["-  Vérifier la présence et l’état de l’ensemble, sous-ensemble, élément, des composants et consommables nécessaires à l’opération.",null,"-  Vérification effective de la présence et de l’état de l’ensemble, sous-ensemble, élément, des composants et consommables nécessaires à l’opération.",null,null,null,null,null,"◄",null,1,0,1,0,null,0,0]
["-  Rassembler les moyens nécessaires à l’opération.",null,"-  Présence effective de tous les moyens nécessaires à l’opération.",null,null,null,null,null,"◄",null,1,0,1,0,null,0,0]
["-  Vérifier la conformité des moyens.",null,"-  Vérification correcte de la conformité des moyens.",null,null,null,null,null,"◄",null,1,0,1,0,null,0,0]
["-  Contrôler la validité de l’ensemble, sous-ensemble, élément, des composants et consommables nécessaires à l’opération.",null,"-  Identification correcte de la validité de l’ensemble, sous-ensemble, élément, des composants et consommables nécessaires à l’opération.",null,null,null,null,null,"◄",null,2,0,2,0,null,0,0]
["-  Préparer l’ensemble, sous-ensemble, élément et les outillages dans l’environnement de travail.",null,"-  Préparation conforme de l’ensemble, sous-ensemble, élément et les outillages dans l’environnement de travail.",null,null,null,null,null,"◄",null,2,0,2,0,null,0,0]
["C03 - Poser, déposer, assembler et désassembler des sous ensembles d’aéronefs",null,null,null,null,null,null,null,null,null,0.6,{"$f":"(SUM(L30:L35))","v":0},{"$f":"SUM(M30:M35)","v":10},{"$f":"SUM(N30:N35)","v":0}]
["-  Vérifier la mise hors énergies des parties d’aéronef.",null,"-  Vérification effective de la mise hors énergie.",null,null,null,null,null,{"$f":"IF(P30>1,\"◄\",(IF(P30<1,\"◄\",\"\")))","v":"◄"},null,2,{"$f":"SUM(N30)","v":0},{"$f":"IF(D30<>\"\",0,K30)","v":2},{"$f":"(IF(F30<>\"\",1/3,0)+IF(G30<>\"\",2/3,0)+IF(H30<>\"\",1,0))*K$29*20*M30/SUM(M$30:M$35)","v":0},null,{"$f":"COUNTA(D30:H30)","v":0},{"$f":"COUNTBLANK(I30)","v":0}]
["-  Installer des dispositifs de levage, de manutention et de maintien.",null,"-  Respect des modes opératoires et des procédures.",null,null,null,null,null,"◄",null,3,{"$f":"SUM(N31)","v":0},3,0,null,0,0]
["- Réaliser tous types de fixation aéronautique et leur maintien en position, d’étanchéité, d’application de produits d’interposition (mastics et colles) et de recouvrement (peintures, vernis),   de métallisation, de connexion, de conditionnement, de repérage de composants.",null,"-  Exigences de qualité respectées.",null,null,null,null,null,"◄",null,2,{"$f":"SUM(N32:N33)","v":0},2,0,null,0,0]
[null,null,"-  Outils et outillages fonctionnels, nettoyés et rangés.",null,null,null,null,null,"◄",null,1,null,1,0,null,0,0]
["-  Remettre en état du poste de travail.",null,"-  Poste de travail propre et exempt de corps étrangers..",null,null,null,null,null,"◄",null,1,{"$f":"SUM(N34)","v":0},1,0,null,0,0]
[" - Respecter les règles d’hygiène, de sécurité et de protection des biens, des personnes et de l’environnement",null,"-  Respect des règles d’hygiène, de sécurité et de protection des biens, des personnes et de l’environnement",null,null,null,null,null,"◄",null,1,{"$f":"SUM(N35)","v":0},1,0,null,0,0]
[null,null,"Taux d'indicateurs pour C02",null,null,{"$f":"M22/SUM(K23:K28)","v":1}]
[null,null,"Taux d'indicateurs pour C03",null,null,{"$f":"M29/SUM(K30:K35)","v":1}]
[null,null,"Note brute obtenue par calcul automatique (Attention si le taux de couverture des compétences est inférieur à 75%, la note n'est pas recevable) :",null,null,{"$f":"IF(OR(R22=0,F36<0.75,F37<0.75),\"!\",(L29+L22))","v":"!"},null," /20"]
[null,null,"Note sur 20 proposée au jury* :",null,null,null,null,"/20"]
["ATTENTION, si le symbole ◄ apparait dans cette colonne c'est qu'il y a plus d'une valeur donnée à l'indicateur, il faut alors choisir laquelle retenir, ou alors que l'indicateur est coché \"non évalué\""]
["* La note proposée, arrondie au demi point, est décidée par les évaluateurs à partir de la note brute qui peut être modulée de + 0 à + 1 point en fonction de la réactivité du candidat ou de tout autre attitude professionnelle positive observée."]
[]
["Appréciation globale",null,{"$f":"(IF(Q37>0,\"Attention erreur de saisie ! Voir ci-dessus\",\"\"))","v":""}]
[]
[]
["Noms des Correcteurs",null,"Signatures",null,"Date"]
[]
[]
[]
[null,null,null,null,{"$f":"TODAY()","v":"2015-01-07"}]

{"sheet":"CAP EP3 AV","index":3,"n_rows":83,"n_cols":19,"rows_kept":83,"cut":false,"hidden":true,"merged":[[49,6,49,9],[66,6,66,9],[67,6,67,9],[32,5,34,5],[32,6,34,6],[32,8,34,8],[35,6,37,6],[35,1,35,2],[35,4,37,4],[40,1,40,2],[38,1,39,2],[32,3,34,3],[35,3,37,3],[32,7,34,7],[35,5,37,5],[35,7,37,7],[0,1,0,8],[1,1,1,2],[1,3,1,8],[2,1,2,2],[2,3,2,8],[3,1,3,2],[3,3,3,8],[7,3,7,8],[8,1,8,2],[8,3,8,8],[5,1,5,2],[4,1,4,2],[4,3,4,8],[5,3,5,8],[6,1,6,2],[6,3,6,8],[7,1,7,2],[9,1,9,2],[9,3,9,8],[10,1,10,8],[11,1,11,8],[12,1,18,8],[36,1,36,2],[44,1,44,2],[19,10,19,11],[20,1,20,2],[21,1,21,8],[32,1,32,2],[31,1,31,8],[22,1,22,2],[23,1,23,2],[24,1,24,2],[25,1,25,2],[25,5,26,5],[25,6,26,6],[26,1,26,2],[22,4,24,4],[22,5,24,5],[22,6,24,6],[22,7,24,7],[22,8,24,8],[73,1,73,9],[70,6,70,7],[70,8,70,9],[65,1,65,2],[59,1,59,8],[56,1,57,2],[60,1,62,2],[25,4,26,4],[25,7,26,7],[25,3,26,3],[30,1,30,2],[32,4,34,4],[45,1,45,2],[46,1,46,2],[47,1,47,2],[48,1,48,2],[33,1,33,2],[71,6,71,7],[71,8,71,9],[72,1,72,9],[37,1,37,2],[41,1,41,8],[42,1,42,2],[34,1,34,2],[80,1,80,2],[81,1,81,2],[82,1,82,2],[82,5,82,8],[74,1,74,8],[75,1,75,2],[75,3,75,8],[76,1,76,8],[78,1,78,2],[79,1,79,2],[79,5,79,8],[78,5,78,8],[25,19,26,19],[22,16,24,16],[22,17,24,17],[25,12,26,12],[25,8,26,8],[53,0,65,0],[21,0,48,0],[43,1,43,2],[27,1,29,2],[22,3,24,3],[22,9,24,9],[22,11,24,11],[22,12,24,12],[22,13,24,13],[22,14,24,14],[22,19,24,19],[25,9,26,9],[32,9,34,9],[35,9,37,9],[25,11,26,11],[25,14,26,14],[32,12,34,12],[35,12,37,12],[35,11,37,11],[35,13,37,13],[32,13,34,13],[32,14,34,14],[25,16,26,16],[25,17,26,17],[25,13,26,13],[68,6,68,7],[68,8,68,9],[32,16,34,16],[32,17,34,17],[35,14,37,14],[35,16,37,16],[35,17,37,17],[32,11,34,11],[67,10,71,10],[35,8,37,8],[50,6,50,7],[50,8,50,9],[53,1,53,8],[52,1,52,2],[63,1,64,2],[54,1,54,2],[55,1,55,2],[58,1,58,2]]}
[null,"Identifications"]
[null,"Diplôme :",null,"Certificat d’aptitude professionnelle « Aéronautique»"]
[null,"Option :  ",null,"Avionique"]
[null,"Epreuve :",null,"EP3 : Réalisation et contrôle d'une opération de production"]
[null,"Établissement :",null,{"$f":"CONCATENATE(Identification!B4)","v":""}]
[null,"Session : ",null,{"$f":"CONCATENATE(Identification!B8)","v":""}]
[null,"Nom du candidat :",null,{"$f":"CONCATENATE(Identification!B5)","v":""}]
[null,"Prénom du candidat :",null,{"$f":"CONCATENATE(Identification!B6)","v":""}]
[null,"Date de l'évaluation :"]
[null,"Lieu de l'évaluation (entreprise ou centre de formation) :"]
[]
[null,"Description sommaire du travail demandé (le sujet complet doit être joint à cette fiche) :"]
[]
[]
[]
[]
[]
[]
[]
[]
[null,"Compétences évaluées",null,"Indicateurs de performance                     évaluation","non",0,0.33333333333333331,0.66666666666666663,"3/3",null,null,"Poids de la compétence","Notes","Éval","Notes"]
["Situation d'évaluation en centre de formation (Coef 6)","C04Av - Fabriquer des éléments.",null,null,null,null,null,null,null,null,null,0.3,{"$f":"(SUM(M23:M49))*6","v":0},{"$f":"SUM(N23:N49)","v":32},{"$f":"SUM(O23:O49)","v":0},null,null,{"$f":"SUM(R23:R49)","v":0},{"$f":"IF(R22=18,1,0)","v":0}]
[null,"-  Poser et régler des outillages.",null,"-  Outils et outillages, fonctionnels, nettoyés et rangés.",null,null,null,null,null,{"$f":"IF(Q23>1,\"◄\",(IF(Q23<1,\"◄\",\"\")))","v":"◄"},null,2,{"$f":"SUM(O23)","v":0},{"$f":"IF(E23<>\"\",0,L23)","v":2},{"$f":"(IF(G23<>\"\",1/3,0)+IF(H23<>\"\",2/3,0)+IF(I23<>\"\",1,0))*(L$22+L$32+L$42)*10*N23/SUM(N$23:N$49)","v":0},null,{"$f":"COUNTA(E23:I25)","v":0},{"$f":"COUNTBLANK(J23)","v":0}]
[null,"-  Mettre en œuvre les outillages. "]
[null,"-  Régler des outils."]
[null,"-  Fabriquer des harnais constitués de câbles métalliques ou optiques.",null,"-  Fabrication conforme aux exigences de la gamme (procédure) de fabrication.",null,null,null,null,null,"◄",null,5,{"$f":"SUM(O26:O27)","v":0},5,{"$f":"(IF(G26<>\"\",1/3,0)+IF(H26<>\"\",2/3,0)+IF(I26<>\"\",1,0))*(L$22+L$32+L$42)*10*N26/SUM(N$23:N$49)","v":0},null,{"$f":"COUNTA(E26:I27)","v":0},0]
[null,"-  Fabriquer et adapter des cartes électroniques aéronautiques.          - Conditionner les éléments pour livraison."]
[null,"-  Autocontrôler sa fabrication.",null,"-  Zone de travail exempte de tout corps étrangers.",null,null,null,null,null,"◄",null,1,{"$f":"SUM(O28)","v":0},1,{"$f":"(IF(G28<>\"\",1/3,0)+IF(H28<>\"\",2/3,0)+IF(I28<>\"\",1,0))*(L$22+L$32+L$42)*10*N28/SUM(N$23:N$49)","v":0},null,{"$f":"COUNTA(E28:I28)","v":0},0]
[null,null,null,"-  Dossier de production remis au bon service.",null,null,null,null,null,"◄",null,1,{"$f":"SUM(O29)","v":0},1,{"$f":"(IF(G29<>\"\",1/3,0)+IF(H29<>\"\",2/3,0)+IF(I29<>\"\",1,0))*(L$22+L$32+L$42)*10*N29/SUM(N$23:N$49)","v":0},null,{"$f":"COUNTA(E29:I29)","v":0},0]
[null,null,null,"-  Exhaustivité des points contrôlés en fin de fabrication.",null,null,null,null,null,{"$f":"IF(Q30>1,\"◄\",(IF(Q30<1,\"◄\",\"\")))","v":"◄"},null,1,{"$f":"SUM(O30)","v":0},{"$f":"IF(E30<>\"\",0,L30)","v":1},0,null,{"$f":"COUNTA(E30:I30)","v":0},{"$f":"COUNTBLANK(J30)","v":0}]
[null,"-  Respecter les règles d’hygiène, de sécurité et de protection des biens, des personnes et de l’environnement.",null,"-  Respect des règles d’hygiène, de sécurité et de protection des biens, des personnes et de l’environnement.",null,null,null,null,null,{"$f":"IF(Q31>1,\"◄\",(IF(Q31<1,\"◄\",\"\")))","v":"◄"},null,1,{"$f":"SUM(O31)","v":0},{"$f":"IF(E31<>\"\",0,L31)","v":1},0,null,{"$f":"COUNTA(E31:I31)","v":0},{"$f":"COUNTBLANK(J31)","v":0}]
[null,"C05Av - Réparer des éléments.",null,null,null,null,null,null,null,null,null,0.3]
[null,"-  Poser et régler des outillages.",null,"-  Outils et outillages fonctionnels, nettoyés et rangés.",null,null,null,null,null,{"$f":"IF(Q33>1,\"◄\",(IF(Q33<1,\"◄\",\"\")))","v":"◄"},null,2,{"$f":"SUM(O33)","v":0},{"$f":"IF(E33<>\"\",0,L33)","v":2},{"$f":"(IF(G33<>\"\",1/3,0)+IF(H33<>\"\",2/3,0)+IF(I33<>\"\",1,0))*(L$22+L$32+L$42)*10*N33/SUM(N$23:N$49)","v":0},null,{"$f":"COUNTA(E33:I35)","v":0},{"$f":"COUNTBLANK(J33)","v":0}]
[null,"-  Mettre en œuvre les outillages."]
[null,"-  Régler des outils."]
[null,"-  Réparer des harnais constitués de câbles métalliques ou optiques.",null,"-  Réalisation de la réparation conformément aux procédures et aux précautions d’usage.",null,null,null,null,null,"◄",null,5,{"$f":"SUM(O36)","v":0},{"$f":"IF(E36<>\"\",0,L36)","v":5},{"$f":"(IF(G36<>\"\",1/3,0)+IF(H36<>\"\",2/3,0)+IF(I36<>\"\",1,0))*(L$22+L$32+L$42)*10*N36/SUM(N$23:N$49)","v":0},null,{"$f":"COUNTA(E36:I38)","v":0},0]
[null,"-  Réparer des cartes électroniques aéronautiques."]
[null,"-  Conditionner les éléments pour livraison."]
[null,"-  Autocontrôler son intervention.",null,"-  Zone de travail exempte de tout corps étrangers.",null,null,null,null,null,"◄",null,1,{"$f":"SUM(O39)","v":0},{"$f":"IF(E39<>\"\",0,L39)","v":1},{"$f":"(IF(G39<>\"\",1/3,0)+IF(H39<>\"\",2/3,0)+IF(I39<>\"\",1,0))*(L$22+L$32+L$42)*10*N39/SUM(N$23:N$49)","v":0},null,{"$f":"COUNTA(E39:I39)","v":0},0]
[null,null,null,"-  Exhaustivité des points contrôlés en fin de réparation.",null,null,null,null,null,"◄",null,1,{"$f":"SUM(O40)","v":0},{"$f":"IF(E40<>\"\",0,L40)","v":1},{"$f":"(IF(G40<>\"\",1/3,0)+IF(H40<>\"\",2/3,0)+IF(I40<>\"\",1,0))*(L$22+L$32+L$42)*10*N40/SUM(N$23:N$49)","v":0},null,{"$f":"COUNTA(E40:I40)","v":0},0]
[null,"-  Respecter les règles d’hygiène, de sécurité et de protection des biens, des personnes et de l’environnement.",null,"-  Respect des règles d’hygiène, de sécurité et de protection des biens, des personnes et de l’environnement.",null,null,null,null,null,{"$f":"IF(Q41>1,\"◄\",(IF(Q41<1,\"◄\",\"\")))","v":"◄"},null,1,{"$f":"SUM(O41)","v":0},{"$f":"IF(E41<>\"\",0,L41)","v":1},0,null,{"$f":"COUNTA(E41:I41)","v":0},{"$f":"COUNTBLANK(J41)","v":0}]
[null,"C06 - Effectuer des contrôles de son opération.",null,null,null,null,null,null,null,null,null,0.4]
[null,"-  Appliquer les éventuelles procédures relatives à la protection électrostatique.",null,"-  Effectivité de la protection électrostatique.",null,null,null,null,null,{"$f":"IF(Q43>1,\"◄\",(IF(Q43<1,\"◄\",\"\")))","v":"◄"},null,2,{"$f":"SUM(O43)","v":0},{"$f":"IF(E43<>\"\",0,L43)","v":2},{"$f":"(IF(G43<>\"\",1/3,0)+IF(H43<>\"\",2/3,0)+IF(I43<>\"\",1,0))*(L$22+L$32+L$42)*10*N43/SUM(N$23:N$49)","v":0},null,{"$f":"COUNTA(E43:I43)","v":0},{"$f":"COUNTBLANK(J43)","v":0}]
[null,"-  Vérifier la validité des moyens de contrôle.",null,"-  Vérification effective de la validité des moyens de contrôle.",null,null,null,null,null,"◄",null,1,0,{"$f":"IF(E44<>\"\",0,L44)","v":1},{"$f":"(IF(G44<>\"\",1/3,0)+IF(H44<>\"\",2/3,0)+IF(I44<>\"\",1,0))*(L$22+L$32+L$42)*10*N44/SUM(N$23:N$49)","v":0},null,{"$f":"COUNTA(E44:I44)","v":0},{"$f":"COUNTBLANK(J44)","v":0}]
[null,"-  Initialiser et mettre en œuvre des appareils ou des bancs de mesure.",null,"-  Respect des règles d’initialisation et de mise en œuvre des appareils ou des bancs de mesure.",null,null,null,null,null,"◄",null,1,0,1,0,null,0,0]
[null,"-  Préparer l’élément à contrôler.",null,"-  Conformité de la préparation de l’élément à contrôler.",null,null,null,null,null,"◄",null,1,0,1,0,null,0,0]
[null,"-  Appliquer la procédure de contrôle.",null,"-  Respect de la procédure de contrôle.",null,null,null,null,null,"◄",null,2,0,2,0,null,0,0]
[null,"-  Identifier et communiquer les non-conformités.",null,"-  Exhaustivité de l’identification des non-conformités.",null,null,null,null,null,"◄",null,3,0,3,0,null,0,0]
[null,"-  Respecter les règles d’hygiène, de sécurité et de protection des biens, des personnes et de l’environnement.",null,"-  Respect des règles d’hygiène, de sécurité et de protection des biens, des personnes et de l’environnement.",null,null,null,null,null,"◄",null,1,0,1,0,null,0,0]
[null,null,null,null,"Taux d'indicateurs pour C04 ou C05 et C06",null,{"$f":"N22/SUM(L23:L31,L33:L41,L43:L49)","v":1}]
[null,null,null,null,"Note brute (Attention si le taux de couverture des compétences est inférieur à 50%, la note n'est pas recevable) :",null,{"$f":"IF(OR(S22=0,G50<0.5),\"!\",(M22))","v":"!"},null,"/60"]
[]
[null,"Compétences évaluées",null,"Indicateurs de performance                     évaluation","non",0,0.33333333333333331,0.66666666666666663,"3/3",null,null,"Poids de la compétence","Notes"]
["Situation d'évaluation au cours de la période de formation en milieu professionnel (Coef 2)","C07 - Appliquer la démarche qualité de l’entreprise.",null,null,null,null,null,null,null,null,null,0.5,{"$f":"(SUM(M55:M59))*2","v":0},{"$f":"SUM(N55:N59)","v":10},{"$f":"SUM(O55:O59)","v":0},null,null,{"$f":"SUM(R55:R66)","v":0},{"$f":"IF(R54=11,1,0)","v":0}]
[null,"-  Limiter son intervention à son propre champ de qualification.",null,"-  Respect de la limitation de son intervention à son propre champ de qualification et à ses habilitations.",null,null,null,null,null,{"$f":"IF(Q55>1,\"◄\",(IF(Q55<1,\"◄\",\"\")))","v":"◄"},null,2,{"$f":"SUM(O55)","v":0},{"$f":"IF(E55<>\"\",0,L55)","v":2},{"$f":"(IF(G55<>\"\",1/3,0)+IF(H55<>\"\",2/3,0)+IF(I55<>\"\",1,0))*L$54*10*N55/SUM(N$55:N$59)","v":0},null,{"$f":"COUNTA(E55:I55)","v":0},{"$f":"COUNTBLANK(J55)","v":0}]
[null,"-  Respecter les procédures et les consignes",null,"-  Rigueur dans l’application des procédures et des consignes.",null,null,null,null,null,{"$f":"IF(Q56>1,\"◄\",(IF(Q56<1,\"◄\",\"\")))","v":"◄"},null,3,{"$f":"SUM(O56)","v":0},{"$f":"IF(E56<>\"\",0,L56)","v":3},{"$f":"(IF(G56<>\"\",1/3,0)+IF(H56<>\"\",2/3,0)+IF(I56<>\"\",1,0))*L$54*10*N56/SUM(N$55:N$59)","v":0},null,{"$f":"COUNTA(E56:I56)","v":0},{"$f":"COUNTBLANK(J56)","v":0}]
[null,"-  Contribuer à la démarche qualité de l’entreprise et mettre en œuvre les règles liées aux facteurs humains et à la prévention des risques.",null,"-  Repérage dans son activité des écarts significatifs de non qualité.",null,null,null,null,null,{"$f":"IF(Q57>1,\"◄\",(IF(Q57<1,\"◄\",\"\")))","v":"◄"},null,3,{"$f":"SUM(O57)","v":0},{"$f":"IF(E57<>\"\",0,L57)","v":3},{"$f":"(IF(G57<>\"\",1/3,0)+IF(H57<>\"\",2/3,0)+IF(I57<>\"\",1,0))*L$54*10*N57/SUM(N$55:N$59)","v":0},null,{"$f":"COUNTA(E57:I57)","v":0},{"$f":"COUNTBLANK(J57)","v":0}]
[null,null,null,"-  Identification crédible des marges de progrès.",null,null,null,null,null,{"$f":"IF(Q58>1,\"◄\",(IF(Q58<1,\"◄\",\"\")))","v":"◄"},null,1,{"$f":"SUM(O58)","v":0},{"$f":"IF(E58<>\"\",0,L58)","v":1},{"$f":"(IF(G58<>\"\",1/3,0)+IF(H58<>\"\",2/3,0)+IF(I58<>\"\",1,0))*L$54*10*N58/SUM(N$55:N$59)","v":0},null,{"$f":"COUNTA(E58:I58)","v":0},{"$f":"COUNTBLANK(J58)","v":0}]
[null,"-  Participer à l’amélioration continue de son activité.",null,"-  Crédibilité des propositions d’amélioration.",null,null,null,null,null,{"$f":"IF(Q59>1,\"◄\",(IF(Q59<1,\"◄\",\"\")))","v":"◄"},null,1,{"$f":"SUM(O59)","v":0},{"$f":"IF(E59<>\"\",0,L59)","v":1},{"$f":"(IF(G59<>\"\",1/3,0)+IF(H59<>\"\",2/3,0)+IF(I59<>\"\",1,0))*L$54*10*N59/SUM(N$55:N$59)","v":0},null,{"$f":"COUNTA(E59:I59)","v":0},{"$f":"COUNTBLANK(J59)","v":0}]
[null,"C08 - Communiquer des informations dans un contexte aéronautique.",null,null,null,null,null,null,null,null,null,0.5,{"$f":"(SUM(M61:M66))*2","v":0},{"$f":"SUM(N61:N66)","v":9},{"$f":"SUM(O61:O66)","v":0}]
[null," - Décoder des informations écrites ou orales, y compris celles exprimées en anglais technique et codifiées (sigles, gestes …).",null,"-  Exactitude du décodage.",null,null,null,null,null,{"$f":"IF(Q61>1,\"◄\",(IF(Q61<1,\"◄\",\"\")))","v":"◄"},null,1,{"$f":"SUM(O61)","v":0},{"$f":"IF(E61<>\"\",0,L61)","v":1},{"$f":"(IF(G61<>\"\",1/3,0)+IF(H61<>\"\",2/3,0)+IF(I61<>\"\",1,0))*L$60*10*N61/SUM(N$61:N$66)","v":0},null,{"$f":"COUNTA(E61:I61)","v":0},{"$f":"COUNTBLANK(J61)","v":0}]
[null,null,null,"-  Justesse de l’identification des codes utilisés.",null,null,null,null,null,"◄",null,1,0,1,0,null,0,0]
[null,null,null,"-  Exactitude des actions engagées au regard du décodage des informations.",null,null,null,null,null,"◄",null,1,0,1,0,null,0,0]
[null,"-  Communiquer des informations oralement à ses collègues, à sa hiérarchie, à des tiers y compris en anglais technique.",null,"-  Conformité de la transmission des informations à la bonne personne, au bon moment et avec le bon langage.",null,null,null,null,null,"◄",null,2,0,2,0,null,0,0]
[null,null,null,"-  Effectivité de la vérification de la compréhension des informations transmises et reçues.",null,null,null,null,null,"◄",null,2,0,2,0,null,0,0]
[null,"-  Renseigner les fiches et documents de traçabilité en anglais technique et en français.",null,"-  Exactitude des informations reportées sur les documents de traçabilité.",null,null,null,null,null,"◄",null,2,0,2,0,null,0,0]
[null,null,null,null,"Taux d'indicateurs pour C07",null,{"$f":"N54/SUM(L55:L59)","v":1}]
[null,null,null,null,"Taux d'indicateurs pour C08",null,{"$f":"N60/SUM(L61:L66)","v":1}]
[null,null,null,null,"Note brute (Attention si le taux de couverture des compétences est inférieur à 50%, la note n'est pas recevable) :",null,{"$f":"IF(OR(S54=0,G67<0.5,G68<0.5),\"!\",(M54+M60))","v":"!"},null,"/20"]
[]
[null,null,null,null,"Moyenne pondérée des notes obtenues aux deux parties :",null,{"$f":"SUM(G51,G69)/4","v":0},null," /20"]
[null,null,null,null,"Note sur 20 proposée au jury* :",null,null,null,"/20"]
[null,"ATTENTION, si le symbole ◄ apparait dans cette colonne c'est qu'il y a plus d'une valeur donnée à l'indicateur, il faut alors choisir laquelle retenir, ou alors que l'indicateur est coché \"non évalué\""]
[null,"* La note proposée, arrondie au demi point, est décidée par les évaluateurs à partir de la note brute qui peut être modulée de + 0 à + 1 point en fonction de la réactivité du candidat ou de tout autre attitude professionnelle positive observée."]
[]
[null,"Appréciation globale",null,{"$f":"(IF(R69>0,\"Attention erreur de saisie ! Voir ci-dessus\",\"\"))","v":""}]
[]
[]
[null,"Noms des Correcteurs",null,"Signatures",null,"Date"]
[]
[]
[]
[null,null,null,null,null,{"$f":"TODAY()","v":"2015-01-07"}]

{"sheet":"CAP EP3 SY","index":4,"n_rows":90,"n_cols":19,"rows_kept":90,"cut":false,"hidden":true,"merged":[[6,1,6,2],[6,3,6,8],[7,1,7,2],[7,3,7,8],[21,1,21,8],[12,1,18,8],[19,10,19,11],[20,1,20,2],[8,1,8,2],[8,3,8,8],[9,1,9,2],[9,3,9,8],[10,1,10,8],[11,1,11,8],[0,1,0,8],[1,1,1,2],[1,3,1,8],[2,1,2,2],[2,3,2,8],[3,1,3,2],[3,3,3,8],[5,1,5,2],[5,3,5,8],[4,1,4,2],[4,3,4,8],[22,1,22,2],[23,1,23,2],[24,1,24,2],[30,1,30,8],[25,1,25,2],[29,1,29,2],[23,3,24,3],[26,1,28,2],[31,1,31,2],[32,1,32,2],[33,1,33,2],[34,1,34,2],[35,1,35,2],[36,1,36,2],[55,1,55,2],[65,1,65,2],[66,1,66,2],[43,1,43,8],[44,1,44,2],[45,1,45,2],[46,1,46,2],[49,1,49,8],[50,1,52,2],[38,6,38,9],[39,6,39,9],[56,6,56,9],[57,6,57,9],[42,1,42,2],[68,1,68,2],[69,1,69,2],[70,1,70,2],[89,1,89,2],[89,5,89,8],[87,1,87,2],[83,1,83,8],[77,10,80,10],[77,6,77,7],[77,8,77,9],[78,6,78,7],[78,8,78,9],[88,1,88,2],[85,1,85,2],[85,5,85,8],[86,1,86,2],[86,5,86,8],[82,1,82,2],[82,3,82,8],[79,0,79,9],[80,0,80,9],[74,6,74,9],[75,8,75,9],[75,6,75,7],[66,14,70,14],[66,16,70,16],[66,17,70,17],[23,12,24,12],[23,13,24,13],[23,14,24,14],[23,16,24,16],[23,17,24,17],[21,0,37,0],[43,0,55,0],[62,0,73,0],[58,6,58,7],[47,1,48,2],[37,1,37,2],[73,1,73,2],[63,1,64,2],[61,1,61,2],[62,1,62,8],[53,1,54,2],[40,6,40,7],[71,1,71,2],[72,1,72,2],[59,8,59,9],[67,1,67,2],[23,11,24,11],[23,4,24,4],[23,5,24,5],[23,6,24,6],[23,7,24,7],[23,8,24,8],[23,9,24,9],[66,12,70,12],[66,13,70,13],[26,12,28,12],[40,8,40,9],[58,8,58,9],[59,6,59,7],[66,11,70,11],[66,4,70,4],[66,5,70,5],[66,6,70,6],[66,7,70,7],[66,8,70,8],[66,9,70,9]]}
[null,"Identifications"]
[null,"Diplôme :",null,"Certificat d’aptitude professionnelle « Aéronautique»"]
[null,"Option :  ",null,"Systèmes"]
[null,"Epreuve :",null,"EP3 : Assistance en piste et réparation d'aéronef"]
[null,"Établissement :",null,{"$f":"CONCATENATE(Identification!B4)","v":""}]
[null,"Session : ",null,{"$f":"CONCATENATE(Identification!B8)","v":""}]
[null,"Nom du candidat :",null,{"$f":"CONCATENATE(Identification!B5)","v":""}]
[null,"Prénom du candidat :",null,{"$f":"CONCATENATE(Identification!B6)","v":""}]
[null,"Date de l'évaluation :"]
[null,"Lieu de l'évaluation (entreprise ou centre de formation) :"]
[]
[null,"Description sommaire du travail demandé (le sujet complet doit être joint à cette fiche) :"]
[]
[]
[]
[]
[]
[]
[]
[]
[null,"Compétences évaluées",null,"Indicateurs de performance                              évaluation","non",0,0.33333333333333331,0.66666666666666663,"3/3",null,null,"Poids de la compétence","Notes"]
["PARTIE 1 : situation d'évaluation en centre de formation (Coef 3)","C05 Sy- Réparer des éléments.",null,null,null,null,null,null,null,null,null,0.6,{"$f":"(SUM(M23:M30))*3","v":0},{"$f":"SUM(N23:N30)","v":11},{"$f":"SUM(O23:O30)","v":0},null,null,{"$f":"SUM(R23:R38)","v":0},{"$f":"IF(R22=14,1,0)","v":0}]
[null,"-  Poser, régler et mettre en oeuvre des outils et des outillages ",null,"- Respect de la procédure.                                                                                                      ",null,null,null,null,null,{"$f":"IF(Q23>1,\"◄\",(IF(Q23<1,\"◄\",\"\")))","v":"◄"},null,1,{"$f":"SUM(O23)","v":0},{"$f":"IF(E23<>\"\",0,L23)","v":1},{"$f":"(IF(G23<>\"\",1/3,0)+IF(H23<>\"\",2/3,0)+IF(I23<>\"\",1,0))*L$22*10*N23/SUM(N$23:N$30)","v":0},null,{"$f":"COUNTA(E23:I23)","v":0},{"$f":"COUNTBLANK(J23)","v":0}]
[null,"-  Effectuer une retouche cosmétique sur un élément de structure ou de cabine ou un équipement d’aéronef.",null,"- Respect de la procédure.                                                                                                      ",null,null,null,null,null,{"$f":"IF(Q24>1,\"◄\",(IF(Q24<1,\"◄\",\"\")))","v":"◄"},null,3,{"$f":"SUM(O24)","v":0},{"$f":"IF(E24<>\"\",0,L24)","v":3},{"$f":"(IF(G24<>\"\",1/3,0)+IF(H24<>\"\",2/3,0)+IF(I24<>\"\",1,0))*L$22*10*N24/SUM(N$23:N$30)","v":0},null,{"$f":"COUNTA(E24:I24)","v":0},{"$f":"COUNTBLANK(J24)","v":0}]
[null,"-  Effectuer des traitements de surfaces (revêtement alodine, primaire, peinture)."]
[null," - Réparer des équipements ou une partie de harnais sur aéronef et conditionner les éléments pour la livraison",null,"- Reparation conforme à la procédure.                                                                                                      ",null,null,null,null,null,{"$f":"IF(Q26>1,\"◄\",(IF(Q26<1,\"◄\",\"\")))","v":"◄"},null,3,{"$f":"SUM(O26)","v":0},{"$f":"IF(E26<>\"\",0,L26)","v":3},{"$f":"(IF(G26<>\"\",1/3,0)+IF(H26<>\"\",2/3,0)+IF(I26<>\"\",1,0))*L$22*10*N26/SUM(N$23:N$30)","v":0},null,{"$f":"COUNTA(E26:I26)","v":0},{"$f":"COUNTBLANK(J26)","v":0}]
[null,"-  Autocontrôler son intervention.",null,"- Zone de travail exempte de tout corps étrangers.",null,null,null,null,null,{"$f":"IF(Q27>1,\"◄\",(IF(Q27<1,\"◄\",\"\")))","v":"◄"},null,1,{"$f":"SUM(O27:O29)","v":0},{"$f":"IF(E27<>\"\",0,L27)","v":1},{"$f":"(IF(G27<>\"\",1/3,0)+IF(H27<>\"\",2/3,0)+IF(I27<>\"\",1,0))*L$22*10*N27/SUM(N$23:N$30)","v":0},null,{"$f":"COUNTA(E27:I27)","v":0},{"$f":"COUNTBLANK(J27)","v":0}]
[null,null,null,"- Exhaustivité des points contrôlés en fin de réparation.",null,null,null,null,null,{"$f":"IF(Q28>1,\"◄\",(IF(Q28<1,\"◄\",\"\")))","v":"◄"},null,1,null,{"$f":"IF(E28<>\"\",0,L28)","v":1},{"$f":"(IF(G28<>\"\",1/3,0)+IF(H28<>\"\",2/3,0)+IF(I28<>\"\",1,0))*L$22*10*N28/SUM(N$23:N$30)","v":0},null,{"$f":"COUNTA(E28:I28)","v":0},{"$f":"COUNTBLANK(J28)","v":0}]
[null,null,null,"-  Outils et outillages fonctionnels, nettoyés et rangés.",null,null,null,null,null,{"$f":"IF(Q29>1,\"◄\",(IF(Q29<1,\"◄\",\"\")))","v":"◄"},null,1,null,{"$f":"IF(E29<>\"\",0,L29)","v":1},{"$f":"(IF(G29<>\"\",1/3,0)+IF(H29<>\"\",2/3,0)+IF(I29<>\"\",1,0))*L$22*10*N29/SUM(N$23:N$30)","v":0},null,{"$f":"COUNTA(E29:I29)","v":0},{"$f":"COUNTBLANK(J29)","v":0}]
[null,"-  Respecter les règles d’hygiène, de sécurité et de protection des biens, des personnes et de l’environnement.",null,"- Respect des règles d’hygiène, de sécurité et de protection des biens, des personnes et de l’environnement.",null,null,null,null,null,{"$f":"IF(Q30>1,\"◄\",(IF(Q30<1,\"◄\",\"\")))","v":"◄"},null,1,{"$f":"SUM(O30)","v":0},{"$f":"IF(E30<>\"\",0,L30)","v":1},{"$f":"(IF(G30<>\"\",1/3,0)+IF(H30<>\"\",2/3,0)+IF(I30<>\"\",1,0))*L$22*10*N30/SUM(N$23:N$30)","v":0},null,{"$f":"COUNTA(E30:I30)","v":0},{"$f":"COUNTBLANK(J30)","v":0}]
[null,"C06 - Effectuer des contrôles de son opération.",null,null,null,null,null,null,null,null,null,0.4,{"$f":"(SUM(M32:M38))*3","v":0},{"$f":"SUM(N32:N38)","v":11},{"$f":"SUM(O32:O38)","v":0}]
[null,"-  Appliquer les éventuelles procédures relatives à la protection électrostatique.",null,"-  Effectivité de la protection électrostatique.",null,null,null,null,null,{"$f":"IF(Q32>1,\"◄\",(IF(Q32<1,\"◄\",\"\")))","v":"◄"},null,2,{"$f":"SUM(O32)","v":0},{"$f":"IF(E32<>\"\",0,L32)","v":2},{"$f":"(IF(G32<>\"\",1/3,0)+IF(H32<>\"\",2/3,0)+IF(I32<>\"\",1,0))*L$31*10*N32/SUM(N$32:N$38)","v":0},null,{"$f":"COUNTA(E32:I32)","v":0},{"$f":"COUNTBLANK(J32)","v":0}]
[null,"-  Vérifier la validité des moyens de contrôle.",null,"-  Vérification effective de la validité des moyens de contrôle.",null,null,null,null,null,"◄",null,1,0,1,{"$f":"(IF(G33<>\"\",1/3,0)+IF(H33<>\"\",2/3,0)+IF(I33<>\"\",1,0))*L$31*10*N33/SUM(N$32:N$38)","v":0},null,0,0]
[null,"-  Initialiser et mettre en œuvre des appareils ou des bancs de mesure.",null,"-  Respect des règles d’initialisation et de mise en œuvre des appareils ou des bancs de mesure.",null,null,null,null,null,"◄",null,2,0,2,0,null,0,0]
[null,"-  Préparer l’élément à contrôler.",null,"-  Conformité de la préparation de l’élément à contrôler.",null,null,null,null,null,"◄",null,2,0,2,0,null,0,0]
[null,"-  Appliquer la procédure de contrôle.",null,"-  Respect de la procédure de contrôle.",null,null,null,null,null,"◄",null,2,0,2,0,null,0,0]
[null,"-  Identifier et communiquer les non-conformités.",null,"-  Exhaustivité de l’identification des non-conformités.",null,null,null,null,null,"◄",null,1,0,1,0,null,0,0]
[null,"-  Respecter les règles d’hygiène, de sécurité et de protection des biens, des personnes et de l’environnement.",null,"-  Respect des règles d’hygiène, de sécurité et de protection des biens, des personnes et de l’environnement.",null,null,null,null,null,"◄",null,1,0,1,0,null,0,0]
[null,null,null,null,"Taux d'indicateurs pour C05",null,{"$f":"N22/SUM(L23:L30)","v":1}]
[null,null,null,null,"Taux d'indicateurs pour C06",null,{"$f":"N31/SUM(L32:L38)","v":1}]
[null,null,null,null,"Note brute (Attention si le taux de couverture des compétences est inférieur à 50%, la note n'est pas recevable) :",null,{"$f":"IF(OR(S22=0,G39<0.5,G40<0.5),\"!\",(M22+M31))","v":"!"},null,"/30"]
[]
[null,"Compétences évaluées",null,"Indicateurs de performance                              évaluation","non",0,0.33333333333333331,0.66666666666666663,"3/3",null,null,"Poids de la compétence","Notes"]
["PARTIE 1 : Situation dévaluation en PFMP (Coef 2)","C07 - Appliquer la démarche qualité de l’entreprise.",null,null,null,null,null,null,null,null,null,0.5,{"$f":"(SUM(M45:M49))*2","v":0},{"$f":"SUM(N45:N49)","v":11},{"$f":"SUM(O45:O49)","v":0},null,null,{"$f":"SUM(R45:R56)","v":0},{"$f":"IF(R44=11,1,0)","v":0}]
[null,"-  Limiter son intervention à son propre champ de qualification.",null,"-  Respect de la limitation de son intervention à son propre champ de qualification et à ses habilitations.",null,null,null,null,null,{"$f":"IF(Q45>1,\"◄\",(IF(Q45<1,\"◄\",\"\")))","v":"◄"},null,3,{"$f":"SUM(O45)","v":0},{"$f":"IF(E45<>\"\",0,L45)","v":3},{"$f":"(IF(G45<>\"\",1/3,0)+IF(H45<>\"\",2/3,0)+IF(I45<>\"\",1,0))*L$44*10*N45/SUM(N$45:N$49)","v":0},null,{"$f":"COUNTA(E45:I45)","v":0},{"$f":"COUNTBLANK(J45)","v":0}]
[null,"-  Respecter les procédures et les consignes",null,"-  Rigueur dans l’application des procédures et des consignes.",null,null,null,null,null,{"$f":"IF(Q46>1,\"◄\",(IF(Q46<1,\"◄\",\"\")))","v":"◄"},null,4,{"$f":"SUM(O46)","v":0},{"$f":"IF(E46<>\"\",0,L46)","v":4},{"$f":"(IF(G46<>\"\",1/3,0)+IF(H46<>\"\",2/3,0)+IF(I46<>\"\",1,0))*L$44*10*N46/SUM(N$45:N$49)","v":0},null,{"$f":"COUNTA(E46:I46)","v":0},{"$f":"COUNTBLANK(J46)","v":0}]
[null,"-  Contribuer à la démarche qualité de l’entreprise et mettre en œuvre les règles liées aux facteurs humains et à la prévention des risques.",null,"-  Repérage dans son activité des écarts significatifs de non qualité.",null,null,null,null,null,{"$f":"IF(Q47>1,\"◄\",(IF(Q47<1,\"◄\",\"\")))","v":"◄"},null,2,{"$f":"SUM(O47)","v":0},{"$f":"IF(E47<>\"\",0,L47)","v":2},{"$f":"(IF(G47<>\"\",1/3,0)+IF(H47<>\"\",2/3,0)+IF(I47<>\"\",1,0))*L$44*10*N47/SUM(N$45:N$49)","v":0},null,{"$f":"COUNTA(E47:I47)","v":0},{"$f":"COUNTBLANK(J47)","v":0}]
[null,"-  Participer à l’amélioration continue de son activité.",null,"-  Identification crédible des marges de progrès.",null,null,null,null,null,{"$f":"IF(Q48>1,\"◄\",(IF(Q48<1,\"◄\",\"\")))","v":"◄"},null,1,{"$f":"SUM(O48)","v":0},{"$f":"IF(E48<>\"\",0,L48)","v":1},{"$f":"(IF(G48<>\"\",1/3,0)+IF(H48<>\"\",2/3,0)+IF(I48<>\"\",1,0))*L$44*10*N48/SUM(N$45:N$49)","v":0},null,{"$f":"COUNTA(E48:I48)","v":0},{"$f":"COUNTBLANK(J48)","v":0}]
[null,null,null,"-  Crédibilité des propositions d’amélioration.",null,null,null,null,null,{"$f":"IF(Q49>1,\"◄\",(IF(Q49<1,\"◄\",\"\")))","v":"◄"},null,1,{"$f":"SUM(O49)","v":0},{"$f":"IF(E49<>\"\",0,L49)","v":1},{"$f":"(IF(G49<>\"\",1/3,0)+IF(H49<>\"\",2/3,0)+IF(I49<>\"\",1,0))*L$44*10*N49/SUM(N$45:N$49)","v":0},null,{"$f":"COUNTA(E49:I49)","v":0},{"$f":"COUNTBLANK(J49)","v":0}]
[null,"C08 - Communiquer des informations dans un contexte aéronautique.",null,null,null,null,null,null,null,null,null,0.5,{"$f":"(SUM(M51:M56))*2","v":0},{"$f":"SUM(N51:N56)","v":10},{"$f":"SUM(O51:O56)","v":0}]
[null," - Décoder des informations",null,"-  Exactitude du décodage.",null,null,null,null,null,{"$f":"IF(Q51>1,\"◄\",(IF(Q51<1,\"◄\",\"\")))","v":"◄"},null,1,{"$f":"SUM(O51)","v":0},{"$f":"IF(E51<>\"\",0,L51)","v":1},{"$f":"(IF(G51<>\"\",1/3,0)+IF(H51<>\"\",2/3,0)+IF(I51<>\"\",1,0))*L$50*10*N51/SUM(N$51:N$56)","v":0},null,{"$f":"COUNTA(E51:I51)","v":0},{"$f":"COUNTBLANK(J51)","v":0}]
[null,null,null,"-  Justesse de l’identification des codes utilisés.",null,null,null,null,null,"◄",null,1,0,1,0,null,0,0]
[null,null,null,"-  Exactitude des actions engagées au regard du décodage des informations.",null,null,null,null,null,"◄",null,1,0,1,0,null,0,0]
[null,"-  Communiquer des informations oralement à ses collègues, à sa hiérarchie, à des tiers y compris en anglais technique.",null,"-  Conformité de la transmission des informations à la bonne personne, au bon moment et avec le bon langage.",null,null,null,null,null,"◄",null,3,0,3,0,null,0,0]
[null,null,null,"-  Effectivité de la vérification de la compréhension des informations transmises et reçues.",null,null,null,null,null,"◄",null,1,0,1,0,null,0,0]
[null,"-  Renseigner les fiches et documents de traçabilité en anglais technique et en français.",null,"-  Exactitude des informations reportées sur les documents de traçabilité.",null,null,null,null,null,"◄",null,3,0,3,0,null,0,0]
[null,null,null,null,"Taux d'indicateurs pour C07",null,{"$f":"N44/SUM(L45:L49)","v":1}]
[null,null,null,null,"Taux d'indicateurs pour C08",null,{"$f":"N50/SUM(L51:L56)","v":1}]
[null,null,null,null,"Note brute (Attention si le taux de couverture des compétences est inférieur à 50%, la note n'est pas recevable) :",null,{"$f":"IF(OR(S44=0,G57<0.5,G58<0.5),\"!\",(M44+M50))","v":"!"},null,"/20"]
[null,null,null,null,"Note  Partie 1 :",null,{"$f":"SUM(G59,G41)","v":0},null,"/50"]
[]
[null,"Compétences évaluées",null,"Indicateurs de performance                                      évaluation","non",0,0.33333333333333331,0.66666666666666663,"3/3",null,null,"Poids de la compétence","Notes","Éval","Notes"]
["PARTIE 2 : Assistance en piste (Coef 3)","C04Sy - Réaliser des opérations d’assistance en piste ",null,null,null,null,null,null,null,null,null,1,{"$f":"(SUM(M64:M74))*3","v":0},{"$f":"SUM(N64:N74)","v":12},{"$f":"SUM(O64:O74)","v":0},null,null,{"$f":"SUM(R64:R74)","v":0},{"$f":"IF(R63=7,1,0)","v":0}]
[null,"-  Préparer les matériels de servitude (groupes, chariots, escabeaux, …).",null,"-  Conformité de la préparation des matériels de servitude.",null,null,null,null,null,{"$f":"IF(Q64>1,\"◄\",(IF(Q64<1,\"◄\",\"\")))","v":"◄"},null,1,{"$f":"SUM(O64)","v":0},{"$f":"IF(E64<>\"\",0,L64)","v":1},{"$f":"(IF(G64<>\"\",1/3,0)+IF(H64<>\"\",2/3,0)+IF(I64<>\"\",1,0))*L$63*10*N64/SUM(N$64:N$74)","v":0},null,{"$f":"COUNTA(E64:I64)","v":0},{"$f":"COUNTBLANK(J64)","v":0}]
[null,null,null,"-  Matériels fonctionnels, nettoyés et rangés.",null,null,null,null,null,{"$f":"IF(Q65>1,\"◄\",(IF(Q65<1,\"◄\",\"\")))","v":"◄"},null,1,{"$f":"SUM(O65)","v":0},{"$f":"IF(E65<>\"\",0,L65)","v":1},{"$f":"(IF(G65<>\"\",1/3,0)+IF(H65<>\"\",2/3,0)+IF(I65<>\"\",1,0))*L$63*10*N65/SUM(N$64:N$74)","v":0},null,{"$f":"COUNTA(E65:I65)","v":0},{"$f":"COUNTBLANK(J65)","v":0}]
[null,"-  Participer à la sécurisation des zones de circulation et de l’aéronef sur son aire de stationnement.",null,"-  Respect des règles d’hygiène, de sûreté, de sécurité et de protection des biens, des personnes et de l’environnement.",null,null,null,null,null,{"$f":"IF(Q66>1,\"◄\",(IF(Q66<1,\"◄\",\"\")))","v":"◄"},null,1,{"$f":"SUM(O66)","v":0},{"$f":"IF(E66<>\"\",0,L66)","v":1},{"$f":"(IF(G66<>\"\",1/3,0)+IF(H66<>\"\",2/3,0)+IF(I66<>\"\",1,0))*L$63*10*N66/SUM(N$64:N$74)","v":0},null,{"$f":"COUNTA(E66:I66)","v":0},{"$f":"COUNTBLANK(J66)","v":0}]
[null,"-  Réaliser les opérations de :",null," -  Respect des procédures de ",null,null,null,null,null,"◄",null,6,0,6,{"$f":"(IF(G67<>\"\",1/3,0)+IF(H67<>\"\",2/3,0)+IF(I67<>\"\",1,0))*L$63*10*N67/SUM(N$64:N$74)","v":0},null,{"$f":"COUNTA(E67:I71)","v":0},0]
[null,"▪  tractage, repoussage, cheminement, parcage, campement et arrimage ;",null,"▪  tractage, repoussage, cheminement, parcage, campement et arrimage ;"]
[null,"▪  levage, stockage et protection ;",null,"▪  levage, stockage et protection ;"]
[null,"▪  guidage au sol et de stationnement de l’aéronef ;",null,"▪  guidage au sol et de stationnement de l’aéronef ;"]
[null,"▪  avitaillement et vidange.",null,"▪  avitaillement et vidange."]
[null,"-  Échanger oralement en français, en anglais ou par gestes conventionnels.",null,"-  Efficacité de l’échange lors de l’arrivée ou du départ de l’aéronef.",null,null,null,null,null,"◄",null,1,0,1,{"$f":"(IF(G72<>\"\",1/3,0)+IF(H72<>\"\",2/3,0)+IF(I72<>\"\",1,0))*L$63*10*N72/SUM(N$64:N$74)","v":0},null,0,0]
[null,"-  Effectuer un examen visuel de l’état général de l’aéronef avant et après le vol.",null,"-  Effectivité de l’examen visuel de l’aéronef et compte-rendu précis des anomalies constatées.",null,null,null,null,null,"◄",null,1,0,1,{"$f":"(IF(G73<>\"\",1/3,0)+IF(H73<>\"\",2/3,0)+IF(I73<>\"\",1,0))*L$63*10*N73/SUM(N$64:N$74)","v":0},null,0,0]
[null,"-  Autocontrôler sa mise en œuvre.",null,"-  Conformité de la sécurisation au regard de la réglementation et du contexte de travail.",null,null,null,null,null,"◄",null,1,0,1,{"$f":"(IF(G74<>\"\",1/3,0)+IF(H74<>\"\",2/3,0)+IF(I74<>\"\",1,0))*L$63*10*N74/SUM(N$64:N$74)","v":0},null,0,0]
[null,null,null,null,"Taux d'indicateurs pour C04",null,{"$f":"N63/SUM(L64:L74)","v":1}]
[null,null,"Note brute (Attention si le taux de couverture des compétences est inférieur à 50%, la note n'est pas recevable) :",null,"Note  Partie 2 :",null,{"$f":"IF(OR(S63=0,G75<0.5),\"!\",(M63))","v":"!"},null,"/30"]
[]
[null,null,null,null,"Moyenne pondérée des notes obtenues aux deux parties :",null,{"$f":"SUM(G60,G76)/4","v":0},null," /20"]
[null,null,null,null,"Note sur 20 proposée au jury* :",null,null,null,"/20"]
["ATTENTION, si le symbole ◄ apparait dans cette colonne c'est qu'il y a plus d'une valeur donnée à l'indicateur, il faut alors choisir laquelle retenir, ou alors que l'indicateur est coché \"non évalué\""]
["* La note proposée, arrondie au demi point, est décidée par les évaluateurs à partir de la note brute qui peut être modulée de + 0 à + 1 point en fonction de la réactivité du candidat ou de tout autre attitude professionnelle positive observée."]
[]
[null,"Appréciation globale",null,{"$f":"(IF(R79>0,\"Attention erreur de saisie ! Voir ci-dessus\",\"\"))","v":""}]
[]
[]
[null,"Noms des Correcteurs",null,"Signatures",null,"Date"]
[]
[]
[]
[null,null,null,null,null,{"$f":"TODAY()","v":"2015-01-07"}]

{"sheet":"CAP EP3 ST","index":5,"n_rows":81,"n_cols":19,"rows_kept":81,"cut":false,"hidden":true,"merged":[[5,1,5,2],[5,3,5,8],[6,1,6,2],[6,3,6,8],[26,1,26,2],[28,1,28,2],[32,1,32,2],[30,1,31,2],[25,3,29,3],[25,8,29,8],[22,8,24,8],[0,1,0,8],[1,1,1,2],[1,3,1,8],[2,1,2,2],[2,3,2,8],[3,1,3,2],[3,3,3,8],[4,1,4,2],[4,3,4,8],[19,10,19,11],[20,1,20,2],[21,1,21,8],[7,1,7,2],[7,3,7,8],[8,1,8,2],[8,3,8,8],[9,1,9,2],[9,3,9,8],[10,1,10,8],[11,1,11,8],[12,1,18,8],[46,1,46,2],[51,1,51,8],[48,8,48,9],[52,1,52,2],[45,1,45,2],[39,1,39,8],[40,1,40,2],[41,1,41,2],[33,1,33,8],[34,1,34,2],[47,6,47,9],[50,1,50,2],[66,10,70,10],[70,1,70,9],[71,1,71,9],[80,5,80,8],[74,1,74,8],[76,1,76,2],[76,5,76,8],[77,1,77,2],[77,5,77,8],[72,1,72,8],[68,6,68,7],[68,8,68,9],[69,6,69,7],[69,8,69,9],[79,1,79,2],[80,1,80,2],[63,1,63,2],[78,1,78,2],[61,1,62,2],[73,1,73,2],[53,1,53,2],[73,3,73,8],[66,6,66,7],[66,8,66,9],[57,1,57,8],[54,1,55,2],[56,1,56,2],[58,1,60,2],[64,6,64,9],[65,6,65,9],[51,0,63,0],[21,0,46,0],[48,6,48,7],[25,1,25,2],[29,1,29,2],[27,1,27,2],[35,1,35,2],[22,3,24,3],[38,1,38,2],[36,1,37,2],[22,4,24,4],[22,5,24,5],[22,6,24,6],[22,7,24,7],[25,4,29,4],[25,5,29,5],[25,6,29,6],[25,7,29,7],[22,1,22,2],[23,1,23,2],[24,1,24,2],[42,1,42,2],[43,1,43,2],[44,1,44,2],[22,17,24,17],[22,19,24,19],[25,19,26,19],[22,9,24,9],[22,11,24,11],[22,12,24,12],[22,13,24,13],[22,14,24,14],[22,16,24,16],[25,16,29,16],[25,17,29,17],[25,9,29,9],[25,11,29,11],[25,12,29,12],[25,13,29,13],[25,14,29,14]]}
[null,"Identifications"]
[null,"Diplôme :",null,"Certificat d’aptitude professionnelle « Aéronautique»"]
[null,"Option :  ",null,"Structure"]
[null,"Epreuve :",null,"EP3 : Réalisation et contrôle d'une opération de production"]
[null,"Établissement :",null,{"$f":"CONCATENATE(Identification!B4)","v":""}]
[null,"Session : ",null,{"$f":"CONCATENATE(Identification!B8)","v":""}]
[null,"Nom du candidat :",null,{"$f":"CONCATENATE(Identification!B5)","v":""}]
[null,"Prénom du candidat :",null,{"$f":"CONCATENATE(Identification!B6)","v":""}]
[null,"Date de l'évaluation :"]
[null,"Lieu de l'évaluation (entreprise ou centre de formation) :"]
[]
[null,"Description sommaire du travail demandé (le sujet complet doit être joint à cette fiche) :"]
[]
[]
[]
[]
[]
[]
[]
[]
[null,"Compétences évaluées",null,"Indicateurs de performance                              évaluation","non",0,0.33333333333333331,0.66666666666666663,"3/3",null,null,"Poids de la compétence","Notes"]
["Situation d'évaluation en centre de formation (Coef 6)","C04St - Fabriquer des éléments.",null,null,null,null,null,null,null,null,null,0.3,{"$f":"(SUM(M23:M47))*6","v":0},{"$f":"SUM(N23:N47)","v":31},{"$f":"SUM(O23:O47)","v":0},null,null,{"$f":"SUM(R23:R47)","v":0},{"$f":"IF(R22=17,1,0)","v":0}]
[null,"-  Poser et régler des outillages.",null,"-  Outils et outillages fonctionnels, nettoyés et rangés.",null,null,null,null,null,{"$f":"IF(Q23>1,\"◄\",(IF(Q23<1,\"◄\",\"\")))","v":"◄"},null,2,{"$f":"SUM(O23)","v":0},{"$f":"IF(E23<>\"\",0,L23)","v":2},{"$f":"(IF(G23<>\"\",1/3,0)+IF(H23<>\"\",2/3,0)+IF(I23<>\"\",1,0))*(L$22+L34+L40)*10*N23/SUM(N$23:N$47)","v":0},null,{"$f":"COUNTA(E23:I25)","v":0},{"$f":"COUNTBLANK(J23)","v":0}]
[null,"-  Mettre en œuvre les outillages."]
[null,"-  Régler des outils."]
[null,"-  Réaliser des éléments en matériaux métalliques en tôle.",null,"-  Fabrication conforme aux exigences de la gamme (procédure) de fabrication.",null,null,null,null,null,{"$f":"IF(Q26>1,\"◄\",(IF(Q26<1,\"◄\",\"\")))","v":"◄"},null,5,{"$f":"SUM(O26)","v":0},{"$f":"IF(E26<>\"\",0,L26)","v":5},{"$f":"(IF(G26<>\"\",1/3,0)+IF(H26<>\"\",2/3,0)+IF(I26<>\"\",1,0))*(L$22+L34+L40)*10*N26/SUM(N$23:N$47)","v":0},null,{"$f":"COUNTA(E26:I30)","v":0},{"$f":"COUNTBLANK(J26)","v":0}]
[null,"-  Effectuer des traitements thermiques (trempe, revenu, recuit)."]
[null,"-  Réaliser des éléments en matériau composite."]
[null,"-  Effectuer des traitements de surfaces (revêtement alodine, primaire, peinture)."]
[null,"-  Conditionner les éléments pour livraison."]
[null,"-  Autocontrôler sa fabrication.",null,"-  Exhaustivité des points contrôlés en fin de fabrication.",null,null,null,null,null,{"$f":"IF(Q31>1,\"◄\",(IF(Q31<1,\"◄\",\"\")))","v":"◄"},null,1,{"$f":"SUM(O31)","v":0},{"$f":"IF(E31<>\"\",0,L31)","v":1},{"$f":"(IF(G31<>\"\",1/3,0)+IF(H31<>\"\",2/3,0)+IF(I31<>\"\",1,0))*(L$22+L$34+L$40)*10*N31/SUM(N$23:N$47)","v":0},null,{"$f":"COUNTA(E31:I31)","v":0},{"$f":"COUNTBLANK(J31)","v":0}]
[null,null,null,"-  Zone de travail exempte de tout corps étrangers.",null,null,null,null,null,{"$f":"IF(Q32>1,\"◄\",(IF(Q32<1,\"◄\",\"\")))","v":"◄"},null,1,{"$f":"SUM(O32)","v":0},{"$f":"IF(E32<>\"\",0,L32)","v":1},{"$f":"(IF(G32<>\"\",1/3,0)+IF(H32<>\"\",2/3,0)+IF(I32<>\"\",1,0))*(L$22+L$34+L$40)*10*N32/SUM(N$23:N$47)","v":0},null,{"$f":"COUNTA(E32:I32)","v":0},{"$f":"COUNTBLANK(J32)","v":0}]
[null,"-  Respect des règles d’hygiène, de sécurité et de protection des biens, des personnes et de l’environnement.",null,"-  Respect des règles d’hygiène, de sécurité et de protection des biens, des personnes et de l’environnement.",null,null,null,null,null,{"$f":"IF(Q33>1,\"◄\",(IF(Q33<1,\"◄\",\"\")))","v":"◄"},null,1,{"$f":"SUM(O33)","v":0},{"$f":"IF(E33<>\"\",0,L33)","v":1},0,null,{"$f":"COUNTA(E33:I33)","v":0},{"$f":"COUNTBLANK(J33)","v":0}]
[null,"C05St - Réparer des éléments.",null,null,null,null,null,null,null,null,null,0.3]
[null,"-  Accéder à la zone du défaut identifié.",null,"-  Outils et outillages fonctionnels,  nettoyés et rangés.",null,null,null,null,null,{"$f":"IF(Q35>1,\"◄\",(IF(Q35<1,\"◄\",\"\")))","v":"◄"},null,1,{"$f":"SUM(O35)","v":0},{"$f":"IF(E35<>\"\",0,L35)","v":1},0,null,{"$f":"COUNTA(E35:I35)","v":0},{"$f":"COUNTBLANK(J35)","v":0}]
[null,"-  Traiter le défaut (matériau métallique et/ou composite) : découper, percer, ébavurer, …",null,"-  Réparation conforme à la procédure.",null,null,null,null,null,{"$f":"IF(Q36>1,\"◄\",(IF(Q36<1,\"◄\",\"\")))","v":"◄"},null,6,{"$f":"SUM(O36)","v":0},{"$f":"IF(E36<>\"\",0,L36)","v":6},0,null,{"$f":"COUNTA(E36:I36)","v":0},{"$f":"COUNTBLANK(J36)","v":0}]
[null,"-  Autocontrôler son intervention.",null,"-  Exhaustivité des points contrôlés en fin de réparation.",null,null,null,null,null,{"$f":"IF(Q37>1,\"◄\",(IF(Q37<1,\"◄\",\"\")))","v":"◄"},null,1,{"$f":"SUM(O37)","v":0},{"$f":"IF(E37<>\"\",0,L37)","v":1},0,null,{"$f":"COUNTA(E37:I37)","v":0},{"$f":"COUNTBLANK(J37)","v":0}]
[null,null,null,"-  Zone de travail exempte de tout corps étrangers.",null,null,null,null,null,{"$f":"IF(Q38>1,\"◄\",(IF(Q38<1,\"◄\",\"\")))","v":"◄"},null,1,{"$f":"SUM(O38)","v":0},{"$f":"IF(E38<>\"\",0,L38)","v":1},0,null,{"$f":"COUNTA(E38:I38)","v":0},{"$f":"COUNTBLANK(J38)","v":0}]
[null,"-  Respecter les règles d’hygiène, de sécurité et de protection des biens, des personnes et de l’environnement.",null,"-  Respect des règles d’hygiène, de sécurité et de protection des biens, des personnes et de l’environnement.",null,null,null,null,null,{"$f":"IF(Q39>1,\"◄\",(IF(Q39<1,\"◄\",\"\")))","v":"◄"},null,1,{"$f":"SUM(O39)","v":0},{"$f":"IF(E39<>\"\",0,L39)","v":1},0,null,{"$f":"COUNTA(E39:I39)","v":0},{"$f":"COUNTBLANK(J39)","v":0}]
[null,"C06 - Effectuer des contrôles de son opération.",null,null,null,null,null,null,null,null,null,0.4]
[null,"-  Appliquer les éventuelles procédures relatives à la protection électrostatique.",null,"-  Effectivité de la protection électrostatique.",null,null,null,null,null,{"$f":"IF(Q41>1,\"◄\",(IF(Q41<1,\"◄\",\"\")))","v":"◄"},null,2,{"$f":"SUM(O41)","v":0},{"$f":"IF(E41<>\"\",0,L41)","v":2},0,null,{"$f":"COUNTA(E41:I41)","v":0},{"$f":"COUNTBLANK(J41)","v":0}]
[null,"-  Vérifier la validité des moyens de contrôle.",null,"-  Vérification effective de la validité des moyens de contrôle.",null,null,null,null,null,{"$f":"IF(Q42>1,\"◄\",(IF(Q42<1,\"◄\",\"\")))","v":"◄"},null,1,{"$f":"SUM(O42)","v":0},{"$f":"IF(E42<>\"\",0,L42)","v":1},0,null,{"$f":"COUNTA(E42:I42)","v":0},{"$f":"COUNTBLANK(J42)","v":0}]
[null,"-  Initialiser et mettre en œuvre des appareils ou des bancs de mesure.",null,"-  Respect des règles d’initialisation et de mise en œuvre des appareils ou des bancs de mesure.",null,null,null,null,null,"◄",null,1,0,1,0,null,0,0]
[null,"-  Préparer l’élément à contrôler.",null,"-  Conformité de la préparation de l’élément à contrôler.",null,null,null,null,null,"◄",null,1,0,1,0,null,0,0]
[null,"-  Appliquer la procédure de contrôle.",null,"-  Respect de la procédure de contrôle.",null,null,null,null,null,"◄",null,2,0,2,0,null,0,0]
[null,"-  Identifier et communiquer les non-conformités.",null,"-  Exhaustivité de l’identification des non-conformités.",null,null,null,null,null,"◄",null,3,0,3,0,null,0,0]
[null,"-  Respect des règles d’hygiène, de sécurité et de protection des biens, des personnes et de l’environnement.",null,"-  Respect des règles d’hygiène, de sécurité et de protection des biens, des personnes et de l’environnement.",null,null,null,null,null,"◄",null,1,0,1,0,null,0,0]
[null,null,null,null,"Taux d'indicateurs pour C04 ou C05 et C06",null,{"$f":"N22/SUM(L23:L33,L35:L39,L41:L47)","v":1}]
[null,null,null,null,"Note brute obtenue par calcul automatique (Attention si le taux de couverture des compétences est inférieur à 50%, la note n'est pas recevable) :",null,{"$f":"IF(OR(S22=0,G48<0.5),\"!\",(M22))","v":"!"},null,"/60"]
[]
[null,"Compétences évaluées",null,"Indicateurs de performance                              évaluation","non",0,0.33333333333333331,0.66666666666666663,"3/3",null,null,"Poids de la compétence","Notes"]
["Situation d'évaluation au cours de la période de formation en milieu professionnel (Coef 2)","C07 - Appliquer la démarche qualité de l’entreprise.",null,null,null,null,null,null,null,null,null,0.5,{"$f":"(SUM(M53:M57))*2","v":0},{"$f":"SUM(N53:N57)","v":10},{"$f":"SUM(O53:O57)","v":0},null,null,{"$f":"SUM(R53:R64)","v":0},{"$f":"IF(R52=11,1,0)","v":0}]
[null,"-  Limiter son intervention à son propre champ de qualification.",null,"-  Respect de la limitation de son intervention à son propre champ de qualification et à ses habilitations.",null,null,null,null,null,{"$f":"IF(Q53>1,\"◄\",(IF(Q53<1,\"◄\",\"\")))","v":"◄"},null,2,{"$f":"SUM(O53)","v":0},{"$f":"IF(E53<>\"\",0,L53)","v":2},{"$f":"(IF(G53<>\"\",1/3,0)+IF(H53<>\"\",2/3,0)+IF(I53<>\"\",1,0))*L$52*10*N53/SUM(N$53:N$57)","v":0},null,{"$f":"COUNTA(E53:I53)","v":0},{"$f":"COUNTBLANK(J53)","v":0}]
[null,"-  Respecter les procédures et les consignes",null,"-  Rigueur dans l’application des procédures et des consignes.",null,null,null,null,null,{"$f":"IF(Q54>1,\"◄\",(IF(Q54<1,\"◄\",\"\")))","v":"◄"},null,3,{"$f":"SUM(O54)","v":0},{"$f":"IF(E54<>\"\",0,L54)","v":3},{"$f":"(IF(G54<>\"\",1/3,0)+IF(H54<>\"\",2/3,0)+IF(I54<>\"\",1,0))*L$52*10*N54/SUM(N$53:N$57)","v":0},null,{"$f":"COUNTA(E54:I54)","v":0},{"$f":"COUNTBLANK(J54)","v":0}]
[null,"-  Contribuer à la démarche qualité de l’entreprise et mettre en œuvre les règles liées aux facteurs humains et à la prévention des risques.",null,"-  Repérage dans son activité des écarts significatifs de non qualité.",null,null,null,null,null,{"$f":"IF(Q55>1,\"◄\",(IF(Q55<1,\"◄\",\"\")))","v":"◄"},null,3,{"$f":"SUM(O55)","v":0},{"$f":"IF(E55<>\"\",0,L55)","v":3},{"$f":"(IF(G55<>\"\",1/3,0)+IF(H55<>\"\",2/3,0)+IF(I55<>\"\",1,0))*L$52*10*N55/SUM(N$53:N$57)","v":0},null,{"$f":"COUNTA(E55:I55)","v":0},{"$f":"COUNTBLANK(J55)","v":0}]
[null,null,null,"-  Identification crédible des marges de progrès.",null,null,null,null,null,{"$f":"IF(Q56>1,\"◄\",(IF(Q56<1,\"◄\",\"\")))","v":"◄"},null,1,{"$f":"SUM(O56)","v":0},{"$f":"IF(E56<>\"\",0,L56)","v":1},{"$f":"(IF(G56<>\"\",1/3,0)+IF(H56<>\"\",2/3,0)+IF(I56<>\"\",1,0))*L$52*10*N56/SUM(N$53:N$57)","v":0},null,{"$f":"COUNTA(E56:I56)","v":0},{"$f":"COUNTBLANK(J56)","v":0}]
[null,"-  Participer à l’amélioration continue de son activité.",null,"-  Crédibilité des propositions d’amélioration.",null,null,null,null,null,{"$f":"IF(Q57>1,\"◄\",(IF(Q57<1,\"◄\",\"\")))","v":"◄"},null,1,{"$f":"SUM(O57)","v":0},{"$f":"IF(E57<>\"\",0,L57)","v":1},{"$f":"(IF(G57<>\"\",1/3,0)+IF(H57<>\"\",2/3,0)+IF(I57<>\"\",1,0))*L$52*10*N57/SUM(N$53:N$57)","v":0},null,{"$f":"COUNTA(E57:I57)","v":0},{"$f":"COUNTBLANK(J57)","v":0}]
[null,"C08 - Communiquer des informations dans un contexte aéronautique.",null,null,null,null,null,null,null,null,null,0.5,{"$f":"(SUM(M59:M64))*2","v":0},{"$f":"SUM(N59:N64)","v":9},{"$f":"SUM(O59:O64)","v":0}]
[null," -  Décoder des informations écrites ou orales, y compris celles exprimées en anglais technique et codifiées (sigles, gestes …).",null,"-  Exactitude du décodage.",null,null,null,null,null,{"$f":"IF(Q59>1,\"◄\",(IF(Q59<1,\"◄\",\"\")))","v":"◄"},null,1,{"$f":"SUM(O59)","v":0},{"$f":"IF(E59<>\"\",0,L59)","v":1},{"$f":"(IF(G59<>\"\",1/3,0)+IF(H59<>\"\",2/3,0)+IF(I59<>\"\",1,0))*L$58*10*N59/SUM(N$59:N$64)","v":0},null,{"$f":"COUNTA(E59:I59)","v":0},{"$f":"COUNTBLANK(J59)","v":0}]
[null,null,null,"-  Justesse de l’identification des codes utilisés.",null,null,null,null,null,"◄",null,1,0,1,0,null,0,0]
[null,null,null,"-  Exactitude des actions engagées au regard du décodage des informations.",null,null,null,null,null,"◄",null,1,0,1,0,null,0,0]
[null,"-  Communiquer des informations oralement à ses collègues, à sa hiérarchie, à des tiers y compris en anglais technique.",null,"-  Conformité de la transmission des informations à la bonne personne, au bon moment et avec le bon langage.",null,null,null,null,null,"◄",null,2,0,2,0,null,0,0]
[null,null,null,"-  Effectivité de la vérification de la compréhension des informations transmises et reçues.",null,null,null,null,null,"◄",null,2,0,2,0,null,0,0]
[null,"-  Renseigner les fiches et documents de traçabilité en anglais technique et en français.",null,"-  Exactitude des informations reportées sur les documents de traçabilité.",null,null,null,null,null,"◄",null,2,0,2,0,null,0,0]
[null,null,null,null,"Taux d'indicateurs pour C07",null,{"$f":"N52/SUM(L53:L57)","v":1}]
[null,null,null,null,"Taux d'indicateurs pour C08",null,{"$f":"N58/SUM(L59:L64)","v":1}]
[null,null,null,null,"Note brute (Attention si le taux de couverture des compétences est inférieur à 50%, la note n'est pas recevable) :",null,{"$f":"IF(OR(S52=0,G65<0.5,G66<0.5),\"!\",(M52+M58))","v":"!"},null,"/20"]
[]
[null,null,null,null,"Moyenne pondérée des notes obtenues aux deux parties :",null,{"$f":"SUM(G49,G67)/4","v":0},null," /20"]
[null,null,null,null,"Note sur 20 proposée au jury* :",null,null,null,"/20"]
[null,"ATTENTION, si le symbole ◄ apparait dans cette colonne c'est qu'il y a plus d'une valeur donnée à l'indicateur, il faut alors choisir laquelle retenir, ou alors que l'indicateur est coché \"non évalué\""]
[null,"* La note proposée, arrondie au demi point, est décidée par les évaluateurs à partir de la note brute qui peut être modulée de + 0 à + 1 point en fonction de la réactivité du candidat ou de tout autre attitude professionnelle positive observée."]
[]
[null,"Appréciation globale",null,{"$f":"(IF(R67>0,\"Attention erreur de saisie ! Voir ci-dessus\",\"\"))","v":""}]
[]
[]
[null,"Noms des Correcteurs",null,"Signatures",null,"Date"]
[]
[]
[]
[null,null,null,null,null,{"$f":"TODAY()","v":"2015-01-07"}]

{"sheet":"BAC AV SY ST E2","index":6,"n_rows":44,"n_cols":18,"rows_kept":44,"cut":false,"hidden":true,"merged":[[40,0,40,1],[40,4,40,7],[41,0,41,1],[42,0,42,1],[43,0,43,1],[43,4,43,7],[36,0,36,1],[36,2,36,7],[37,0,37,7],[39,0,39,1],[39,4,39,7],[33,0,33,8],[34,0,34,8],[23,0,23,1],[26,0,26,1],[24,0,25,1],[27,0,27,1],[28,0,28,1],[29,0,29,1],[30,5,30,8],[31,5,31,6],[32,5,32,6],[31,7,31,8],[32,7,32,8],[10,0,10,7],[11,0,11,7],[12,0,18,7],[20,0,20,1],[21,0,21,7],[7,2,7,7],[8,0,8,1],[8,2,8,7],[9,0,9,1],[9,2,9,7],[6,0,6,1],[6,2,6,7],[24,11,25,11],[0,0,0,7],[1,0,1,1],[1,2,1,7],[2,0,2,1],[2,2,2,7],[3,0,3,1],[3,2,3,7],[4,0,4,1],[4,2,4,7],[5,0,5,1],[5,2,5,7],[22,0,22,1],[7,0,7,1]]}
["Identifications"]
["Diplôme :",null,"Baccalauréat professionnel « Aéronautique»"]
["Option :  ",null,{"$f":"CONCATENATE(Identification!B9)","v":"Sélectionner une option à partir de la liste déroulante"}]
["Epreuve :",null,"Épreuve E2 : Exploitation de la documentation technique"]
["Établissement :",null,{"$f":"CONCATENATE(Identification!B4)","v":""}]
["Session : ",null,{"$f":"CONCATENATE(Identification!B10)","v":""}]
["Nom du candidat :",null,{"$f":"CONCATENATE(Identification!B5)","v":""}]
["Prénom du candidat :",null,{"$f":"CONCATENATE(Identification!B6)","v":""}]
["Date de l'évaluation :"]
["Lieu de l'évaluation (entreprise ou centre de formation) :"]
[]
["Description sommaire du travail demandé (le sujet complet doit être joint à cette fiche) :"]
[]
[]
[]
[]
[]
[]
[]
[]
["Compétences évaluées",null,"Indicateurs de performance                                      évaluation","non",0,0.33333333333333331,0.66666666666666663,"3/3",null,null,"Poids de la compétence","Notes","Éval","Notes"]
["C01 -Exploiter une documentation technique relative à une intervention",null,null,null,null,null,null,null,null,null,1,{"$f":"(SUM(L23:L30))","v":0},{"$f":"SUM(M23:M30)","v":16},{"$f":"SUM(N23:N30)","v":0},null,null,{"$f":"SUM(Q23:Q43)","v":0},{"$f":"IF(Q22=8,1,0)","v":0}]
["- Extraire les documents nécessaires à l’intervention.",null,"-  Exhaustivité de la sélection du ou des documents nécessaires à l’intervention.",null,null,null,null,null,{"$f":"IF(P23>1,\"◄\",(IF(P23<1,\"◄\",\"\")))","v":"◄"},null,1,{"$f":"SUM(N23)*2","v":0},{"$f":"IF(D23<>\"\",0,K23)","v":1},{"$f":"(IF(F23<>\"\",1/3,0)+IF(G23<>\"\",2/3,0)+IF(H23<>\"\",1,0))*K$22*10*M23/SUM(M$23:M$30)","v":0},null,{"$f":"COUNTA(D23:H23)","v":0},{"$f":"COUNTBLANK(I23)","v":0}]
["- Contrôler l’applicabilité des documents extraits.",null,"-  Vérification juste de l’applicabilité des documents extraits.",null,null,null,null,null,{"$f":"IF(P24>1,\"◄\",(IF(P24<1,\"◄\",\"\")))","v":"◄"},null,2,{"$f":"SUM(N24)*2","v":0},{"$f":"IF(D24<>\"\",0,K24)","v":2},{"$f":"(IF(F24<>\"\",1/3,0)+IF(G24<>\"\",2/3,0)+IF(H24<>\"\",1,0))*K$22*10*M24/SUM(M$23:M$30)","v":0},null,{"$f":"COUNTA(D24:H24)","v":0},{"$f":"COUNTBLANK(I24)","v":0}]
["- Identifier les informations nécessaires à l’intervention.",null,"-  Exhaustivité de la sélection des informations nécessaires.",null,null,null,null,null,"◄",null,2,{"$f":"SUM(N25:N26)*2","v":0},2,0,null,0,0]
[null,null,"-   Exhaustivité de l’identification des produits à risque.",null,null,null,null,null,"◄",null,1,null,1,0,null,0,0]
["- Décoder des informations (textes, plans, schémas, normes constructeur …), y compris en langue anglaise.",null,"-    Exactitude du décodage des informations.",null,null,null,null,null,"◄",null,3,{"$f":"SUM(N27)*2","v":0},3,0,null,0,0]
["- Déduire de la documentation technique l’organisation fonctionnelle et structurelle de l’objet technique concerné.",null,"- Exactitude des descriptions fonctionnelles et structurelles.",null,null,null,null,null,"◄",null,3,{"$f":"SUM(N28)*2","v":0},3,0,null,0,0]
["- A partir d’une organisation fonctionnelle et structurelle d’un objet technique, déterminer le comportement attendu de chacun de ses constituants.",null,"-  Exactitude de l’analyse comportementale des constituants de l’objet technique concerné.",null,null,null,null,null,"◄",null,3,{"$f":"SUM(N29)*2","v":0},3,0,null,0,0]
["- Identifier les causes possibles d’un dysfonctionnement rapporté.",null,"- Crédibilité de l’identification des causes probables identifiées du dysfonctionnement.",null,null,null,null,null,"◄",null,1,{"$f":"SUM(N30)*2","v":0},1,0,null,0,0]
[null,null,null,"Taux d'indicateurs pour C01",null,{"$f":"M22/SUM(K23:K30)","v":1}]
[null,null,null,"Note brute obtenue par calcul automatique (Attention si le taux de couverture des compétences est inférieur à 90%, le sujet n'est pas recevable) :",null,{"$f":"IF(OR(R22=0,F31<0.9),\"!\",(L22))","v":"!"},null," /20"]
[null,null,null,"Note sur 20 proposée au jury* :",null,null,null,"/20"]
["ATTENTION, si le symbole ◄ apparait dans cette colonne c'est qu'il y a plus d'une valeur donnée à l'indicateur, il faut alors choisir laquelle retenir, ou alors que l'indicateur est coché \"non évalué\""]
["* La note proposée, arrondie au demi point, est décidée par les évaluateurs à partir de la note brute qui peut être modulée de + 0 à + 1 point en fonction de la réactivité du candidat ou de tout autre attitude professionnelle positive observée."]
[]
["Appréciation globale"]
[]
[]
["Noms des Correcteurs",null,"Signatures",null,"Date"]
[]
[]
[]
[null,null,null,null,{"$f":"TODAY()","v":"2015-01-07"}]

{"sheet":"BAC AV SY ST E31","index":7,"n_rows":77,"n_cols":19,"rows_kept":77,"cut":false,"hidden":true,"merged":[[50,0,60,0],[21,0,44,0],[36,1,37,2],[59,1,59,2],[39,1,39,2],[60,1,60,2],[38,1,38,2],[21,1,21,8],[23,1,24,2],[25,1,27,2],[45,6,45,9],[46,6,46,9],[47,6,47,7],[47,8,47,9],[33,1,34,2],[43,1,44,2],[75,1,75,2],[70,1,70,8],[69,1,69,2],[12,1,18,8],[76,5,76,8],[72,5,72,8],[73,5,73,8],[74,1,74,2],[69,3,69,8],[67,1,67,9],[61,6,61,9],[51,1,53,2],[54,1,58,2],[28,1,28,2],[29,1,29,2],[64,6,64,7],[5,1,5,2],[5,3,5,8],[6,1,6,2],[6,3,6,8],[76,1,76,2],[73,1,73,2],[72,1,72,2],[20,1,20,2],[7,1,7,2],[7,3,7,8],[8,1,8,2],[8,3,8,8],[22,1,22,2],[9,1,9,2],[9,3,9,8],[10,1,10,8],[3,1,3,2],[3,3,3,8],[4,1,4,2],[4,3,4,8],[0,1,0,8],[1,1,1,2],[1,3,1,8],[2,1,2,2],[2,3,2,8],[11,1,11,8],[30,1,32,2],[62,10,67,10],[35,1,35,8],[50,1,50,8],[40,1,42,2],[62,6,62,7],[19,10,19,11],[64,8,64,9],[65,8,65,9],[65,6,65,7],[66,1,66,9],[49,1,49,2],[23,12,24,12],[25,12,27,12],[30,12,32,12],[33,12,34,12],[36,12,37,12],[40,12,42,12],[43,12,44,12],[62,8,62,9],[51,12,53,12],[54,12,58,12]]}
[null,"Identifications"]
[null,"Diplôme :",null,"Baccalauréat professionnel « Aéronautique»"]
[null,"Option :  ",null,{"$f":"CONCATENATE(Identification!B9)","v":"Sélectionner une option à partir de la liste déroulante"}]
[null,"Epreuve :",null,"Épreuve E3 (Sous-épreuve E31) : Inspection et relation en entreprise"]
[null,"Établissement :",null,{"$f":"CONCATENATE(Identification!B4)","v":""}]
[null,"Session : ",null,{"$f":"CONCATENATE(Identification!B10)","v":""}]
[null,"Nom du candidat :",null,{"$f":"CONCATENATE(Identification!B5)","v":""}]
[null,"Prénom du candidat :",null,{"$f":"CONCATENATE(Identification!B6)","v":""}]
[null,"Date de l'évaluation :"]
[null,"Lieu de l'évaluation (entreprise ou centre de formation) :"]
[]
[null,"Description sommaire du travail demandé (le sujet complet doit être joint à cette fiche) :"]
[]
[]
[]
[]
[]
[]
[]
[]
[null,"Compétences évaluées",null,"Indicateurs de performance                              évaluation","non",0,0.33333333333333331,0.66666666666666663,"3/3",null,null,"Poids de la compétence","Notes","Éval","Notes"]
["Partie 1 - Inspection","C09 - Inspecter un aéronef ou une partie d'aéronef",null,null,null,null,null,null,null,null,null,0.3,{"$f":"(SUM(M23:M35))","v":0},{"$f":"SUM(N23:N35)","v":15},{"$f":"SUM(O23:O35)","v":0},null,null,{"$f":"SUM(R23:R45)","v":0},{"$f":"IF(R22=22,1,0)","v":0}]
[null,"-      Mettre en énergie et configurer :",null," -  Respect des procédures opératoires ",null,null,null,null,null,{"$f":"IF(Q23>1,\"◄\",(IF(Q23<1,\"◄\",\"\")))","v":"◄"},null,1,{"$f":"SUM(O23)","v":0},{"$f":"IF(E23<>\"\",0,L23)","v":1},{"$f":"(IF(G23<>\"\",1/3,0)+IF(H23<>\"\",2/3,0)+IF(I23<>\"\",1,0))*L$22*20*N23/SUM(N$23:N$35)","v":0},null,{"$f":"COUNTA(E23:I23)","v":0},{"$f":"COUNTBLANK(J23)","v":0}]
[null,"-      Configurer les moyens d’inspection.",null,"- Choix correct des outils d’inspection.",null,null,null,null,null,{"$f":"IF(Q24>1,\"◄\",(IF(Q24<1,\"◄\",\"\")))","v":"◄"},null,1,{"$f":"SUM(O24:O25)","v":0},{"$f":"IF(E24<>\"\",0,L24)","v":1},{"$f":"(IF(G24<>\"\",1/3,0)+IF(H24<>\"\",2/3,0)+IF(I24<>\"\",1,0))*L$22*20*N24/SUM(N$23:N$35)","v":0},null,{"$f":"COUNTA(E24:I24)","v":0},{"$f":"COUNTBLANK(J24)","v":0}]
[null,null,null," -  Respect des procédures opératoires ",null,null,null,null,null,"◄",null,1,null,1,0,null,0,0]
[null," -      Réaliser les inspections - Identifier les éventuelles non-conformités.",null," -  Respect des procédures opératoires ",null,null,null,null,null,"◄",null,1,{"$f":"SUM(O26:O28)","v":0},1,0,null,0,0]
[null,null,null,"-      Exhaustivité de l’identification des non-conformités.",null,null,null,null,null,"◄",null,2,null,2,0,null,0,0]
[null,null,null,"-   Respect des temps alloués.",null,null,null,null,null,"◄",null,1,null,1,0,null,0,0]
[null,"-      Caractériser les non-conformités.",null,"-      Exactitude de la caractérisation des non-conformités constatées. ",null,null,null,null,null,"◄",null,2,{"$f":"SUM(O29)","v":0},2,0,null,0,0]
[null,"-      Identifier, si nécessaire, la procédure corrective à mettre en œuvre.",null,"-      Exactitude de l’identification de la procédure corrective à mettre en œuvre.",null,null,null,null,null,"◄",null,1,{"$f":"SUM(O30)","v":0},1,0,null,0,0]
[null,"-      Remettre l’aéronef, la partie d’aéronef ou l’équipement en situation initiale (avant inspection).",null,"-      Effectivité de la remise en situation initiale de l’aéronef, de la partie d’aéronef ou de l’équipement.",null,null,null,null,null,{"$f":"IF(Q31>1,\"◄\",(IF(Q31<1,\"◄\",\"\")))","v":"◄"},null,1,{"$f":"SUM(O31:O33)","v":0},{"$f":"IF(E31<>\"\",0,L31)","v":1},0,null,{"$f":"COUNTA(E31:I31)","v":0},{"$f":"COUNTBLANK(J31)","v":0}]
[null,null,null,"-      Zone de travail exempte de tout corps étranger.",null,null,null,null,null,{"$f":"IF(Q32>1,\"◄\",(IF(Q32<1,\"◄\",\"\")))","v":"◄"},null,1,null,{"$f":"IF(E32<>\"\",0,L32)","v":1},0,null,{"$f":"COUNTA(E32:I32)","v":0},{"$f":"COUNTBLANK(J32)","v":0}]
[null,null,null,"-      Outils et outillages nettoyés et rangés.",null,null,null,null,null,{"$f":"IF(Q33>1,\"◄\",(IF(Q33<1,\"◄\",\"\")))","v":"◄"},null,1,null,{"$f":"IF(E33<>\"\",0,L33)","v":1},0,null,{"$f":"COUNTA(E33:I33)","v":0},{"$f":"COUNTBLANK(J33)","v":0}]
[null,"-      Renseigner les documents de traçabilité des inspections.",null,"-      Documents de traçabilité correctement remplis et attestés.",null,null,null,null,null,{"$f":"IF(Q34>1,\"◄\",(IF(Q34<1,\"◄\",\"\")))","v":"◄"},null,1,{"$f":"SUM(O34:O35)","v":0},{"$f":"IF(E34<>\"\",0,L34)","v":1},0,null,{"$f":"COUNTA(E34:I34)","v":0},{"$f":"COUNTBLANK(J34)","v":0}]
[null,null,null,"-      Dossier d’inspection remis au bon service.",null,null,null,null,null,"◄",null,1,null,1,0,null,0,0]
[null,"C10 - Adapter son attitude professionnelle aux exigences de l'entreprise aéronautique",null,null,null,null,null,null,null,null,null,0.2,{"$f":"(SUM(M37:M45))","v":0},{"$f":"SUM(N37:N45)","v":11},{"$f":"SUM(O37:O45)","v":0}]
[null,"-      Avoir une attitude responsable au regard des exigences de l’industrie et de l’exploitation des aéronefs (sécurité des vols, navigabilité des aéronefs, développement durable…).",null,"-      Adéquation de son attitude à la situation.",null,null,null,null,null,"◄",null,1,{"$f":"SUM(O37:O38)","v":0},1,{"$f":"(IF(G37<>\"\",1/3,0)+IF(H37<>\"\",2/3,0)+IF(I37<>\"\",1,0))*L$36*20*N37/SUM(N$37:N$45)","v":0},null,0,0]
[null,null,null,"-      Exhaustivité des risques identifiés au regard d’une situation professionnelle donnée.",null,null,null,null,null,{"$f":"IF(Q38>1,\"◄\",(IF(Q38<1,\"◄\",\"\")))","v":"◄"},null,1,null,{"$f":"IF(E38<>\"\",0,L38)","v":1},{"$f":"(IF(G38<>\"\",1/3,0)+IF(H38<>\"\",2/3,0)+IF(I38<>\"\",1,0))*L$36*20*N38/SUM(N$37:N$45)","v":0},null,{"$f":"COUNTA(E38:I38)","v":0},{"$f":"COUNTBLANK(J38)","v":0}]
[null,"-      Apprécier et limiter son intervention à son propre champ de qualification.",null,"-      Adéquation entre les exigences liées à l’intervention et ses qualifications et habilitations.",null,null,null,null,null,"◄",null,2,{"$f":"SUM(O39)","v":0},2,0,null,0,0]
[null,"-      Respecter les procédures.",null,"-      Rigueur dans l’application des procédures et des consignes (y compris celles relatives à la prévention de la santé et à l’environnement).",null,null,null,null,null,"◄",null,2,{"$f":"SUM(O40)","v":0},2,0,null,0,0]
[null,"-      Appliquer la démarche qualité de l’entreprise et les règles liées aux facteurs humains et à la prévention des risques.",null,"-      Compréhension et appropriation des indicateurs disponibles liés à la qualité, aux facteurs humains, à la sécurité, aux coûts, aux délais…",null,null,null,null,null,"◄",null,1,{"$f":"SUM(O41:O43)","v":0},1,0,null,0,0]
[null,null,null,"-      Exhaustivité du repérage des écarts liés à son activité.",null,null,null,null,null,"◄",null,1,null,1,0,null,0,0]
[null,null,null,"-      Effectivité et rigueur de la contribution au système qualité et au système de retour d’expérience de l’organisme.",null,null,null,null,null,"◄",null,1,null,1,0,null,0,0]
[null,"-      Contribuer à l’amélioration continue de l’entreprise.",null,"-      Identification crédible des marges de progrès.",null,null,null,null,null,"◄",null,1,{"$f":"SUM(O44:O45)","v":0},1,0,null,0,0]
[null,null,null,"-   Propositions d’amélioration crédibles.",null,null,null,null,null,"◄",null,1,null,1,0,null,0,0]
[null,null,null,null,"Taux d'indicateurs pour C09",null,{"$f":"N22/SUM(L23:L35)","v":1}]
[null,null,null,null,"Taux d'indicateurs pour C10",null,{"$f":"N36/SUM(L37:L45)","v":1}]
[null,null,null,null,"Note brute obtenue par calcul automatique (Attention si le taux de couverture des compétences est inférieur à 75%, la note n'est pas recevable) :",null,{"$f":"IF(OR(S22=0,G46<0.75,G47<0.75),\"!\",(M36+M22))","v":"!"},null,"/10"]
[]
[null,"Compétences évaluées",null,"Indicateurs de performance                              évaluation","non",0,0.33333333333333331,0.66666666666666663,"3/3",null,null,"Poids de la compétence","Notes","Éval","Notes"]
["Partie 2 - Communication d'informations","C11 - Communiquer des informations dans un contexte aéronautique ",null,null,null,null,null,null,null,null,null,0.5,{"$f":"(SUM(M52:M61))","v":0},{"$f":"SUM(N52:N61)","v":12},{"$f":"SUM(O52:O61)","v":0},null,null,{"$f":"SUM(R52:R61)","v":0},{"$f":"IF(R51=10,1,0)","v":0}]
[null," -  Décoder des informations ",null,"-      Exactitude du décodage.",null,null,null,null,null,{"$f":"IF(Q52>1,\"◄\",(IF(Q52<1,\"◄\",\"\")))","v":"◄"},null,1,{"$f":"SUM(O52:O54)*2","v":0},{"$f":"IF(E52<>\"\",0,L52)","v":1},{"$f":"(IF(G52<>\"\",1/3,0)+IF(H52<>\"\",2/3,0)+IF(I52<>\"\",1,0))*L$51*10*N52/SUM(N$52:N$61)","v":0},null,{"$f":"COUNTA(E52:I52)","v":0},{"$f":"COUNTBLANK(J52)","v":0}]
[null,null,null,"-      Justesse de l’identification des codes utilisés.",null,null,null,null,null,{"$f":"IF(Q53>1,\"◄\",(IF(Q53<1,\"◄\",\"\")))","v":"◄"},null,1,null,{"$f":"IF(E53<>\"\",0,L53)","v":1},{"$f":"(IF(G53<>\"\",1/3,0)+IF(H53<>\"\",2/3,0)+IF(I53<>\"\",1,0))*L$51*10*N53/SUM(N$52:N$61)","v":0},null,{"$f":"COUNTA(E53:I53)","v":0},{"$f":"COUNTBLANK(J53)","v":0}]
[null,null,null,"-      Exactitude des actions engagées au regard du décodage des informations.",null,null,null,null,null,"◄",null,1,null,1,0,null,0,0]
[null,"-      Communiquer des informations oralement à ses collègues, à sa hiérarchie, aux pilotes, aux aiguilleurs, aux contrôleurs et autres tiers y compris en anglais technique.",null,"-      Choix correct du destinataire et du moment de la transmission des informations et/ou du message.",null,null,null,null,null,"◄",null,1,{"$f":"SUM(O55:O59)*2","v":0},1,0,null,0,0]
[null,null,null,"-      Adéquation du langage utilisé à l’interlocuteur. ",null,null,null,null,null,"◄",null,1,null,1,0,null,0,0]
[null,null,null,"-      Univocité de la transmission des informations et/ou du message.",null,null,null,null,null,"◄",null,1,null,1,0,null,0,0]
[null,null,null,"-      Effectivité de la vérification de la compréhension des informations transmises et reçues.",null,null,null,null,null,"◄",null,1,null,1,0,null,0,0]
[null,null,null,"-      Clarté et concision du message.",null,null,null,null,null,"◄",null,1,null,1,0,null,0,0]
[null,"-      Rédiger une note, un compte-rendu.",null,"-      Clarté et concision du message.",null,null,null,null,null,{"$f":"IF(Q60>1,\"◄\",(IF(Q60<1,\"◄\",\"\")))","v":"◄"},null,3,{"$f":"SUM(O60)*2","v":0},{"$f":"IF(E60<>\"\",0,L60)","v":3},0,null,0,0]
[null,"-      Renseigner les fiches et documents de traçabilité en anglais technique et en français.",null,"-   Exactitude des informations reportées sur les documents de traçabilité,",null,null,null,null,null,{"$f":"IF(Q61>1,\"◄\",(IF(Q61<1,\"◄\",\"\")))","v":"◄"},null,1,{"$f":"SUM(O61)*2","v":0},{"$f":"IF(E61<>\"\",0,L61)","v":1},0,null,0,0]
[null,null,null,null,"Taux d'indicateurs pour C11",null,{"$f":"N51/SUM(L52:L61)","v":1}]
[null,null,null,null,"Note brute obtenue par calcul automatique (Attention si le taux de couverture des compétences est inférieur à 75%, le sujet n'est pas recevable) :",null,{"$f":"IF(OR(S51=0,G62<0.75),\"!\",(M51))","v":"!"},null,"/10"]
[]
[null,null,null,null,"Moyenne des notes obtenues aux deux parties :",null,{"$f":"SUM(G48,G63)","v":0},null," /20"]
[null,null,null,null,"Note sur 20 proposée au jury* :",null,null,null,"/20"]
[null,"ATTENTION, si le symbole ◄ apparait dans cette colonne c'est qu'il y a plus d'une valeur donnée à l'indicateur, il faut alors choisir laquelle retenir, ou alors que l'indicateur est coché \"non évalué\""]
[null,"* La note proposée, arrondie au demi point, est décidée par les évaluateurs à partir de la note brute qui peut être modulée de + 0 à + 1 point en fonction de la réactivité du candidat ou de tout autre attitude professionnelle positive observée."]
[]
[null,"Appréciation globale",null,{"$f":"(IF(R63>0,\"Attention erreur de saisie ! Voir ci-dessus\",\"\"))","v":""}]
[]
[]
[null,"Noms des Correcteurs",null,"Signatures",null,"Date"]
[]
[]
[]
[null,null,null,null,null,{"$f":"TODAY()","v":"2015-01-07"}]

{"sheet":"BAC AV SY ST E32","index":8,"n_rows":69,"n_cols":18,"rows_kept":69,"cut":false,"hidden":true,"merged":[[57,5,57,6],[0,0,0,7],[1,0,1,1],[1,2,1,7],[2,0,2,1],[2,2,2,7],[3,0,3,1],[3,2,3,7],[4,0,4,1],[4,2,4,7],[5,0,5,1],[5,2,5,7],[6,0,6,1],[6,2,6,7],[21,0,21,7],[22,0,22,1],[56,5,56,6],[19,10,19,11],[20,0,20,1],[23,11,25,11],[36,11,42,11],[43,11,46,11],[37,0,37,1],[38,0,38,1],[35,0,35,1],[36,0,36,1],[30,0,30,1],[31,0,31,1],[32,0,32,1],[7,0,7,1],[7,2,7,7],[8,0,8,1],[8,2,8,7],[9,0,9,1],[9,2,9,7],[10,0,10,7],[11,0,11,7],[12,0,18,7],[29,0,29,1],[23,0,25,1],[26,0,26,1],[27,0,27,1],[28,0,28,1],[34,0,34,1],[33,0,33,7],[48,11,49,11],[46,0,46,1],[45,0,45,1],[47,0,47,1],[48,0,49,1],[52,11,53,11],[65,0,65,1],[65,4,65,7],[53,0,53,1],[39,0,39,1],[44,0,44,1],[43,0,43,1],[50,0,50,1],[52,0,52,1],[51,0,51,1],[58,0,58,8],[59,0,59,8],[54,5,54,8],[55,5,55,8],[56,7,56,8],[57,7,57,8],[66,0,66,1],[67,0,67,1],[68,0,68,1],[68,4,68,7],[61,0,61,1],[61,2,61,7],[62,0,62,7],[64,0,64,1],[64,4,64,7]]}
["Identifications"]
["Diplôme :",null,"Baccalauréat professionnel « Aéronautique»"]
["Option :  ",null,{"$f":"CONCATENATE(Identification!B9)","v":"Sélectionner une option à partir de la liste déroulante"}]
["Epreuve :",null,"Épreuve E3 (Unité U32) : Montage - Démontage"]
["Établissement :",null,{"$f":"CONCATENATE(Identification!B4)","v":""}]
["Session : ",null,{"$f":"CONCATENATE(Identification!B10)","v":""}]
["Nom du candidat :",null,{"$f":"CONCATENATE(Identification!B5)","v":""}]
["Prénom du candidat :",null,{"$f":"CONCATENATE(Identification!B6)","v":""}]
["Date de l'évaluation :"]
["Lieu de l'évaluation (entreprise ou centre de formation) :"]
[]
["Description sommaire du travail demandé (le sujet complet doit être joint à cette fiche) :"]
[]
[]
[]
[]
[]
[]
[]
[]
["Compétences évaluées",null,"Indicateurs de performance                              évaluation","non",0,0.33333333333333331,0.66666666666666663,"3/3",null,null,"Poids de la compétence","Notes","Éval","Notes"]
["C02 - Préparer une intervention",null,null,null,null,null,null,null,null,null,0.3,{"$f":"(SUM(L23:L33))","v":0},{"$f":"SUM(M23:M33)","v":13},{"$f":"SUM(N23:N33)","v":0},null,null,{"$f":"SUM(Q23:Q54)","v":0},{"$f":"IF(Q22=31,1,0)","v":0}]
["-      Localiser la zone d’intervention",null,"-      Détermination exacte de la zone d’intervention.",null,null,null,null,null,{"$f":"IF(P23>1,\"◄\",(IF(P23<1,\"◄\",\"\")))","v":"◄"},null,1,{"$f":"SUM(N23)","v":0},{"$f":"IF(D23<>\"\",0,K23)","v":1},{"$f":"(IF(F23<>\"\",1/3,0)+IF(G23<>\"\",2/3,0)+IF(H23<>\"\",1,0))*K$22*20*M23/SUM(M$23:M$33)","v":0},null,{"$f":"COUNTA(D23:H23)","v":0},{"$f":"COUNTBLANK(I23)","v":0}]
["-      Préparer la zone d'intervention (moyens d’accès et mise en sécurité).",null,"-      Délimitation optimisée de la zone à sécuriser.",null,null,null,null,null,{"$f":"IF(P24>1,\"◄\",(IF(P24<1,\"◄\",\"\")))","v":"◄"},null,1,{"$f":"SUM(N24:N26)","v":0},{"$f":"IF(D24<>\"\",0,K24)","v":1},{"$f":"(IF(F24<>\"\",1/3,0)+IF(G24<>\"\",2/3,0)+IF(H24<>\"\",1,0))*K$22*20*M24/SUM(M$23:M$33)","v":0},null,{"$f":"COUNTA(D24:H24)","v":0},{"$f":"COUNTBLANK(I24)","v":0}]
[null,null,"-      Préparation adaptée de la zone d’intervention.",null,null,null,null,null,"◄",null,1,null,1,0,null,0,0]
[null,null,"-      Sécurisation conforme et adaptée de la zone d’intervention.",null,null,null,null,null,"◄",null,1,null,1,0,null,0,0]
["-      Rassembler les ensembles, sous-ensembles, éléments, composants, consommables nécessaires à l’intervention.",null,"-      Rassemblement exhaustif des ensembles, sous-ensembles, éléments, composants, consommables nécessaires à l’intervention.",null,null,null,null,null,"◄",null,1,{"$f":"SUM(N27)","v":0},1,0,null,0,0]
["-      Vérifier l’état des ensembles, sous-ensembles, éléments, composants et consommables nécessaires à l’intervention.",null," -  Vérification correcte des états.",null,null,null,null,null,"◄",null,1,0,1,0,null,0,0]
["-      Rassembler les moyens nécessaires à l’intervention.",null,"-      Présence effective de tous les moyens nécessaires à l’intervention.",null,null,null,null,null,"◄",null,1,0,1,0,null,0,0]
["-      Vérifier la conformité des moyens.",null,"-      Vérification correcte de la conformité des moyens.",null,null,null,null,null,{"$f":"IF(P30>1,\"◄\",(IF(P30<1,\"◄\",\"\")))","v":"◄"},null,1,0,{"$f":"IF(D30<>\"\",0,K30)","v":1},0,null,{"$f":"COUNTA(D30:H30)","v":0},{"$f":"COUNTBLANK(I30)","v":0}]
["-      Contrôler la validité des ensembles, sous-ensembles, éléments, composants, consommables nécessaires à l’intervention.",null,"-      Identification correcte de la validité des ensembles, sous-ensembles, éléments, composants, consommables nécessaires à l’intervention.",null,null,null,null,null,{"$f":"IF(P31>1,\"◄\",(IF(P31<1,\"◄\",\"\")))","v":"◄"},null,2,0,{"$f":"IF(D31<>\"\",0,K31)","v":2},0,null,{"$f":"COUNTA(D31:H31)","v":0},{"$f":"COUNTBLANK(I31)","v":0}]
["-      Organiser et mettre en sécurité l’espace de travail.",null,"-      Organisation et sécurisation adaptées de l’espace de travail.",null,null,null,null,null,{"$f":"IF(P32>1,\"◄\",(IF(P32<1,\"◄\",\"\")))","v":"◄"},null,2,0,{"$f":"IF(D32<>\"\",0,K32)","v":2},0,null,{"$f":"COUNTA(D32:H32)","v":0},{"$f":"COUNTBLANK(I32)","v":0}]
["-      Configurer les ensembles, sous-ensembles, éléments et outillages dans l’environnement de travail.",null,"-  Configuration correcte des ensembles, sous-ensembles, éléments et outillages dans l’environnement de travail.",null,null,null,null,null,"◄",null,1,0,1,0,null,0,0]
["C03 - Intégrer, poser, déposer, assembler et désassembler des sous ensembles d'aéronefs",null,null,null,null,null,null,null,null,null,0.7,{"$f":"(SUM(L35:L54))","v":0},{"$f":"SUM(M35:M54)","v":22},{"$f":"SUM(N35:N54)","v":0}]
["-  Vérifier la mise hors énergies, relativement à une intervention.   Sécuriser une zone d’intervention (ex : CDCCL) ou un équipement (ex : ESD)",null,"-      Sécurisation effective du support et de la zone d’intervention.",null,null,null,null,null,"◄",null,2,{"$f":"SUM(N35)","v":0},2,{"$f":"(IF(F35<>\"\",1/3,0)+IF(G35<>\"\",2/3,0)+IF(H35<>\"\",1,0))*K$34*20*M35/SUM(M$35:M$54)","v":0},null,0,0]
["-      Installer au regard des exigences des dispositifs de levage et de manutention.",null,"-      Respect des modes opératoires.",null,null,null,null,null,"◄",null,1,{"$f":"SUM(N36)","v":0},1,{"$f":"(IF(F36<>\"\",1/3,0)+IF(G36<>\"\",2/3,0)+IF(H36<>\"\",1,0))*K$34*20*M36/SUM(M$35:M$54)","v":0},null,0,0]
["-      Déconnecter, désaccoupler et protéger des interfaces d’une partie d’aéronef objet de l’intervention.",null,"-      Ordre opératoire de démontage respecté.",null,null,null,null,null,"◄",null,1,{"$f":"SUM(N37:N43)","v":0},1,0,null,0,0]
["-      Retirer des éléments de fixation.",null,"-      Repérage rigoureux des éléments déposés.",null,null,null,null,null,"◄",null,1,null,1,0,null,0,0]
["-      Démonter et repérer les composants constitutifs d’un équipement.",null,"-      Respect des modes opératoires.",null,null,null,null,null,"◄",null,1,null,1,0,null,0,0]
["-      Identifier et conditionner des parties déposées.",null,"-      Identification et conditionnement corrects des éléments déposés.",null,null,null,null,null,"◄",null,1,null,1,0,null,0,0]
[null,null,"-      Respect des temps alloués.",null,null,null,null,null,"◄",null,1,null,1,0,null,0,0]
[null,null,"-      Outils et outillages nettoyés, inventoriés et rangés.",null,null,null,null,null,{"$f":"IF(P42>1,\"◄\",(IF(P42<1,\"◄\",\"\")))","v":"◄"},null,1,null,{"$f":"IF(D42<>\"\",0,K42)","v":1},0,null,{"$f":"COUNTA(D42:H42)","v":0},{"$f":"COUNTBLANK(I42)","v":0}]
[null,null,"-      Exigences de qualité respectées.",null,null,null,null,null,"◄",null,1,null,1,0,null,0,0]
["-      Connecter et accoupler des interfaces.",null,"-      Ordre opératoire de montage respecté.",null,null,null,null,null,"◄",null,2,{"$f":"SUM(N44:N47)","v":0},2,0,null,0,0]
["-      Préparer, positionner et fixer des parties d’aéronef à poser.",null,"-      Respect des temps alloués.",null,null,null,null,null,"◄",null,1,null,1,0,null,0,0]
["-      Monter des composants.",null,"-      Exigences de qualité respectées.",null,null,null,null,null,"◄",null,1,null,1,0,null,0,0]
["-  Interposer et appliquer tout type de mastic, vernis, colles, …. .                                              -  Effectuer une métallisation sur élément métallique et/ou composite.",null,"-      Outils et outillages nettoyés, inventoriés et rangés.",null,null,null,null,null,"◄",null,1,null,1,0,null,0,0]
["-      Vérifier visuellement une zone de dépose.",null,"-      Effectivité de la vérification visuelle de la zone.",null,null,null,null,null,"◄",null,1,{"$f":"SUM(N48)","v":0},1,0,null,0,0]
["-      Nettoyer et contrôler les éléments objets de l’intervention.",null,"-      Nettoyage et contrôle adaptés des éléments déposés.",null,null,null,null,null,"◄",null,1,{"$f":"SUM(N49:N50)","v":0},1,0,null,0,0]
[null,null,"-  Respect des règles d’hygiène, de sécurité et de protection des biens, des personnes et de l’environnement.",null,null,null,null,null,"◄",null,1,null,1,0,null,0,0]
["-      Vérifier un équipement à l’issue de son montage.",null,"-      Vérification effective de l’équipement à l’issue de son montage.",null,null,null,null,null,"◄",null,1,{"$f":"SUM(N51)","v":0},1,0,null,0,0]
["-      Conditionner un équipement.",null,"-      Conditionnement correct de l’équipement.",null,null,null,null,null,"◄",null,1,{"$f":"SUM(N52)","v":0},1,0,null,0,0]
["-  Remettre une zone d’intervention dans les conditions requises.                                       -  Rendre la zone de pose propre et exempte de corps étrangers.",null,"-      Zone de travail propre et exempte de tout corps étranger.",null,null,null,null,null,"◄",null,1,{"$f":"SUM(N53:N54)","v":0},1,0,null,0,0]
["-      Renseigner les documents de traçabilité.",null,"-      Documents de traçabilité correctement renseignés.",null,null,null,null,null,"◄",null,1,null,1,0,null,0,0]
[null,null,null,"Taux d'indicateurs pour C02",null,{"$f":"M22/SUM(K23:K33)","v":1}]
[null,null,null,"Taux d'indicateurs pour C03",null,{"$f":"M34/SUM(K35:K54)","v":1}]
[null,null,null,"Note brute obtenue par calcul automatique (Attention si le taux de couverture des compétences est inférieur à 75%, la note n'est pas recevable) :",null,{"$f":"IF(OR(R22=0,F55<0.75,F56<0.75),\"!\",(L34+L22))","v":"!"},null," /20"]
[null,null,null,"Note sur 20 proposée au jury* :",null,null,null,"/20"]
["ATTENTION, si le symbole ◄ apparait dans cette colonne c'est qu'il y a plus d'une valeur donnée à l'indicateur, il faut alors choisir laquelle retenir, ou alors que l'indicateur est coché \"non évalué\""]
["* La note proposée, arrondie au demi point, est décidée par les évaluateurs à partir de la note brute qui peut être modulée de + 0 à + 1 point en fonction de la réactivité du candidat ou de tout autre attitude professionnelle positive observée."]
[]
["Appréciation globale"]
[]
[]
["Noms des Correcteurs",null,"Signatures",null,"Date"]
[]
[]
[]
[null,null,null,null,{"$f":"TODAY()","v":"2015-01-07"}]

{"sheet":"BAC AV ST E33","index":9,"n_rows":56,"n_cols":39,"rows_kept":56,"cut":false,"hidden":true,"merged":[[46,0,46,8],[41,5,41,8],[42,5,42,8],[43,7,43,8],[44,7,44,8],[43,5,43,6],[44,5,44,6],[0,0,0,7],[1,0,1,1],[1,2,1,7],[2,0,2,1],[2,2,2,7],[3,0,3,1],[3,2,3,7],[4,0,4,1],[4,2,4,7],[5,0,5,1],[5,2,5,7],[6,0,6,1],[6,2,6,7],[7,0,7,1],[7,2,7,7],[8,0,8,1],[8,2,8,7],[9,0,9,1],[9,2,9,7],[10,0,10,7],[11,0,11,7],[12,0,18,7],[19,9,19,10],[20,0,20,1],[21,0,21,7],[40,0,40,1],[22,0,22,1],[23,0,23,1],[26,0,26,1],[27,0,27,1],[24,0,25,1],[31,0,31,1],[32,0,32,1],[28,0,28,1],[33,0,33,1],[30,0,30,1],[29,0,29,7],[34,0,34,1],[53,0,53,1],[54,0,54,1],[55,0,55,1],[55,4,55,7],[48,0,48,1],[48,2,48,7],[49,0,49,7],[51,4,51,7],[52,0,52,1],[51,0,51,1],[52,4,52,7],[42,9,45,9],[35,0,37,1],[38,0,39,1],[24,11,25,11],[30,11,31,11],[35,11,37,11],[38,11,39,11],[45,0,45,8]]}
["Identifications"]
["Diplôme :",null,"Baccalauréat professionnel « Aéronautique»"]
["Option :  ",null,{"$f":"CONCATENATE(Identification!B9)","v":"Sélectionner une option à partir de la liste déroulante"}]
["Epreuve :",null,"Épreuve E3 (Sous-épreuve E33) : Essais et réglages"]
["Établissement :",null,{"$f":"CONCATENATE(Identification!B4)","v":""}]
["Session : ",null,{"$f":"CONCATENATE(Identification!B10)","v":""}]
["Nom du candidat :",null,{"$f":"CONCATENATE(Identification!B5)","v":""}]
["Prénom du candidat :",null,{"$f":"CONCATENATE(Identification!B6)","v":""}]
["Date de l'évaluation :"]
["Lieu de l'évaluation (entreprise ou centre de formation) :"]
[]
["Description sommaire du travail demandé (le sujet complet doit être joint à cette fiche) :"]
[]
[]
[]
[]
[]
[]
[]
[]
["Compétences évaluées",null,"Indicateurs de performance                                      évaluation","non",0,0.33333333333333331,0.66666666666666663,"3/3",null,null,"Poids de la compétence","Notes","Éval","Notes"]
["C04 - Régler un sous-ensemble",null,null,null,null,null,null,null,null,null,0.4,{"$f":"(SUM(L23:L29))","v":0},{"$f":"SUM(M23:M29)","v":12},{"$f":"SUM(N23:N29)","v":0},null,null,{"$f":"SUM(Q23:Q41)","v":0},{"$f":"IF(Q22=18,1,0)","v":0},null,null,null,null,null,null,null,null,null,null,null,null,null,null,null,null,null,null,null,null,40]
["-    Positionner, régler et mettre en œuvre les outillages.                                                                 -  Positionner le sous-ensemble en utilisant des éléments réglables : bielles réglables, câbles, excentriques, cales pelables …",null,"-      Réglage réalisé conformément à la procédure.",null,null,null,null,null,{"$f":"IF(P23>1,\"◄\",(IF(P23<1,\"◄\",\"\")))","v":"◄"},null,5,{"$f":"SUM(N23)","v":0},{"$f":"IF(D23<>\"\",0,K23)","v":5},{"$f":"(IF(F23<>\"\",1/3,0)+IF(G23<>\"\",2/3,0)+IF(H23<>\"\",1,0))*K$22*20*M23/SUM(M$23:M$29)","v":0},null,{"$f":"COUNTA(D23:H23)","v":0},{"$f":"COUNTBLANK(I23)","v":0},null,null,null,null,null,null,null,null,null,null,null,null,null,null,null,null,null,null,null,null,null,50]
["-      Connecter et mettre en œuvre des bancs (hydrauliques, pneumatiques, électriques, bancs-test).",null,"-      Outils et outillages nettoyés, inventoriés et rangés.",null,null,null,null,null,{"$f":"IF(P24>1,\"◄\",(IF(P24<1,\"◄\",\"\")))","v":"◄"},null,1,{"$f":"SUM(N24)","v":0},{"$f":"IF(D24<>\"\",0,K24)","v":1},{"$f":"(IF(F24<>\"\",1/3,0)+IF(G24<>\"\",2/3,0)+IF(H24<>\"\",1,0))*K$22*20*M24/SUM(M$23:M$29)","v":0},null,{"$f":"COUNTA(D24:H24)","v":0},{"$f":"COUNTBLANK(I24)","v":0}]
["-      Vérifier les spécifications de réglage : jeux, débattements, courses, cotes, efforts …",null,"-      Exigences de qualité respectées.",null,null,null,null,null,"◄",null,1,{"$f":"SUM(N25:N26)","v":0},1,0,null,0,0,null,null,null,null,null,null,null,null,null,null,null,null,null,null,null,null,null,null,null,null,null,5]
[null,null,"-      Zone de travail propre et exempte de tout corps étranger.",null,null,null,null,null,"◄",null,1,null,1,0,null,0,0,null,null,null,null,null,null,null,null,null,null,null,null,null,null,null,null,null,null,null,null,null,5]
["-      Assurer la permanence du réglage du sous-ensemble.",null,"-  Respect des règles d’hygiène, de sécurité et de protection des biens, des personnes et de l’environnement.",null,null,null,null,null,"◄",null,1,{"$f":"SUM(N27)","v":0},1,0,null,0,0,null,null,null,null,null,null,null,null,null,null,null,null,null,null,null,null,null,null,null,null,null,5]
["-      Renseigner les documents de traçabilité.",null,"-      Documents de traçabilité correctement renseignés.",null,null,null,null,null,"◄",null,2,{"$f":"SUM(N28)","v":0},2,0,null,0,0,null,null,null,null,null,null,null,null,null,null,null,null,null,null,null,null,null,null,null,null,null,15]
["-   Respecter les temps alloués.",null,"-  Respect des temps alloués.",null,null,null,null,null,"◄",null,1,{"$f":"SUM(N29)","v":0},1,0,null,0,0,null,null,null,null,null,null,null,null,null,null,null,null,null,null,null,null,null,null,null,null,null,10]
["C05 - Effectuer des essais, des diagnostics",null,null,null,null,null,null,null,null,null,0.6,{"$f":"(SUM(L31:L41))","v":0},{"$f":"SUM(M31:M41)","v":14},{"$f":"SUM(N31:N41)","v":0},null,null,null,null,null,null,null,null,null,null,null,null,null,null,null,null,null,null,null,null,null,null,null,null,60]
["-   Mettre en énergie  l’aéronef ou l’équipement (options avionique et systèmes) ou la partie d’aéronef (toutes options).",null,"-      Respect des procédures opératoires (mise en énergie, configuration de l’objet, conduite de l’essai).",null,null,null,null,null,{"$f":"IF(P31>1,\"◄\",(IF(P31<1,\"◄\",\"\")))","v":"◄"},null,1,{"$f":"SUM(N31:N32)","v":0},{"$f":"IF(D31<>\"\",0,K31)","v":1},{"$f":"(IF(F31<>\"\",1/3,0)+IF(G31<>\"\",2/3,0)+IF(H31<>\"\",1,0))*K$30*20*M31/SUM(M$31:M$41)","v":0},null,{"$f":"COUNTA(D31:H31)","v":0},{"$f":"COUNTBLANK(I31)","v":0},null,null,null,null,null,null,null,null,null,null,null,null,null,null,null,null,null,null,null,null,null,10]
[" -   Configurer l’aéronef ou la partie d’aéronef ou l’équipement objet de l’essai.             - Configurer les moyens d’essai.",null,"-      Choix correct des outils de diagnostic et de contrôle.",null,null,null,null,null,{"$f":"IF(P32>1,\"◄\",(IF(P32<1,\"◄\",\"\")))","v":"◄"},null,1,null,{"$f":"IF(D32<>\"\",0,K32)","v":1},{"$f":"(IF(F32<>\"\",1/3,0)+IF(G32<>\"\",2/3,0)+IF(H32<>\"\",1,0))*K$30*20*M32/SUM(M$31:M$41)","v":0},null,{"$f":"COUNTA(D32:H32)","v":0},{"$f":"COUNTBLANK(I32)","v":0},null,null,null,null,null,null,null,null,null,null,null,null,null,null,null,null,null,null,null,null,null,5]
["-      Réaliser des essais.",null,"-      Exactitude des relevés  d’essai, de contrôle et de mesure.",null,null,null,null,null,"◄",null,2,{"$f":"SUM(N33)","v":0},2,0,null,0,0,null,null,null,null,null,null,null,null,null,null,null,null,null,null,null,null,null,null,null,null,null,20]
["-      Caractériser les écarts.",null,"-      Exactitude de la caractérisation des écarts constatés. ",null,null,null,null,null,"◄",null,2,{"$f":"SUM(N34)","v":0},2,0,null,0,0,null,null,null,null,null,null,null,null,null,null,null,null,null,null,null,null,null,null,null,null,null,15]
["-      Identifier, si nécessaire, la procédure corrective à mettre en œuvre.",null,"-      Exactitude de l’identification de la procédure corrective à mettre en œuvre.",null,null,null,null,null,"◄",null,1,{"$f":"SUM(N35)","v":0},1,0,null,0,0,null,null,null,null,null,null,null,null,null,null,null,null,null,null,null,null,null,null,null,null,null,10]
["-      Remettre l’aéronef, la partie d’aéronef ou l’équipement en situation initiale (avant essai).",null,"-      Effectivité de la remise en situation initiale de l’aéronef, de la partie d’aéronef ou de l’équipement.",null,null,null,null,null,"◄",null,2,{"$f":"SUM(N36:N38)","v":0},2,0,null,0,0,null,null,null,null,null,null,null,null,null,null,null,null,null,null,null,null,null,null,null,null,null,15]
[null,null,"-      Zone de travail exempte de tout corps étranger.",null,null,null,null,null,"◄",null,1,null,1,0,null,0,0,null,null,null,null,null,null,null,null,null,null,null,null,null,null,null,null,null,null,null,null,null,5]
[null,null,"-      Outils et outillages nettoyés et rangés.",null,null,null,null,null,{"$f":"IF(P38>1,\"◄\",(IF(P38<1,\"◄\",\"\")))","v":"◄"},null,1,null,{"$f":"IF(D38<>\"\",0,K38)","v":1},0,null,{"$f":"COUNTA(D38:H38)","v":0},{"$f":"COUNTBLANK(I38)","v":0},null,null,null,null,null,null,null,null,null,null,null,null,null,null,null,null,null,null,null,null,null,2.5]
["-      Renseigner les documents de traçabilité des essais.",null,"-      Dossier d’essai remis au bon service.",null,null,null,null,null,{"$f":"IF(P39>1,\"◄\",(IF(P39<1,\"◄\",\"\")))","v":"◄"},null,1,{"$f":"SUM(N39:N40)","v":0},{"$f":"IF(D39<>\"\",0,K39)","v":1},0,null,{"$f":"COUNTA(D39:H39)","v":0},{"$f":"COUNTBLANK(I39)","v":0},null,null,null,null,null,null,null,null,null,null,null,null,null,null,null,null,null,null,null,null,null,2.5]
[null,null,"-      Documents de traçabilité correctement remplis et attestés.",null,null,null,null,null,{"$f":"IF(P40>1,\"◄\",(IF(P40<1,\"◄\",\"\")))","v":"◄"},null,1,null,{"$f":"IF(D40<>\"\",0,K40)","v":1},0,null,{"$f":"COUNTA(D40:H40)","v":0},{"$f":"COUNTBLANK(I40)","v":0},null,null,null,null,null,null,null,null,null,null,null,null,null,null,null,null,null,null,null,null,null,10]
["-   Respecter les temps alloués.",null,"-  Respect des temps alloués.",null,null,null,null,null,{"$f":"IF(P41>1,\"◄\",(IF(P41<1,\"◄\",\"\")))","v":"◄"},null,1,{"$f":"SUM(N41)","v":0},{"$f":"IF(D41<>\"\",0,K41)","v":1},0,null,{"$f":"COUNTA(D41:H41)","v":0},{"$f":"COUNTBLANK(I41)","v":0},null,null,null,null,null,null,null,null,null,null,null,null,null,null,null,null,null,null,null,null,null,5]
[null,null,null,"Taux d'indicateurs pour C04",null,{"$f":"M22/SUM(K23:K29)","v":1}]
[null,null,null,"Taux d'indicateurs pour C05",null,{"$f":"M30/SUM(K31:K41)","v":1}]
[null,null,null,"Note brute obtenue par calcul automatique (Attention si le taux de couverture des compétences est inférieur à 75%, la note n'est pas recevable) :",null,{"$f":"IF(OR(R22=0,F42<0.75,F43<0.75),\"!\",(L22+L30))","v":"!"},null," /20"]
[null,null,null,"Note sur 20 proposée au jury* :",null,null,null,"/20"]
["ATTENTION, si le symbole ◄ apparait dans cette colonne c'est qu'il y a plus d'une valeur donnée à l'indicateur, il faut alors choisir laquelle retenir, ou alors que l'indicateur est coché \"non évalué\""]
["* La note proposée, arrondie au demi point, est décidée par les évaluateurs à partir de la note brute qui peut être modulée de + 0 à + 1 point en fonction de la réactivité du candidat ou de tout autre attitude professionnelle positive observée."]
[]
["Appréciation globale",null,{"$f":"(IF(Q43>0,\"Attention erreur de saisie ! Voir ci-dessus\",\"\"))","v":""}]
[]
[]
["Noms des Correcteurs",null,"Signatures",null,"Date"]
[]
[]
[]
[null,null,null,null,{"$f":"TODAY()","v":"2015-01-07"}]

{"sheet":"BAC SY E33","index":10,"n_rows":65,"n_cols":18,"rows_kept":65,"cut":false,"hidden":true,"merged":[[0,0,0,7],[1,0,1,1],[1,2,1,7],[2,0,2,1],[2,2,2,7],[3,0,3,1],[3,2,3,7],[4,0,4,1],[4,2,4,7],[5,0,5,1],[5,2,5,7],[6,0,6,1],[6,2,6,7],[7,0,7,1],[7,2,7,7],[8,0,8,1],[8,2,8,7],[9,0,9,1],[9,2,9,7],[10,0,10,7],[11,0,11,7],[12,0,18,7],[24,0,24,1],[19,9,19,10],[20,0,20,1],[21,0,21,7],[50,9,53,9],[22,0,22,1],[23,0,23,1],[33,0,33,1],[26,0,26,1],[27,0,27,1],[43,0,43,1],[42,0,42,1],[29,0,29,7],[30,0,30,1],[31,0,31,1],[32,0,32,1],[63,0,63,1],[64,0,64,1],[64,4,64,7],[57,0,57,1],[57,2,57,7],[61,0,61,1],[61,4,61,7],[60,4,60,7],[58,0,58,7],[60,0,60,1],[28,0,28,1],[25,0,25,1],[44,0,44,1],[45,0,45,1],[62,0,62,1],[54,0,54,8],[55,0,55,8],[49,5,49,8],[50,5,50,8],[51,5,51,8],[52,7,52,8],[53,7,53,8],[52,5,52,6],[53,5,53,6],[47,0,47,1],[48,0,48,1],[46,0,46,1],[34,0,34,1],[35,0,37,1],[38,0,39,1],[41,0,41,7],[40,0,40,1],[22,11,23,11],[24,11,26,11],[43,11,45,11],[30,11,31,11],[35,11,37,11],[38,11,39,11]]}
["Identifications"]
["Diplôme :",null,"Baccalauréat professionnel « Aéronautique»"]
["Option :  ",null,"Systèmes"]
["Epreuve :",null,"Épreuve E3 (Sous-épreuve E33) : Essais, réglages et mise en œuvre de l'aéronef"]
["Établissement :",null,{"$f":"CONCATENATE(Identification!B4)","v":""}]
["Session : ",null,{"$f":"CONCATENATE(Identification!B10)","v":""}]
["Nom du candidat :",null,{"$f":"CONCATENATE(Identification!B5)","v":""}]
["Prénom du candidat :",null,{"$f":"CONCATENATE(Identification!B6)","v":""}]
["Date de l'évaluation :"]
["Lieu de l'évaluation (entreprise ou centre de formation) :"]
[]
["Description sommaire du travail demandé (le sujet complet doit être joint à cette fiche) :"]
[]
[]
[]
[]
[]
[]
[]
[]
["Compétences évaluées",null,"Indicateurs de performance                                      évaluation","non",0,0.33333333333333331,0.66666666666666663,"3/3",null,null,"Poids de la compétence","Notes","Éval","Notes"]
["C04 - Régler un sous-ensemble",null,null,null,null,null,null,null,null,null,0.2,{"$f":"(SUM(L23:L29))","v":0},{"$f":"SUM(M23:M29)","v":12},{"$f":"SUM(N23:N29)","v":0},null,null,{"$f":"SUM(Q23:Q49)","v":0},{"$f":"IF(Q22=25,1,0)","v":0}]
[" -   Positionner, régler et mettre en œuvre les outillages.                                                               -  Positionner le sous-ensemble en utilisant des éléments réglables : bielles réglables, câbles, excentriques, cales pelables …",null,"-      Réglage réalisé conformément à la procédure.",null,null,null,null,null,{"$f":"IF(P23>1,\"◄\",(IF(P23<1,\"◄\",\"\")))","v":"◄"},null,5,{"$f":"SUM(N23:N24)","v":0},{"$f":"IF(D23<>\"\",0,K23)","v":5},{"$f":"(IF(F23<>\"\",1/3,0)+IF(G23<>\"\",2/3,0)+IF(H23<>\"\",1,0))*K$22*20*M23/SUM(M$23:M$29)","v":0},null,{"$f":"COUNTA(D23:H23)","v":0},{"$f":"COUNTBLANK(I23)","v":0}]
["-      Connecter et mettre en œuvre des bancs (hydrauliques, pneumatiques, électriques, bancs-test).",null,"-      Outils et outillages nettoyés, inventoriés et rangés.",null,null,null,null,null,{"$f":"IF(P24>1,\"◄\",(IF(P24<1,\"◄\",\"\")))","v":"◄"},null,1,null,{"$f":"IF(D24<>\"\",0,K24)","v":1},{"$f":"(IF(F24<>\"\",1/3,0)+IF(G24<>\"\",2/3,0)+IF(H24<>\"\",1,0))*K$22*20*M24/SUM(M$23:M$29)","v":0},null,{"$f":"COUNTA(D24:H24)","v":0},{"$f":"COUNTBLANK(I24)","v":0}]
["-      Vérifier les spécifications de réglage : jeux, débattements, courses, cotes, efforts …",null,"-      Exigences de qualité respectées.",null,null,null,null,null,"◄",null,1,{"$f":"SUM(N25:N27)","v":0},1,0,null,0,0]
[" -  Assurer la permanence du réglage du sous-ensemble.",null,"-      Zone de travail propre et exempte de tout corps étranger.",null,null,null,null,null,"◄",null,1,null,1,0,null,0,0]
[null,null,"-  Respect des règles d’hygiène, de sécurité et de protection des biens, des personnes et de l’environnement.",null,null,null,null,null,"◄",null,1,null,1,0,null,0,0]
["-      Renseigner les documents de traçabilité.",null,"-      Documents de traçabilité correctement renseignés.",null,null,null,null,null,"◄",null,2,{"$f":"SUM(N28)","v":0},2,0,null,0,0]
["-   Respecter les temps alloués.",null,"-  Respect des temps alloués.",null,null,null,null,null,"◄",null,1,{"$f":"SUM(N29)","v":0},1,0,null,0,0]
["C05 - Effectuer des essais, des diagnostics",null,null,null,null,null,null,null,null,null,0.3,{"$f":"(SUM(L31:L41))","v":0},{"$f":"SUM(M31:M41)","v":14},{"$f":"SUM(N31:N41)","v":0}]
["-        Mettre en énergie  l’aéronef ou l’équipement (options avionique et systèmes) ou la partie d’aéronef (toutes options).",null,"-      Respect des procédures opératoires (mise en énergie, configuration de l’objet, conduite de l’essai).",null,null,null,null,null,{"$f":"IF(P31>1,\"◄\",(IF(P31<1,\"◄\",\"\")))","v":"◄"},null,1,{"$f":"SUM(N31:N32)","v":0},{"$f":"IF(D31<>\"\",0,K31)","v":1},{"$f":"(IF(F31<>\"\",1/3,0)+IF(G31<>\"\",2/3,0)+IF(H31<>\"\",1,0))*K$30*20*M31/SUM(M$31:M$41)","v":0},null,{"$f":"COUNTA(D31:H31)","v":0},{"$f":"COUNTBLANK(I31)","v":0}]
["-      Configurer l’aéronef ou la partie d’aéronef ou l’équipement objet de l’essai.                      -  Configurer les moyens d’essai.",null,"-      Choix correct des outils de diagnostic et de contrôle.",null,null,null,null,null,{"$f":"IF(P32>1,\"◄\",(IF(P32<1,\"◄\",\"\")))","v":"◄"},null,1,null,{"$f":"IF(D32<>\"\",0,K32)","v":1},{"$f":"(IF(F32<>\"\",1/3,0)+IF(G32<>\"\",2/3,0)+IF(H32<>\"\",1,0))*K$30*20*M32/SUM(M$31:M$41)","v":0},null,{"$f":"COUNTA(D32:H32)","v":0},{"$f":"COUNTBLANK(I32)","v":0}]
["-      Réaliser des essais.",null,"-      Exactitude des relevés  d’essai, de contrôle et de mesure.",null,null,null,null,null,"◄",null,2,{"$f":"SUM(N33)","v":0},2,0,null,0,0]
["-      Caractériser les écarts.",null,"-      Exactitude de la caractérisation des écarts constatés. ",null,null,null,null,null,"◄",null,2,{"$f":"SUM(N34)","v":0},2,0,null,0,0]
["-      Identifier, si nécessaire, la procédure corrective à mettre en œuvre.",null,"-      Exactitude de l’identification de la procédure corrective à mettre en œuvre.",null,null,null,null,null,"◄",null,1,{"$f":"SUM(N35)","v":0},1,0,null,0,0]
["-      Remettre l’aéronef, la partie d’aéronef ou l’équipement en situation initiale (avant essai).",null,"-      Effectivité de la remise en situation initiale de l’aéronef, de la partie d’aéronef ou de l’équipement.",null,null,null,null,null,"◄",null,2,{"$f":"SUM(N36:N38)","v":0},2,0,null,0,0]
[null,null,"-      Zone de travail exempte de tout corps étranger.",null,null,null,null,null,"◄",null,1,null,1,0,null,0,0]
[null,null,"-      Outils et outillages nettoyés et rangés.",null,null,null,null,null,"◄",null,1,null,1,0,null,0,0]
["-      Renseigner les documents de traçabilité des essais.",null,"-      Dossier d’essai remis au bon service.",null,null,null,null,null,"◄",null,1,{"$f":"SUM(N39:N40)","v":0},1,0,null,0,0]
[null,null,"-      Documents de traçabilité correctement remplis et attestés.",null,null,null,null,null,"◄",null,1,null,1,0,null,0,0]
["-   Respecter les temps alloués.",null,"-  Respect des temps alloués.",null,null,null,null,null,"◄",null,1,{"$f":"SUM(N41)","v":0},1,0,null,0,0]
["C06 Sy - Mettre en œuvre un aéronef",null,null,null,null,null,null,null,null,null,0.5,{"$f":"(SUM(L43:L49))","v":0},{"$f":"SUM(M43:M49)","v":11},{"$f":"SUM(N43:N49)","v":0}]
["-      Garantir la protection des biens et des personnes.",null,"-      Respect des règles d’hygiène, de sûreté, de sécurité et de protection des biens, des personnes et de l’environnement.",null,null,null,null,null,{"$f":"IF(P43>1,\"◄\",(IF(P43<1,\"◄\",\"\")))","v":"◄"},null,1,{"$f":"SUM(N43)","v":0},{"$f":"IF(D43<>\"\",0,K43)","v":1},{"$f":"(IF(F43<>\"\",1/3,0)+IF(G43<>\"\",2/3,0)+IF(H43<>\"\",1,0))*K$42*20*M43/SUM(M$43:M$49)","v":0},null,{"$f":"COUNTA(D43:H43)","v":0},{"$f":"COUNTBLANK(I43)","v":0}]
["-      Vérifier que la configuration de l’avion est compatible avec la mise en énergie (tour aéronef).",null,"-      Respect des procédures opératoires.",null,null,null,null,null,"◄",null,1,{"$f":"SUM(N44:N46)","v":0},1,{"$f":"(IF(F44<>\"\",1/3,0)+IF(G44<>\"\",2/3,0)+IF(H44<>\"\",1,0))*K$42*20*M44/SUM(M$43:M$49)","v":0},null,0,0]
["-      Mettre en énergie l’aéronef.",null,"-      Exécution adaptée des opérations.",null,null,null,null,null,"◄",null,2,null,2,0,null,0,0]
["-      Configurer les moyens de mise en œuvre.                                                                                                -  Réaliser les opérations de servicing et entretiens courants.",null,"-      Application rigoureuse des procédures d’urgence.",null,null,null,null,null,"◄",null,2,null,2,0,null,0,0]
["-      Échanger des informations oralement, par écrit et par gestes.",null,"-      Univocité des informations échangées.",null,null,null,null,null,"◄",null,2,{"$f":"SUM(N47)","v":0},2,0,null,0,0]
["-      Autocontrôler sa mise en œuvre.",null,"-      Exhaustivité des points contrôlés en fin de mise en œuvre.",null,null,null,null,null,"◄",null,2,{"$f":"SUM(N48)","v":0},2,0,null,0,0]
["-      Renseigner les documents de traçabilité.",null,"-      Exactitude des renseignements portés sur les documents de traçabilité.",null,null,null,null,null,"◄",null,1,{"$f":"SUM(N49)","v":0},1,0,null,0,0]
[null,null,null,"Taux d'indicateurs pour C04",null,{"$f":"M22/SUM(K23:K29)","v":1}]
[null,null,null,"Taux d'indicateurs pour C05",null,{"$f":"M30/SUM(K31:K41)","v":1}]
[null,null,null,"Taux d'indicateurs pour C06",null,{"$f":"M42/SUM(K43:K49)","v":1}]
[null,null,null,"Note brute obtenue par calcul automatique (Attention si le taux de couverture des compétences est inférieur à 75%, la note n'est pas recevable) :",null,{"$f":"IF(OR(R22=0,F50<0.75,F51<0.75,F52<0.75),\"!\",(L30+L42+L22))","v":"!"},null," /20"]
[null,null,null,"Note sur 20 proposée au jury* :",null,null,null,"/20"]
["ATTENTION, si le symbole ◄ apparait dans cette colonne c'est qu'il y a plus d'une valeur donnée à l'indicateur, il faut alors choisir laquelle retenir, ou alors que l'indicateur est coché \"non évalué\""]
["* La note proposée, arrondie au demi point, est décidée par les évaluateurs à partir de la note brute qui peut être modulée de + 0 à + 1 point en fonction de la réactivité du candidat ou de tout autre attitude professionnelle positive observée."]
[]
["Appréciation globale",null,{"$f":"(IF(Q51>0,\"Attention erreur de saisie ! Voir ci-dessus\",\"\"))","v":""}]
[]
[]
["Noms des Correcteurs",null,"Signatures",null,"Date"]
[]
[]
[]
[null,null,null,null,{"$f":"TODAY()","v":"2015-01-07"}]

{"sheet":"BAC AV E34","index":11,"n_rows":62,"n_cols":18,"rows_kept":62,"cut":false,"hidden":true,"merged":[[6,0,6,1],[6,2,6,7],[7,0,7,1],[7,2,7,7],[49,7,49,8],[49,5,49,6],[8,0,8,1],[8,2,8,7],[9,0,9,1],[9,2,9,7],[10,0,10,7],[36,0,37,1],[11,0,11,7],[12,0,18,7],[25,0,25,1],[35,0,35,1],[3,0,3,1],[3,2,3,7],[4,0,4,1],[4,2,4,7],[5,0,5,1],[5,2,5,7],[0,0,0,7],[1,0,1,1],[1,2,1,7],[2,0,2,1],[2,2,2,7],[24,0,24,1],[33,0,33,1],[34,0,34,1],[46,0,46,1],[19,9,19,10],[20,0,20,1],[21,0,21,7],[22,0,22,1],[23,0,23,1],[47,0,47,1],[44,0,44,1],[38,0,38,1],[40,0,40,7],[39,0,39,1],[54,0,54,1],[54,2,54,7],[55,0,55,7],[48,9,49,9],[48,5,48,8],[52,0,52,8],[50,7,50,8],[50,5,50,6],[51,0,51,8],[61,0,61,1],[61,4,61,7],[57,0,57,1],[57,4,57,7],[58,0,58,1],[58,4,58,7],[59,0,59,1],[60,0,60,1],[22,11,23,11],[45,0,45,1],[30,0,30,1],[28,0,29,1],[41,0,41,1],[42,0,42,1],[43,0,43,1],[32,0,32,1],[24,11,25,11],[26,11,27,11],[28,11,29,11],[32,11,33,11],[34,11,35,11],[36,11,37,11],[31,0,31,7],[26,0,27,1]]}
["Identifications"]
["Diplôme :",null,"Baccalauréat professionnel « Aéronautique»"]
["Option :  ",null,"Avionique"]
["Epreuve :",null,"Épreuve E3 (Sous-épreuve E34) : Réalisation et contrôle"]
["Établissement :",null,{"$f":"CONCATENATE(Identification!B4)","v":""}]
["Session : ",null,{"$f":"CONCATENATE(Identification!B10)","v":""}]
["Nom du candidat :",null,{"$f":"CONCATENATE(Identification!B5)","v":""}]
["Prénom du candidat :",null,{"$f":"CONCATENATE(Identification!B6)","v":""}]
["Date de l'évaluation :"]
["Lieu de l'évaluation (entreprise ou centre de formation) :"]
[]
["Description sommaire du travail demandé (le sujet complet doit être joint à cette fiche) :"]
[]
[]
[]
[]
[]
[]
[]
[]
["Compétences évaluées",null,"Indicateurs de performance                             évaluation","non",0,0.33333333333333331,0.66666666666666663,"3/3",null,null,"Poids de la compétence","Notes","Éval","Notes"]
["C06 Av - Fabriquer des éléments",null,null,null,null,null,null,null,null,null,0.4,{"$f":"(SUM(L23:L48))","v":0},{"$f":"SUM(M23:M48)","v":35},{"$f":"SUM(N23:N48)","v":0},null,null,{"$f":"SUM(Q23:Q48)","v":0},{"$f":"IF(Q22=24,1,0)","v":0}]
["-      Poser et régler des outillages.",null,"-      Outils et outillages nettoyés et rangés.",null,null,null,null,null,{"$f":"IF(P23>1,\"◄\",(IF(P23<1,\"◄\",\"\")))","v":"◄"},null,1,{"$f":"SUM(N23:N24)","v":0},{"$f":"IF(D23<>\"\",0,K23)","v":1},{"$f":"(IF(F23<>\"\",1/3,0)+IF(G23<>\"\",2/3,0)+IF(H23<>\"\",1,0))*(K$22+K$32+K$41)*20*M23/SUM(M$23:M$48)","v":0},null,{"$f":"COUNTA(D23:H23)","v":0},{"$f":"COUNTBLANK(I23)","v":0}]
["-      Mettre en œuvre les outillages.                                                                                           -  Régler des outils.",null,"-      Respect des règles d’hygiène, de sécurité et de protection des biens, des personnes et de l’environnement.",null,null,null,null,null,{"$f":"IF(P24>1,\"◄\",(IF(P24<1,\"◄\",\"\")))","v":"◄"},null,1,null,{"$f":"IF(D24<>\"\",0,K24)","v":1},{"$f":"(IF(F24<>\"\",1/3,0)+IF(G24<>\"\",2/3,0)+IF(H24<>\"\",1,0))*(K$22+K$32+K$41)*20*M24/SUM(M$23:M$48)","v":0},null,{"$f":"COUNTA(D24:H24)","v":0},{"$f":"COUNTBLANK(I24)","v":0}]
["-      Fabriquer des harnais constitués de câbles métalliques ou optiques.",null,"-      Fabrication conforme aux exigences de la gamme (procédure) de fabrication.",null,null,null,null,null,"◄",null,5,{"$f":"SUM(N25:N26)","v":0},5,0,null,0,0]
["-      Fabriquer et adapter des cartes électroniques aéronautiques.                   -  Conditionner les éléments pour livraison.",null,"-      Respect des règles d’hygiène, de sécurité et de protection des biens, des personnes et de l’environnement.",null,null,null,null,null,"◄",null,1,null,1,0,null,0,0]
["-      Autocontrôler sa fabrication.",null,"-      Exhaustivité des points contrôlés en fin de fabrication.",null,null,null,null,null,"◄",null,1,{"$f":"SUM(N27:N28)","v":0},1,0,null,0,0]
[null,null,"-      Zone de travail exempte de tout corps étranger.",null,null,null,null,null,"◄",null,1,null,1,0,null,0,0]
["-      Renseigner les documents de traçabilité.",null,"-      Dossier de production remis au bon service.",null,null,null,null,null,"◄",null,1,{"$f":"SUM(N29:N30)","v":0},1,0,null,0,0]
[null,null,"-      Documents de suivi correctement remplis et attestés.",null,null,null,null,null,{"$f":"IF(P30>1,\"◄\",(IF(P30<1,\"◄\",\"\")))","v":"◄"},null,1,null,{"$f":"IF(D30<>\"\",0,K30)","v":1},0,null,{"$f":"COUNTA(D30:H30)","v":0},{"$f":"COUNTBLANK(I30)","v":0}]
["-      Respecter les temps alloués.",null,"-      Respect des temps alloués.",null,null,null,null,null,{"$f":"IF(P31>1,\"◄\",(IF(P31<1,\"◄\",\"\")))","v":"◄"},null,1,{"$f":"SUM(N31)","v":0},{"$f":"IF(D31<>\"\",0,K31)","v":1},0,null,{"$f":"COUNTA(D31:H31)","v":0},{"$f":"COUNTBLANK(I31)","v":0}]
["C07 Av - Réparer des éléments",null,null,null,null,null,null,null,null,null,0.4]
["-      Poser et régler des outillages.",null,"-      Outils et outillages nettoyés et rangés.",null,null,null,null,null,{"$f":"IF(P33>1,\"◄\",(IF(P33<1,\"◄\",\"\")))","v":"◄"},null,1,{"$f":"SUM(N33:N34)","v":0},{"$f":"IF(D33<>\"\",0,K33)","v":1},0,null,{"$f":"COUNTA(D33:H33)","v":0},{"$f":"COUNTBLANK(I33)","v":0}]
["-  Mettre en œuvre les outillages.                                                                                             -  Régler des outils.",null,"-      Respect des règles d’hygiène, de sécurité et de protection des biens, des personnes et de l’environnement.",null,null,null,null,null,"◄",null,1,null,1,0,null,0,0]
["-      Réparer des harnais constitués de câbles métalliques ou optiques.",null,"-      Réalisation de la réparation conformément aux procédures et aux précautions d’usage.",null,null,null,null,null,"◄",null,5,{"$f":"SUM(N35:N36)","v":0},5,0,null,0,0]
["-      Réparer des cartes électroniques aéronautiques.                                      -  Conditionner les éléments pour livraison.",null,"-      Respect des règles d’hygiène, de sécurité et de protection des biens, des personnes et de l’environnement.",null,null,null,null,null,"◄",null,1,null,1,0,null,0,0]
["-      Autocontrôler son intervention.",null,"-      Zone de travail exempte de tout corps étranger.",null,null,null,null,null,"◄",null,1,{"$f":"SUM(N37:N38)","v":0},1,0,null,0,0]
[null,null,"-      Exhaustivité des points contrôlés en fin de réparation.",null,null,null,null,null,"◄",null,1,null,1,0,null,0,0]
["-      Renseigner les documents de traçabilité.",null,"-      Documents de suivi correctement remplis et attestés.",null,null,null,null,null,"◄",null,1,{"$f":"SUM(N39)","v":0},1,0,null,0,0]
["-      Respecter les temps alloués.",null,"-      Respect des temps alloués.",null,null,null,null,null,"◄",null,1,{"$f":"SUM(N40)","v":0},1,0,null,0,0]
["C08 - Effectuer des contrôles liés à une intervention",null,null,null,null,null,null,null,null,null,0.2]
["-      Appliquer les éventuelles procédures relatives à la protection électrostatique.",null,"-      Effectivité de la protection électrostatique.",null,null,null,null,null,{"$f":"IF(P42>1,\"◄\",(IF(P42<1,\"◄\",\"\")))","v":"◄"},null,2,{"$f":"SUM(N42)","v":0},{"$f":"IF(D42<>\"\",0,K42)","v":2},0,null,{"$f":"COUNTA(D42:H42)","v":0},{"$f":"COUNTBLANK(I42)","v":0}]
["-      Initialiser et étalonner l’appareil de mesure ou le banc de mesure.",null,"-      Opérationnalité de l’appareil de mesure ou du banc de mesure.",null,null,null,null,null,"◄",null,2,0,2,0,null,0,0]
["-      Mettre en œuvre l’appareil de mesure ou le banc de mesure.",null,"-      Respect des règles de mise en œuvre de l’appareil de mesure ou du banc de mesure.",null,null,null,null,null,"◄",null,1,0,1,0,null,0,0]
["-      Configurer l’élément ou le système à contrôler.",null,"-      Configuration correcte de l’élément à contrôler.",null,null,null,null,null,"◄",null,1,0,1,0,null,0,0]
["-      Appliquer la procédure de contrôle.",null,"-      Respect de la procédure de contrôle.",null,null,null,null,null,"◄",null,2,{"$f":"SUM(N46)","v":0},2,0,null,0,0]
["-      Identifier et communiquer les non-conformités.                                           -  Renseigner les documents de traçabilité.",null,"   -      Exhaustivité de l’identification des non-conformités.",null,null,null,null,null,"◄",null,1,{"$f":"SUM(N47)","v":0},1,0,null,0,0]
[" -  Respecter les règles d’hygiène, de sécurité et de protection des biens, des personnes et de l’environnement.",null,"-      Respect des règles d’hygiène, de sécurité et de protection des biens, des personnes et de l’environnement.",null,null,null,null,null,"◄",null,1,{"$f":"SUM(N48)","v":0},1,0,null,0,0]
[null,null,null,"Taux d'indicateurs pour C06 ou C07 et C08",null,{"$f":"M22/SUM(K23:K31,K33:K40,K42:K48)","v":1}]
[null,null,null,"Note brute obtenue par calcul automatique (Attention si le taux de couverture des compétences est inférieur à 50%, la note n'est pas recevable) :",null,{"$f":"IF(OR(R22=0,F49<0.5),\"!\",(L22))","v":"!"},null," /20"]
[null,null,null,"Note sur 20 proposée au jury* :",null,null,null,"/20"]
["ATTENTION, si le symbole ◄ apparait dans cette colonne c'est qu'il y a plus d'une valeur donnée à l'indicateur, il faut alors choisir laquelle retenir, ou alors que l'indicateur est coché \"non évalué\""]
["* La note proposée, arrondie au demi point, est décidée par les évaluateurs à partir de la note brute qui peut être modulée de + 0 à + 1 point en fonction de la réactivité du candidat ou de tout autre attitude professionnelle positive observée."]
[]
["Appréciation globale",null,{"$f":"(IF(Q49>0,\"Attention erreur de saisie ! Voir ci-dessus\",\"\"))","v":""}]
[]
[]
["Noms des Correcteurs",null,"Signatures",null,"Date"]
[]
[]
[]
[null,null,null,null,{"$f":"TODAY()","v":"2015-01-07"}]

{"sheet":"BAC SY E34","index":12,"n_rows":58,"n_cols":18,"rows_kept":58,"cut":false,"hidden":true,"merged":[[46,5,46,6],[45,7,45,8],[46,7,46,8],[47,0,47,8],[48,0,48,8],[0,0,0,7],[1,0,1,1],[1,2,1,7],[2,0,2,1],[2,2,2,7],[3,0,3,1],[3,2,3,7],[4,0,4,1],[4,2,4,7],[5,0,5,1],[5,2,5,7],[6,0,6,1],[6,2,6,7],[7,0,7,1],[7,2,7,7],[8,0,8,1],[8,2,8,7],[9,0,9,1],[9,2,9,7],[10,0,10,7],[11,0,11,7],[12,0,18,7],[19,9,19,10],[20,0,20,1],[22,2,24,2],[25,6,29,6],[25,7,29,7],[22,3,24,3],[22,4,24,4],[22,5,24,5],[22,6,24,6],[22,7,24,7],[25,3,29,3],[21,0,21,7],[22,0,22,1],[23,0,23,1],[24,0,24,1],[35,0,35,7],[25,2,29,2],[25,4,29,4],[25,5,29,5],[28,0,28,1],[25,0,25,1],[26,0,26,1],[33,0,33,1],[30,0,31,1],[27,0,27,1],[29,0,29,1],[32,0,32,1],[57,0,57,1],[57,4,57,7],[50,0,50,1],[50,2,50,7],[51,0,51,7],[53,0,53,1],[53,4,53,7],[54,0,54,1],[30,11,31,11],[54,4,54,7],[55,0,55,1],[56,0,56,1],[37,0,37,1],[38,0,38,1],[39,0,39,1],[40,0,40,1],[41,0,41,1],[43,9,45,9],[42,0,42,1],[43,5,43,8],[44,5,44,8],[45,5,45,6],[36,0,36,1],[34,0,34,1],[25,18,29,18],[22,8,24,8],[22,10,24,10],[22,11,24,11],[22,12,24,12],[22,13,24,13],[22,15,24,15],[22,18,24,18],[22,16,24,16],[25,8,29,8],[25,10,29,10],[25,11,29,11],[25,12,29,12],[25,13,29,13],[25,15,29,15],[25,16,29,16]]}
["Identifications"]
["Diplôme :",null,"Baccalauréat professionnel « Aéronautique»"]
["Option :  ",null,"Systèmes"]
["Epreuve :",null,"Épreuve E3 (Sous-épreuve E34) : Réalisation et contrôle"]
["Établissement :",null,{"$f":"CONCATENATE(Identification!B4)","v":""}]
["Session : ",null,{"$f":"CONCATENATE(Identification!B10)","v":""}]
["Nom du candidat :",null,{"$f":"CONCATENATE(Identification!B5)","v":""}]
["Prénom du candidat :",null,{"$f":"CONCATENATE(Identification!B6)","v":""}]
["Date de l'évaluation :"]
["Lieu de l'évaluation (entreprise ou centre de formation) :"]
[]
["Description sommaire du travail demandé (le sujet complet doit être joint à cette fiche) :"]
[]
[]
[]
[]
[]
[]
[]
[]
["Compétences évaluées",null,"Indicateurs de performance                                      évaluation","non",0,0.33333333333333331,0.66666666666666663,"3/3",null,null,"Poids de la compétence","Notes","Éval","Notes"]
["C07 Sy - Réparer des éléments",null,null,null,null,null,null,null,null,null,0.6,{"$f":"(SUM(L23:L35))","v":0},{"$f":"SUM(M23:M35)","v":11},{"$f":"SUM(N23:N35)","v":0},null,null,{"$f":"SUM(Q23:Q43)","v":0},{"$f":"IF(Q22=14,1,0)","v":0}]
["-      Poser et régler des outillages.",null,"-      Outils et outillages nettoyés et rangés.",null,null,null,null,null,{"$f":"IF(P23>1,\"◄\",(IF(P23<1,\"◄\",\"\")))","v":"◄"},null,1,{"$f":"SUM(N23)","v":0},{"$f":"IF(D23<>\"\",0,K23)","v":1},{"$f":"(IF(F23<>\"\",1/3,0)+IF(G23<>\"\",2/3,0)+IF(H23<>\"\",1,0))*K$22*20*M23/SUM(M$23:M$35)","v":0},null,{"$f":"COUNTA(D23:H25)","v":0},{"$f":"COUNTBLANK(I23)","v":0}]
["-      Mettre en œuvre les outillages."]
["-      Régler des outils."]
["-      Effectuer une retouche cosmétique sur un élément de structure ou de cabine ou un équipement d’aéronef.",null,"-      Réparation conforme à la procédure.",null,null,null,null,null,{"$f":"IF(P26>1,\"◄\",(IF(P26<1,\"◄\",\"\")))","v":"◄"},null,5,{"$f":"SUM(N26)","v":0},{"$f":"IF(D26<>\"\",0,K26)","v":5},{"$f":"(IF(F26<>\"\",1/3,0)+IF(G26<>\"\",2/3,0)+IF(H26<>\"\",1,0))*K$22*20*M26/SUM(M$23:M$35)","v":0},null,{"$f":"COUNTA(D26:H30)","v":0},{"$f":"COUNTBLANK(I26)","v":0}]
["-      Réparer une partie de harnais sur aéronef."]
["-      Réparer des équipements."]
["-      Effectuer des traitements de surfaces (revêtement alodine, primaires, peinture)."]
["-      Conditionner les éléments pour livraison."]
["-      Autocontrôler son intervention.",null,"-      Zone de travail exempte de tout corps étranger.",null,null,null,null,null,{"$f":"IF(P31>1,\"◄\",(IF(P31<1,\"◄\",\"\")))","v":"◄"},null,1,{"$f":"SUM(N31:N32)","v":0},{"$f":"IF(D31<>\"\",0,K31)","v":1},{"$f":"(IF(F31<>\"\",1/3,0)+IF(G31<>\"\",2/3,0)+IF(H31<>\"\",1,0))*K$22*20*M31/SUM(M$23:M$35)","v":0},null,{"$f":"COUNTA(D31:H31)","v":0},{"$f":"COUNTBLANK(I31)","v":0}]
[null,null,"-      Exhaustivité des points contrôlés en fin de réparation.",null,null,null,null,null,{"$f":"IF(P32>1,\"◄\",(IF(P32<1,\"◄\",\"\")))","v":"◄"},null,1,null,{"$f":"IF(D32<>\"\",0,K32)","v":1},{"$f":"(IF(F32<>\"\",1/3,0)+IF(G32<>\"\",2/3,0)+IF(H32<>\"\",1,0))*K$22*20*M32/SUM(M$23:M$35)","v":0},null,{"$f":"COUNTA(D32:H32)","v":0},{"$f":"COUNTBLANK(I32)","v":0}]
["-      Renseigner les documents de traçabilité.",null,"-      Documents de suivi correctement remplis et attestés.",null,null,null,null,null,{"$f":"IF(P33>1,\"◄\",(IF(P33<1,\"◄\",\"\")))","v":"◄"},null,1,{"$f":"SUM(N33)","v":0},{"$f":"IF(D33<>\"\",0,K33)","v":1},{"$f":"(IF(F33<>\"\",1/3,0)+IF(G33<>\"\",2/3,0)+IF(H33<>\"\",1,0))*K$22*20*M33/SUM(M$23:M$35)","v":0},null,{"$f":"COUNTA(D33:H33)","v":0},{"$f":"COUNTBLANK(I33)","v":0}]
["- Respecter les règles d’hygiène, de sécurité et de protection des biens, des personnes et de l’environnement.",null,"-      Respect des règles d’hygiène, de sécurité et de protection des biens, des personnes et de l’environnement.",null,null,null,null,null,{"$f":"IF(P34>1,\"◄\",(IF(P34<1,\"◄\",\"\")))","v":"◄"},null,1,{"$f":"SUM(N34)","v":0},{"$f":"IF(D34<>\"\",0,K34)","v":1},{"$f":"(IF(F34<>\"\",1/3,0)+IF(G34<>\"\",2/3,0)+IF(H34<>\"\",1,0))*K$22*20*M34/SUM(M$23:M$35)","v":0},null,{"$f":"COUNTA(D34:H34)","v":0},{"$f":"COUNTBLANK(I34)","v":0}]
["- Respecter les temps alloués.",null,"-      Respect des temps alloués.",null,null,null,null,null,{"$f":"IF(P35>1,\"◄\",(IF(P35<1,\"◄\",\"\")))","v":"◄"},null,1,{"$f":"SUM(N35)","v":0},{"$f":"IF(D35<>\"\",0,K35)","v":1},{"$f":"(IF(F35<>\"\",1/3,0)+IF(G35<>\"\",2/3,0)+IF(H35<>\"\",1,0))*K$22*20*M35/SUM(M$23:M$35)","v":0},null,{"$f":"COUNTA(D35:H35)","v":0},{"$f":"COUNTBLANK(I35)","v":0}]
["C08 - Effectuer des contrôles liés à une intervention",null,null,null,null,null,null,null,null,null,0.4,{"$f":"(SUM(L37:L43))","v":0},{"$f":"SUM(M37:M43)","v":10},{"$f":"SUM(N37:N43)","v":0}]
["-      Appliquer les éventuelles procédures relatives à la protection électrostatique.",null,"-      Effectivité de la protection électrostatique.",null,null,null,null,null,{"$f":"IF(P37>1,\"◄\",(IF(P37<1,\"◄\",\"\")))","v":"◄"},null,2,{"$f":"SUM(N37)","v":0},{"$f":"IF(D37<>\"\",0,K37)","v":2},{"$f":"(IF(F37<>\"\",1/3,0)+IF(G37<>\"\",2/3,0)+IF(H37<>\"\",1,0))*K$36*20*M37/SUM(M$37:M$43)","v":0},null,{"$f":"COUNTA(D37:H37)","v":0},{"$f":"COUNTBLANK(I37)","v":0}]
["-      Initialiser et étalonner l’appareil de mesure ou le banc de mesure.",null,"-      Opérationnalité de l’appareil de mesure ou du banc de mesure.",null,null,null,null,null,"◄",null,2,0,{"$f":"IF(D38<>\"\",0,K38)","v":2},{"$f":"(IF(F38<>\"\",1/3,0)+IF(G38<>\"\",2/3,0)+IF(H38<>\"\",1,0))*K$36*20*M38/SUM(M$37:M$43)","v":0},null,{"$f":"COUNTA(D38:H38)","v":0},0]
["-      Mettre en œuvre l’appareil de mesure ou le banc de mesure.",null,"-      Respect des règles de mise en œuvre de l’appareil de mesure ou du banc de mesure.",null,null,null,null,null,"◄",null,1,0,1,0,null,0,0]
["-      Configurer l’élément ou le système à contrôler.",null,"-      Configuration correcte de l’élément à contrôler.",null,null,null,null,null,"◄",null,1,0,1,0,null,0,0]
["-      Appliquer la procédure de contrôle.",null,"-      Respect de la procédure de contrôle.",null,null,null,null,null,"◄",null,2,0,2,0,null,0,0]
["-      Identifier et communiquer les non-conformités.",null,"-      Exhaustivité de l’identification des non-conformités.",null,null,null,null,null,"◄",null,1,0,1,0,null,0,0]
[" -  Respecter les règles d’hygiène, de sécurité et de protection des biens, des personnes et de l’environnement.",null,"-      Respect des règles d’hygiène, de sécurité et de protection des biens, des personnes et de l’environnement.",null,null,null,null,null,"◄",null,1,0,1,0,null,0,0]
[null,null,null,"Taux d'indicateurs pour C07",null,{"$f":"M22/SUM(K23:K35)","v":1}]
[null,null,null,"Taux d'indicateurs pour C08",null,{"$f":"M36/SUM(K37:K43)","v":1}]
[null,null,null,"Note brute obtenue par calcul automatique (Attention si le taux de couverture des compétences est inférieur à 75%, la note n'est pas recevable) :",null,{"$f":"IF(OR(R22=0,F44<0.75,F45<0.75),\"!\",(L36+L22))","v":"!"},null," /20"]
[null,null,null,"Note sur 20 proposée au jury* :",null,null,null,"/20"]
["ATTENTION, si le symbole ◄ apparait dans cette colonne c'est qu'il y a plus d'une valeur donnée à l'indicateur, il faut alors choisir laquelle retenir, ou alors que l'indicateur est coché \"non évalué\""]
["* La note proposée, arrondie au demi point, est décidée par les évaluateurs à partir de la note brute qui peut être modulée de + 0 à + 1 point en fonction de la réactivité du candidat ou de tout autre attitude professionnelle positive observée."]
[]
["Appréciation globale"]
[]
[]
["Noms des Correcteurs",null,"Signatures",null,"Date"]
[]
[]
[]
[null,null,null,null,{"$f":"TODAY()","v":"2015-01-07"}]

{"sheet":"BAC ST E34","index":13,"n_rows":66,"n_cols":18,"rows_kept":66,"cut":false,"hidden":true,"merged":[[55,0,55,8],[56,0,56,8],[0,0,0,7],[1,0,1,1],[1,2,1,7],[2,0,2,1],[2,2,2,7],[3,0,3,1],[3,2,3,7],[4,0,4,1],[4,2,4,7],[5,0,5,1],[5,2,5,7],[6,0,6,1],[6,2,6,7],[7,0,7,1],[7,2,7,7],[8,0,8,1],[8,2,8,7],[9,0,9,1],[9,2,9,7],[10,0,10,7],[11,0,11,7],[12,0,18,7],[19,9,19,10],[20,0,20,1],[21,0,21,7],[48,0,48,1],[49,0,49,1],[43,0,43,7],[32,0,32,1],[35,0,35,7],[22,0,22,1],[23,0,23,1],[24,0,24,1],[25,0,25,1],[28,0,28,1],[22,8,24,8],[25,5,29,5],[25,6,29,6],[25,7,29,7],[22,3,24,3],[22,4,24,4],[22,5,24,5],[22,6,24,6],[22,7,24,7],[58,0,58,1],[58,2,58,7],[59,0,59,7],[61,0,61,1],[61,4,61,7],[62,0,62,1],[62,4,62,7],[63,0,63,1],[64,0,64,1],[65,0,65,1],[65,4,65,7],[30,0,31,1],[25,2,29,2],[22,2,24,2],[41,0,41,1],[40,0,40,1],[36,0,36,1],[37,0,37,1],[29,0,29,1],[26,0,26,1],[27,0,27,1],[42,0,42,1],[38,0,39,1],[51,0,51,1],[50,0,50,1],[33,0,33,1],[34,0,34,1],[44,0,44,1],[45,0,45,1],[46,0,46,1],[47,0,47,1],[25,3,29,3],[25,4,29,4],[22,15,24,15],[22,16,24,16],[25,8,29,8],[25,10,29,10],[25,11,29,11],[22,18,24,18],[25,18,29,18],[22,10,24,10],[22,11,24,11],[22,12,24,12],[22,13,24,13],[25,12,29,12],[25,13,29,13],[25,15,29,15],[25,16,29,16],[30,11,31,11],[38,11,39,11],[36,11,37,11],[44,11,49,11],[52,9,54,9],[52,5,52,8],[53,5,53,6],[53,7,53,8],[54,7,54,8],[54,5,54,6]]}
["Identifications"]
["Diplôme :",null,"Baccalauréat professionnel « Aéronautique»"]
["Option :  ",null,"Structure"]
["Epreuve :",null,"Épreuve E3 (Sous-épreuve E34) : Réalisation et contrôle"]
["Établissement :",null,{"$f":"CONCATENATE(Identification!B4)","v":""}]
["Session : ",null,{"$f":"CONCATENATE(Identification!B10)","v":""}]
["Nom du candidat :",null,{"$f":"CONCATENATE(Identification!B5)","v":""}]
["Prénom du candidat :",null,{"$f":"CONCATENATE(Identification!B6)","v":""}]
["Date de l'évaluation :"]
["Lieu de l'évaluation (entreprise ou centre de formation) :"]
[]
["Description sommaire du travail demandé (le sujet complet doit être joint à cette fiche) :"]
[]
[]
[]
[]
[]
[]
[]
[]
["Compétences évaluées",null,"Indicateurs de performance                                      évaluation","non",0,0.33333333333333331,0.66666666666666663,"3/3",null,null,"Poids de la compétence","Notes","Éval","Notes"]
["C06 St - Fabriquer des éléments",null,null,null,null,null,null,null,null,null,0.4,{"$f":"(SUM(L23:L52))","v":0},{"$f":"SUM(M23:M52)","v":33},{"$f":"SUM(N23:N52)","v":0},null,null,{"$f":"SUM(Q23:Q52)","v":0},{"$f":"IF(Q22=22,1,0)","v":0}]
["-      Poser et régler des outillages.",null,"-      Outils et outillages nettoyés et rangés.",null,null,null,null,null,{"$f":"IF(P23>1,\"◄\",(IF(P23<1,\"◄\",\"\")))","v":"◄"},null,1,{"$f":"SUM(N23)","v":0},{"$f":"IF(D23<>\"\",0,K23)","v":1},{"$f":"(IF(F23<>\"\",1/3,0)+IF(G23<>\"\",2/3,0)+IF(H23<>\"\",1,0))*(K$22+K$36+K$44)*20*M23/SUM(M$23:M$52)","v":0},null,{"$f":"COUNTA(D23:H25)","v":0},{"$f":"COUNTBLANK(I23)","v":0}]
["-      Mettre en œuvre les outillages."]
["-      Régler des outils."]
["-      Réaliser des éléments en matériaux métalliques en tôles.",null,"-      Fabrication conforme aux exigences de la gamme (procédure) de fabrication.",null,null,null,null,null,{"$f":"IF(P26>1,\"◄\",(IF(P26<1,\"◄\",\"\")))","v":"◄"},null,5,{"$f":"SUM(N26)","v":0},{"$f":"IF(D26<>\"\",0,K26)","v":5},{"$f":"(IF(F26<>\"\",1/3,0)+IF(G26<>\"\",2/3,0)+IF(H26<>\"\",1,0))*(K$22+K$36+K$44)*20*M26/SUM(M$23:M$52)","v":0},null,{"$f":"COUNTA(D26:H30)","v":0},{"$f":"COUNTBLANK(I26)","v":0}]
["-      Effectuer des traitements thermiques (trempe, revenu, recuit)."]
["-      Réaliser des éléments en matériau composite."]
["-      Effectuer des traitements de surfaces (revêtement alodine, primaires, peinture)."]
["-      Conditionner les éléments pour livraison."]
["-      Autocontrôler sa fabrication.",null,"-      Zone de travail exempte de tout corps étranger.",null,null,null,null,null,{"$f":"IF(P31>1,\"◄\",(IF(P31<1,\"◄\",\"\")))","v":"◄"},null,1,{"$f":"SUM(N31:N32)","v":0},{"$f":"IF(D31<>\"\",0,K31)","v":1},{"$f":"(IF(F31<>\"\",1/3,0)+IF(G31<>\"\",2/3,0)+IF(H31<>\"\",1,0))*(K$22+K$36+K$44)*20*M31/SUM(M$23:M$52)","v":0},null,{"$f":"COUNTA(D31:H31)","v":0},{"$f":"COUNTBLANK(I31)","v":0}]
[null,null,"-      Exhaustivité des points contrôlés en fin de fabrication.",null,null,null,null,null,{"$f":"IF(P32>1,\"◄\",(IF(P32<1,\"◄\",\"\")))","v":"◄"},null,1,null,{"$f":"IF(D32<>\"\",0,K32)","v":1},{"$f":"(IF(F32<>\"\",1/3,0)+IF(G32<>\"\",2/3,0)+IF(H32<>\"\",1,0))*(K$22+K$36+K$44)*20*M32/SUM(M$23:M$52)","v":0},null,{"$f":"COUNTA(D32:H32)","v":0},{"$f":"COUNTBLANK(I32)","v":0}]
["-      Renseigner les documents de traçabilité.",null,"-      Documents de suivi correctement remplis et attestés.",null,null,null,null,null,{"$f":"IF(P33>1,\"◄\",(IF(P33<1,\"◄\",\"\")))","v":"◄"},null,1,{"$f":"SUM(N33)","v":0},{"$f":"IF(D33<>\"\",0,K33)","v":1},0,null,{"$f":"COUNTA(D33:H33)","v":0},{"$f":"COUNTBLANK(I33)","v":0}]
["-   Respecter les règles d’hygiène, de sécurité et de protection des biens, des personnes et de l’environnement.",null,"-      Respect des règles d’hygiène, de sécurité et de protection des biens, des personnes et de l’environnement.",null,null,null,null,null,{"$f":"IF(P34>1,\"◄\",(IF(P34<1,\"◄\",\"\")))","v":"◄"},null,1,{"$f":"SUM(N34)","v":0},{"$f":"IF(D34<>\"\",0,K34)","v":1},0,null,{"$f":"COUNTA(D34:H34)","v":0},{"$f":"COUNTBLANK(I34)","v":0}]
["-   Respecter les temps alloués.",null,"-      Respect des temps alloués.",null,null,null,null,null,{"$f":"IF(P35>1,\"◄\",(IF(P35<1,\"◄\",\"\")))","v":"◄"},null,1,{"$f":"SUM(N35)","v":0},{"$f":"IF(D35<>\"\",0,K35)","v":1},0,null,{"$f":"COUNTA(D35:H35)","v":0},{"$f":"COUNTBLANK(I35)","v":0}]
["C07 St - Réparer des éléments",null,null,null,null,null,null,null,null,null,0.4]
["-     Accéder à la zone du défaut identifié.",null,"-      Outils et outillages nettoyés et rangés.",null,null,null,null,null,{"$f":"IF(P37>1,\"◄\",(IF(P37<1,\"◄\",\"\")))","v":"◄"},null,1,{"$f":"SUM(N37:N38)","v":0},{"$f":"IF(D37<>\"\",0,K37)","v":1},0,null,{"$f":"COUNTA(D37:H37)","v":0},{"$f":"COUNTBLANK(I37)","v":0}]
["-     Traiter le défaut (matériau métallique et/ou composite) : découper, percer, ébavurer, …",null,"-      Réparation conforme à la procédure.",null,null,null,null,null,"◄",null,6,null,6,0,null,0,0]
["-  Autocontrôler son intervention.",null,"-      Zone de travail exempte de tout corps étranger.",null,null,null,null,null,"◄",null,1,{"$f":"SUM(N39:N40)","v":0},1,0,null,0,0]
[null,null,"-      Exhaustivité des points contrôlés en fin de réparation.",null,null,null,null,null,"◄",null,1,null,1,0,null,0,0]
["-      Renseigner les documents de traçabilité.",null,"-      Documents de suivi correctement remplis et attestés.",null,null,null,null,null,"◄",null,1,{"$f":"SUM(N41)","v":0},1,0,null,0,0]
["-   Respecter les règles d’hygiène, de sécurité et de protection des biens, des personnes et de l’environnement.",null,"-      Respect des règles d’hygiène, de sécurité et de protection des biens, des personnes et de l’environnement.",null,null,null,null,null,"◄",null,1,{"$f":"SUM(N42)","v":0},1,0,null,0,0]
["-    Respecter les temps alloués.",null,"-      Respect des temps alloués.",null,null,null,null,null,"◄",null,1,{"$f":"SUM(N43)","v":0},1,0,null,0,0]
["C08 - Effectuer des contrôles liés à une intervention",null,null,null,null,null,null,null,null,null,0.2]
["-      Appliquer les éventuelles procédures relatives à la protection électrostatique.",null,"-      Effectivité de la protection électrostatique.",null,null,null,null,null,{"$f":"IF(P45>1,\"◄\",(IF(P45<1,\"◄\",\"\")))","v":"◄"},null,1,{"$f":"SUM(N45:N50)","v":0},{"$f":"IF(D45<>\"\",0,K45)","v":1},0,null,{"$f":"COUNTA(D45:H45)","v":0},{"$f":"COUNTBLANK(I45)","v":0}]
["-      Initialiser et étalonner l’appareil de mesure ou le banc de mesure.",null,"-      Opérationnalité de l’appareil de mesure ou du banc de mesure.",null,null,null,null,null,"◄",null,1,null,1,0,null,0,0]
["-      Mettre en œuvre l’appareil de mesure ou le banc de mesure.",null,"-      Respect des règles de mise en œuvre de l’appareil de mesure ou du banc de mesure.",null,null,null,null,null,"◄",null,2,null,2,0,null,0,0]
["-      Configurer l’élément ou le système à contrôler.",null,"-      Configuration correcte de l’élément à contrôler.",null,null,null,null,null,"◄",null,1,null,1,0,null,0,0]
["-      Appliquer la procédure de contrôle.",null,"-      Respect de la procédure de contrôle.",null,null,null,null,null,"◄",null,2,null,2,0,null,0,0]
["-      Identifier et communiquer les non-conformités.",null,"-      Exhaustivité de l’identification des non-conformités.",null,null,null,null,null,"◄",null,1,null,1,0,null,0,0]
["-      Renseigner les documents de traçabilité.",null,"-      Documents de suivi correctement remplis et attestés.",null,null,null,null,null,"◄",null,1,{"$f":"SUM(N51)","v":0},1,0,null,0,0]
["-   Respecter les règles d’hygiène, de sécurité et de protection des biens, des personnes et de l’environnement.",null,"-      Respect des règles d’hygiène, de sécurité et de protection des biens, des personnes et de l’environnement.",null,null,null,null,null,"◄",null,1,{"$f":"SUM(N52)","v":0},1,0,null,0,0]
[null,null,null,"Taux d'indicateurs pour C06 ou C07 et C08",null,{"$f":"M22/SUM(K23:K35,K37:K43,K45:K52)","v":1}]
[null,null,null,"Note brute obtenue par calcul automatique (Attention si le taux de couverture des compétences est inférieur à 50%, la note n'est pas recevable) :",null,{"$f":"IF(OR(R22=0,F53<0.5),\"!\",(L22))","v":"!"},null," /20"]
[null,null,null,"Note sur 20 proposée au jury* :",null,null,null,"/20"]
["ATTENTION, si le symbole ◄ apparait dans cette colonne c'est qu'il y a plus d'une valeur donnée à l'indicateur, il faut alors choisir laquelle retenir, ou alors que l'indicateur est coché \"non évalué\""]
["* La note proposée, arrondie au demi point, est décidée par les évaluateurs à partir de la note brute qui peut être modulée de + 0 à + 1 point en fonction de la réactivité du candidat ou de tout autre attitude professionnelle positive observée."]
[]
["Appréciation globale",null,{"$f":"(IF(Q53>0,\"Attention erreur de saisie ! Voir ci-dessus\",\"\"))","v":""}]
[]
[]
["Noms des Correcteurs",null,"Signatures",null,"Date"]
[]
[]
[]
[null,null,null,null,{"$f":"TODAY()","v":"2015-01-07"}]

{"sheet":"BAC AG E2","index":14,"n_rows":66,"n_cols":18,"rows_kept":66,"cut":false,"hidden":true,"merged":[[32,0,32,8],[38,4,38,7],[37,4,37,7],[26,0,26,1],[27,0,27,1],[40,0,40,1],[41,0,41,1],[41,4,41,7],[34,0,34,1],[34,2,34,7],[35,0,35,7],[37,0,37,1],[38,0,38,1],[39,0,39,1],[18,9,18,10],[19,0,19,1],[20,0,20,7],[28,9,31,9],[24,0,24,1],[25,0,25,1],[28,5,28,8],[29,5,29,6],[29,7,29,8],[30,5,30,6],[30,7,30,8],[31,0,31,8],[7,2,7,7],[8,0,8,1],[8,2,8,7],[21,0,21,1],[9,0,9,7],[10,0,10,7],[11,0,17,7],[23,11,24,11],[22,0,23,1],[0,0,0,7],[1,0,1,1],[1,2,1,7],[2,0,2,1],[2,2,2,7],[3,0,3,1],[3,2,3,7],[4,0,4,1],[4,2,4,7],[5,0,5,1],[5,2,5,7],[6,0,6,1],[6,2,6,7],[7,0,7,1]]}
["Identifications"]
["Diplôme :",null,"Baccalauréat professionnel « Aviation générale»"]
["Epreuve :",null,"Épreuve E2 : Analyse de systèmes d'aéronef"]
["Établissement :",null,{"$f":"CONCATENATE(Identification!B4)","v":""}]
["Session : ",null,{"$f":"CONCATENATE(Identification!B10)","v":""}]
["Nom du candidat :",null,{"$f":"CONCATENATE(Identification!B5)","v":""}]
["Prénom du candidat :",null,{"$f":"CONCATENATE(Identification!B6)","v":""}]
["Date de l'évaluation :"]
["Lieu de l'évaluation (entreprise ou centre de formation) :"]
[]
["Description sommaire du travail demandé (le sujet complet doit être joint à cette fiche) :"]
[]
[]
[]
[]
[]
[]
[]
[]
["Compétences évaluées",null,"Indicateurs de performance                                      évaluation","non",0,0.33333333333333331,0.66666666666666663,"3/3",null,null,"Poids de la compétence","Notes","Éval","Notes"]
["C01. Analyser et exploiter des documents techniques aéronautiques",null,null,null,null,null,null,null,null,null,1,{"$f":"(SUM(L22:L28))","v":0},{"$f":"SUM(M22:M28)","v":10},{"$f":"SUM(N22:N28)","v":0},null,null,{"$f":"SUM(Q22:Q41)","v":0},{"$f":"IF(Q21=7,1,0)","v":0}]
["-  Extraire les documents appropriés à l’intervention.",null,"-  Exactitude de la sélection du ou des documents appropriés à l’intervention.",null,null,null,null,null,{"$f":"IF(P22>1,\"◄\",(IF(P22<1,\"◄\",\"\")))","v":"◄"},null,1,{"$f":"SUM(N22)*2","v":0},{"$f":"IF(D22<>\"\",0,K22)","v":1},{"$f":"(IF(F22<>\"\",1/3,0)+IF(G22<>\"\",2/3,0)+IF(H22<>\"\",1,0))*K$21*10*M22/SUM(M$22:M$28)","v":0},null,{"$f":"COUNTA(D22:H22)","v":0},{"$f":"COUNTBLANK(I22)","v":0}]
["-  Contrôler l’applicabilité de la documentation extraite.",null,"    - Exactitude du contrôle de la mise à jour de la documentation ;",null,null,null,null,null,"◄",null,1,{"$f":"SUM(N23)*2","v":0},1,{"$f":"(IF(F23<>\"\",1/3,0)+IF(G23<>\"\",2/3,0)+IF(H23<>\"\",1,0))*K$21*10*M23/SUM(M$22:M$28)","v":0},null,0,0]
[null,null,"    - Exactitude  de la sélection des données spécifiques à la version de l’aéronef.",null,null,null,null,null,"◄",null,1,{"$f":"SUM(N24:N25)*2","v":0},1,0,null,0,0]
["-  Décoder des informations (textes, plans, schémas, normes constructeur …), y compris en langue anglaise.",null,"-  Exactitude du décodage des informations des documents techniques.",null,null,null,null,null,"◄",null,2,null,2,0,null,0,0]
["-  Déduire de la documentation technique l’organisation fonctionnelle et structurelle d’un système.",null,"-  Exactitude des descriptions fonctionnelles et structurelles.",null,null,null,null,null,"◄",null,2,{"$f":"SUM(N26)*2","v":0},2,0,null,0,0]
["-  A partir d’une description d’organisation fonctionnelle et structurelle d’un système, déterminer le comportement attendu de chacun de ses constituants.",null,"-  Exactitude du comportement décrit des constituants d’un système.",null,null,null,null,null,"◄",null,2,{"$f":"SUM(N27)*2","v":0},2,0,null,0,0]
["-  Identifier les causes possibles d’un dysfonctionnement rapporté.",null,"-  Crédibilité des causes identifiées.",null,null,null,null,null,"◄",null,1,{"$f":"SUM(N28)*2","v":0},1,0,null,0,0]
[null,null,null,"Taux d'indicateurs pour C01",null,{"$f":"M21/SUM(K22:K28)","v":1}]
[null,null,null,"Note brute obtenue par calcul automatique (Attention si le taux de couverture des compétences est inférieur à 90%, le sujet n'est pas recevable) :",null,{"$f":"IF(OR(R21=0,F29<0.9),\"!\",(L21))","v":"!"},null," /20"]
[null,null,null,"Note sur 20 proposée au jury* :",null,null,null,"/20"]
["ATTENTION, si le symbole ◄ apparait dans cette colonne c'est qu'il y a plus d'une valeur donnée à l'indicateur, il faut alors choisir laquelle retenir, ou alors que l'indicateur est coché \"non évalué\""]
["* La note proposée, arrondie au demi point, est décidée par les évaluateurs à partir de la note brute qui peut être modulée de + 0 à + 1 point en fonction de la réactivité du candidat ou de tout autre attitude professionnelle positive observée."]
[]
["Appréciation globale",null,{"$f":"(IF(Q29>0,\"Attention erreur de saisie ! Voir ci-dessus\",\"\"))","v":""}]
[]
[]
["Noms des Correcteurs",null,"Signatures",null,"Date"]
[]
[]
[]
[null,null,null,null,{"$f":"TODAY()","v":"2015-01-07"}]
[]
[]
[]
[]
[]
[]
[]
[]
[]
[]
[]
[]
[]
[]
[]
[]
[]
[]
[]
[]
[null,null,8604]
[null,null,11901]
[null,"IRNEO",665]
[null,"MALAKOFF",314]

{"sheet":"BAC AG E31","index":15,"n_rows":68,"n_cols":18,"rows_kept":68,"cut":false,"hidden":true,"merged":[[48,0,48,1],[49,0,49,1],[22,11,23,11],[39,11,44,11],[45,11,47,11],[38,0,38,7],[40,0,40,1],[41,0,41,1],[42,0,42,1],[39,0,39,1],[43,0,43,1],[44,0,44,1],[28,0,28,1],[29,0,29,1],[32,0,32,7],[30,0,30,1],[58,0,58,8],[56,7,56,8],[55,5,55,6],[56,5,56,6],[57,0,57,8],[55,7,55,8],[67,0,67,1],[67,4,67,7],[60,0,60,1],[61,0,61,7],[63,0,63,1],[63,4,63,7],[64,0,64,1],[64,4,64,7],[60,2,60,7],[65,0,65,1],[66,0,66,1],[31,0,31,1],[37,0,37,1],[33,0,33,1],[34,0,34,1],[35,0,35,1],[36,0,36,1],[18,9,18,10],[19,0,19,1],[20,0,20,7],[25,0,25,1],[24,0,24,7],[21,0,21,1],[22,0,23,1],[8,0,8,1],[8,2,8,7],[27,0,27,1],[9,0,9,7],[10,0,10,7],[11,0,17,7],[26,0,26,1],[5,2,5,7],[6,0,6,1],[6,2,6,7],[7,0,7,1],[7,2,7,7],[33,2,34,2],[50,0,50,1],[45,0,47,1],[0,0,0,7],[1,0,1,1],[1,2,1,7],[2,0,2,1],[2,2,2,7],[33,7,34,7],[33,6,34,6],[33,3,34,3],[3,0,3,1],[3,2,3,7],[4,0,4,1],[4,2,4,7],[5,0,5,1],[33,15,34,15],[33,16,34,16],[33,5,34,5],[33,4,34,4],[51,9,57,9],[53,5,53,8],[33,11,34,11],[33,12,34,12],[33,13,34,13],[33,10,34,10],[33,8,34,8],[51,5,51,8],[52,5,52,8],[54,5,54,8]]}
["Identifications"]
["Diplôme :",null,"Baccalauréat professionnel « Aviation générale»"]
["Epreuve :",null," E3 (Sous-épreuve E31) : Préparation et réalisation d'une interention de maintenance"]
["Établissement :",null,{"$f":"CONCATENATE(Identification!B4)","v":""}]
["Session : ",null,{"$f":"CONCATENATE(Identification!B10)","v":""}]
["Nom du candidat :",null,{"$f":"CONCATENATE(Identification!B5)","v":""}]
["Prénom du candidat :",null,{"$f":"CONCATENATE(Identification!B6)","v":""}]
["Date de l'évaluation :"]
["Lieu de l'évaluation (entreprise ou centre de formation) :"]
[]
["Description sommaire du travail demandé (le sujet complet doit être joint à cette fiche) :"]
[]
[]
[]
[]
[]
[]
[]
[]
["Compétences évaluées",null,"Indicateurs de performance                              évaluation","non",0,0.33333333333333331,0.66666666666666663,"3/3",null,null,"Poids de la compétence","Notes","Éval","Notes"]
["C02. Caractériser les contraintes liées à une intervention sur aéronef léger",null,null,null,null,null,null,null,null,null,0.1,{"$f":"(SUM(L22:L24))","v":0},{"$f":"SUM(M22:M24)","v":10},{"$f":"SUM(N22:N24)","v":0},null,null,{"$f":"SUM(Q22:Q51)","v":0},{"$f":"IF(Q21=26,1,0)","v":0}]
["-   Identifier les contraintes liées à une intervention conséquences d'une non-conformité, d’un dommage ou d’un défaut imprévu,…",null,"-   Exactitude de l’identification des contraintes.",null,null,null,null,null,{"$f":"IF(P22>1,\"◄\",(IF(P22<1,\"◄\",\"\")))","v":"◄"},null,4,{"$f":"SUM(N22)","v":0},{"$f":"IF(D22<>\"\",0,K22)","v":4},{"$f":"(IF(F22<>\"\",1/3,0)+IF(G22<>\"\",2/3,0)+IF(H22<>\"\",1,0))*K$21*20*M22/SUM(M$22:M$24)","v":0},null,{"$f":"COUNTA(D22:H22)","v":0},{"$f":"COUNTBLANK(I22)","v":0}]
["-   Signaler les anomalies découvertes et proposer une solution de remise en état.",null,"-   Effectivité et exhaustivité du signalement des anomalies.",null,null,null,null,null,{"$f":"IF(P23>1,\"◄\",(IF(P23<1,\"◄\",\"\")))","v":"◄"},null,3,{"$f":"SUM(N23:N24)","v":0},{"$f":"IF(D23<>\"\",0,K23)","v":3},{"$f":"(IF(F23<>\"\",1/3,0)+IF(G23<>\"\",2/3,0)+IF(H23<>\"\",1,0))*K$21*20*M23/SUM(M$22:M$24)","v":0},null,{"$f":"COUNTA(D23:H23)","v":0},{"$f":"COUNTBLANK(I23)","v":0}]
[null,null,"-   Adéquation de la solution proposée à la remise en état.",null,null,null,null,null,{"$f":"IF(P24>1,\"◄\",(IF(P24<1,\"◄\",\"\")))","v":"◄"},null,3,null,{"$f":"IF(D24<>\"\",0,K24)","v":3},{"$f":"(IF(F24<>\"\",1/3,0)+IF(G24<>\"\",2/3,0)+IF(H24<>\"\",1,0))*K$21*20*M24/SUM(M$22:M$24)","v":0},null,{"$f":"COUNTA(D24:H24)","v":0},{"$f":"COUNTBLANK(I24)","v":0}]
["C03. Préparer les interventions de maintenance d’un aéronef léger ",null,null,null,null,null,null,null,null,null,0.2,{"$f":"(SUM(L26:L32))","v":0},{"$f":"SUM(M26:M32)","v":9},{"$f":"SUM(N26:N32)","v":0}]
["-   Repérer, identifier les éléments de l'aéronef relatifs à l’intervention et comparer leur référence à celle d'un dossier technique.",null,"-   Exhaustivité du repérage et de l’identification des éléments de l'aéronef et de leur référence.",null,null,null,null,null,{"$f":"IF(P26>1,\"◄\",(IF(P26<1,\"◄\",\"\")))","v":"◄"},null,1,{"$f":"SUM(N26)","v":0},{"$f":"IF(D26<>\"\",0,K26)","v":1},{"$f":"(IF(F26<>\"\",1/3,0)+IF(G26<>\"\",2/3,0)+IF(H26<>\"\",1,0))*K$25*20*M26/SUM(M$26:M$32)","v":0},null,{"$f":"COUNTA(D26:H26)","v":0},{"$f":"COUNTBLANK(I26)","v":0}]
["-   Rechercher des informations règlementaires liées à l'intervention à exécuter.",null,"-   Exhaustivité des informations règlementaires nécessaires à l'intervention à exécuter.",null,null,null,null,null,{"$f":"IF(P27>1,\"◄\",(IF(P27<1,\"◄\",\"\")))","v":"◄"},null,1,{"$f":"SUM(N27)","v":0},{"$f":"IF(D27<>\"\",0,K27)","v":1},{"$f":"(IF(F27<>\"\",1/3,0)+IF(G27<>\"\",2/3,0)+IF(H27<>\"\",1,0))*K$25*20*M27/SUM(M$26:M$32)","v":0},null,{"$f":"COUNTA(D27:H27)","v":0},{"$f":"COUNTBLANK(I27)","v":0}]
["-   Identifier les opérations liées à l’intervention.",null,"-   Exhaustivité de l’identification des opérations liées à l’intervention.",null,null,null,null,null,"◄",null,1,0,1,0,null,0,0]
["-   Déterminer les conditions de réalisation.",null,"-   Exactitude et exhaustivité de la détermination des conditions de réalisation.",null,null,null,null,null,"◄",null,1,0,1,0,null,0,0]
["-   Identifier et choisir la zone d’intervention et les moyens nécessaires, les pièces de rechange, les consommables et les ingrédients.",null,"-   Adéquation aux procédures et exhaustivité de l’identification des moyens nécessaires à l’intervention.",null,null,null,null,null,"◄",null,2,0,2,0,null,0,0]
["-   Vérifier la faisabilité de l’intervention.",null,"-   Exactitude de la vérification de la faisabilité de l’intervention.",null,null,null,null,null,"◄",null,2,0,2,0,null,0,0]
["-   Identifier et prévoir les mesures de prévention et de protection règlementaires.",null,"-   Exactitude de l’identification et adéquation à l’intervention des prévisions des mesures de prévention et des règles de protection.",null,null,null,null,null,"◄",null,1,0,1,0,null,0,0]
["C04. Organiser l’environnement et le poste de travail de maintenance d'un aéronef léger ",null,null,null,null,null,null,null,null,null,0.2,{"$f":"(SUM(L34:L38))","v":0},{"$f":"SUM(M34:M38)","v":10},{"$f":"SUM(N34:N38)","v":0}]
["-   Préparer et mettre en sécurité la zone d'intervention.",null,"-   Opérationnalité de la zone de travail dans le respect des règles de sécurité des personnes, de l’environnement et des biens.",null,null,null,null,null,{"$f":"IF(P34>1,\"◄\",(IF(P34<1,\"◄\",\"\")))","v":"◄"},null,3,{"$f":"SUM(N34)","v":0},{"$f":"IF(D34<>\"\",0,K34)","v":3},{"$f":"(IF(F34<>\"\",1/3,0)+IF(G34<>\"\",2/3,0)+IF(H34<>\"\",1,0))*K$33*20*M34/SUM(M$34:M$38)","v":0},null,{"$f":"COUNTA(D34:H34)","v":0},{"$f":"COUNTBLANK(I34)","v":0}]
["-   Mettre en sécurité l’aéronef en vue de l’intervention."]
["-   Réceptionner et vérifier l’ensemble des moyens nécessaires (pièces de rechange, consommables et ingrédients).",null,"-   Rigueur de la réception et de la vérification des moyens.",null,null,null,null,null,{"$f":"IF(P36>1,\"◄\",(IF(P36<1,\"◄\",\"\")))","v":"◄"},null,2,{"$f":"SUM(N36)","v":0},{"$f":"IF(D36<>\"\",0,K36)","v":2},{"$f":"(IF(F36<>\"\",1/3,0)+IF(G36<>\"\",2/3,0)+IF(H36<>\"\",1,0))*K$33*20*M36/SUM(M$34:M$38)","v":0},null,{"$f":"COUNTA(D36:H36)","v":0},{"$f":"COUNTBLANK(I36)","v":0}]
[" -  Identifier et inventorier dans le respect des procédures : le moyen de déplacement de l’aéronef, le cheminement, le parking, les moyens de campement et d’arrimage et les moyens de communication.",null,"-   Adéquation aux procédures des choix retenus.",null,null,null,null,null,{"$f":"IF(P37>1,\"◄\",(IF(P37<1,\"◄\",\"\")))","v":"◄"},null,3,{"$f":"SUM(N37)","v":0},{"$f":"IF(D37<>\"\",0,K37)","v":3},{"$f":"(IF(F37<>\"\",1/3,0)+IF(G37<>\"\",2/3,0)+IF(H37<>\"\",1,0))*K$33*20*M37/SUM(M$34:M$38)","v":0},null,{"$f":"COUNTA(D37:H37)","v":0},{"$f":"COUNTBLANK(I37)","v":0}]
["-   Préparer l’aéronef en vue de son transport.",null,"-   Conformité de la configuration de l’aéronef avec la réglementation liée au contexte de l’intervention et/ou du transport.",null,null,null,null,null,{"$f":"IF(P38>1,\"◄\",(IF(P38<1,\"◄\",\"\")))","v":"◄"},null,2,{"$f":"SUM(N38)","v":0},{"$f":"IF(D38<>\"\",0,K38)","v":2},{"$f":"(IF(F38<>\"\",1/3,0)+IF(G38<>\"\",2/3,0)+IF(H38<>\"\",1,0))*K$33*20*M38/SUM(M$34:M$38)","v":0},null,{"$f":"COUNTA(D38:H38)","v":0},{"$f":"COUNTBLANK(I38)","v":0}]
["C06. Réaliser la maintenance d'un aéronef léger",null,null,null,null,null,null,null,null,null,0.5,{"$f":"(SUM(L40:L51))","v":0},{"$f":"SUM(M40:M51)","v":14},{"$f":"SUM(N40:N51)","v":0}]
["-   Réaliser les opérations :",null,"-   Respect des règles de sécurité des personnes, de l’environnement et des biens.",null,null,null,null,null,{"$f":"IF(P40>1,\"◄\",(IF(P40<1,\"◄\",\"\")))","v":"◄"},null,1,{"$f":"SUM(N40:N45)","v":0},{"$f":"IF(D40<>\"\",0,K40)","v":1},{"$f":"(IF(F40<>\"\",1/3,0)+IF(G40<>\"\",2/3,0)+IF(H40<>\"\",1,0))*K$39*20*M40/SUM(M$40:M$51)","v":0},null,{"$f":"COUNTA(D40:H40)","v":0},{"$f":"COUNTBLANK(I40)","v":0}]
["·    de déplacement, de cheminement et de parcage ;",null,"-   Précision du roulage.",null,null,null,null,null,{"$f":"IF(P41>1,\"◄\",(IF(P41<1,\"◄\",\"\")))","v":"◄"},null,1,null,{"$f":"IF(D41<>\"\",0,K41)","v":1},{"$f":"(IF(F41<>\"\",1/3,0)+IF(G41<>\"\",2/3,0)+IF(H41<>\"\",1,0))*K$39*20*M41/SUM(M$40:M$51)","v":0},null,{"$f":"COUNTA(D41:H41)","v":0},{"$f":"COUNTBLANK(I41)","v":0}]
["·    de levage, de stockage, de protection ;",null,"-   Adéquation du parcage aux conditions.",null,null,null,null,null,"◄",null,1,null,1,0,null,0,0]
["·    de réparation ;",null,"-   Utilisation à bon escient des moyens et des ingrédients.",null,null,null,null,null,"◄",null,2,null,2,0,null,0,0]
["·    de démontage – remontage ;",null,"-   Respect des procédures et des règles de l’art.",null,null,null,null,null,"◄",null,2,null,2,0,null,0,0]
["·    de réglage et de mise au point.",null,"-   Exactitude de l’inventaire.",null,null,null,null,null,"◄",null,1,null,1,0,null,0,0]
["-   Mettre l'aéronef en état de navigabilité (préparation physique de l'aéronef et renseignement des documents de traçabilité).",null,"-   Exactitude des renseignements portés sur les documents de traçabilité.",null,null,null,null,null,"◄",null,1,{"$f":"SUM(N46:N48)","v":0},1,0,null,0,0]
[null,null,"-   Rigueur du rangement de la documentation et des moyens d’intervention.",null,null,null,null,null,"◄",null,1,null,1,0,null,0,0]
[null,null,"-   Rigueur de la préparation physique de l’aéronef  en vue de sa remise en service.",null,null,null,null,null,"◄",null,1,null,1,0,null,0,0]
["-   Restituer l'aéronef conformément au bon de lancement.",null,"-   Respect du bon de lancement.",null,null,null,null,null,"◄",null,1,{"$f":"SUM(N49)","v":0},1,0,null,0,0]
["-   Remettre en état la zone de travail.",null,"-   Propreté de la zone de travail après l’intervention.",null,null,null,null,null,"◄",null,1,0,1,0,null,0,0]
[" - Respecter le temps alloué et les délais.",null,"-   Respect du temps alloué et des délais.",null,null,null,null,null,"◄",null,1,0,1,0,null,0,0]
[null,null,null,"Taux d'indicateurs pour C02",null,{"$f":"M21/SUM(K22:K24)","v":1}]
[null,null,null,"Taux d'indicateurs pour C03",null,{"$f":"M25/SUM(K26:K32)","v":1}]
[null,null,null,"Taux d'indicateurs pour C04",null,{"$f":"M33/SUM(K34:K38)","v":1}]
[null,null,null,"Taux d'indicateurs pour C06",null,{"$f":"M39/SUM(K40:K51)","v":1}]
[null,null,null,"Note brute obtenue par calcul automatique (Attention si le taux de couverture des compétences est inférieur à 60%, la note n'est pas recevable) :",null,{"$f":"IF(OR(R21=0,F52<0.5,F53<0.5,F54<0.5,F55<0.5),\"!\",(L33+L25+L21+L39))","v":"!"},null," /20"]
[null,null,null,"Note sur 20 proposée au jury* :",null,null,null,"/20"]
["ATTENTION, si le symbole ◄ apparait dans cette colonne c'est qu'il y a plus d'une valeur donnée à l'indicateur, il faut alors choisir laquelle retenir, ou alors que l'indicateur est coché \"non évalué\""]
["* La note proposée, arrondie au demi point, est décidée par les évaluateurs à partir de la note brute qui peut être modulée de + 0 à + 1 point en fonction de la réactivité du candidat ou de tout autre attitude professionnelle positive observée."]
[]
["Appréciation globale",null,{"$f":"(IF(Q52>0,\"Attention erreur de saisie ! Voir ci-dessus\",\"\"))","v":""}]
[]
[]
["Noms des Correcteurs",null,"Signatures",null,"Date"]
[]
[]
[]
[null,null,null,null,{"$f":"TODAY()","v":"2015-01-07"}]

{"sheet":"BAC AG E32","index":16,"n_rows":67,"n_cols":19,"rows_kept":67,"cut":false,"hidden":true,"merged":[[42,1,42,2],[21,12,25,12],[31,12,33,12],[36,12,37,12],[44,12,50,12],[38,6,38,9],[39,6,39,9],[43,1,43,8],[44,1,44,2],[35,1,35,2],[36,1,37,2],[49,1,49,2],[45,1,45,2],[46,1,46,2],[47,1,47,2],[34,1,34,2],[31,1,33,2],[48,1,48,2],[52,8,52,9],[56,0,56,9],[52,6,52,7],[57,0,57,9],[51,6,51,9],[54,6,54,7],[55,6,55,7],[54,8,54,9],[55,10,57,10],[66,1,66,2],[66,5,66,8],[59,1,59,2],[59,3,59,8],[64,1,64,2],[65,1,65,2],[63,1,63,2],[63,5,63,8],[55,8,55,9],[60,1,60,8],[62,1,62,2],[62,5,62,8],[27,1,27,2],[30,1,30,2],[29,1,29,2],[9,1,9,8],[10,1,10,8],[26,1,26,8],[28,1,28,2],[23,1,23,2],[24,1,24,2],[25,1,25,2],[18,10,18,11],[19,1,19,2],[20,1,20,8],[21,1,21,2],[22,1,22,2],[6,1,6,2],[6,3,6,8],[7,1,7,2],[7,3,7,8],[8,1,8,2],[8,3,8,8],[20,0,37,0],[43,0,50,0],[40,6,40,7],[0,1,0,8],[1,1,1,2],[1,3,1,8],[2,1,2,2],[2,3,2,8],[11,1,17,8],[3,1,3,2],[40,8,40,9],[3,3,3,8],[4,1,4,2],[4,3,4,8],[5,1,5,2],[5,3,5,8]]}
[null,"Identifications"]
[null,"Diplôme :",null,"Baccalauréat professionnel « Aviation générale»"]
[null,"Epreuve :",null,"Épreuve E3 (Sous-épreuve E32) : DIAGNOSTIC, ESSAIS ET COMPTE-RENDU"]
[null,"Établissement :",null,{"$f":"CONCATENATE(Identification!B4)","v":""}]
[null,"Session : ",null,{"$f":"CONCATENATE(Identification!B10)","v":""}]
[null,"Nom du candidat :",null,{"$f":"CONCATENATE(Identification!B5)","v":""}]
[null,"Prénom du candidat :",null,{"$f":"CONCATENATE(Identification!B6)","v":""}]
[null,"Date de l'évaluation :"]
[null,"Lieu de l'évaluation (entreprise ou centre de formation) :"]
[]
[null,"Description sommaire du travail demandé (le sujet complet doit être joint à cette fiche) :"]
[]
[]
[]
[]
[]
[]
[]
[]
[null,"Compétences évaluées",null,"Indicateurs de performance                                      évaluation","non",0,0.33333333333333331,0.66666666666666663,"3/3",null,null,"Poids de la compétence","Notes","Éval","Notes"]
["Partie 1 : Inspection et d’essais de tout ou partie d'un aéronef ","C05. Adapter son attitude professionnelle aux exigences de l'entreprise de maintenance aéronautique",null,null,null,null,null,null,null,null,null,0.3,{"$f":"(SUM(M22:M26))","v":0},{"$f":"SUM(N22:N26)","v":9},{"$f":"SUM(O22:O26)","v":0},null,null,{"$f":"SUM(R22:R38)","v":0},{"$f":"IF(R21=16,1,0)","v":0}]
[null,"-   Assumer sa fonction au sein de l’organisme avec un comportement responsable :",null,"-   Rigueur dans l’application des consignes.",null,null,null,null,null,{"$f":"IF(Q22>1,\"◄\",(IF(Q22<1,\"◄\",\"\")))","v":"◄"},null,2,{"$f":"SUM(O22:O26)","v":0},{"$f":"IF(E22<>\"\",0,L22)","v":2},{"$f":"(IF(G22<>\"\",1/3,0)+IF(H22<>\"\",2/3,0)+IF(I22<>\"\",1,0))*L$21*10*N22/SUM(N$22:N$26)","v":0},null,{"$f":"COUNTA(E22:I22)","v":0},{"$f":"COUNTBLANK(J22)","v":0}]
[null,"·    dans le respect des consignes ;",null,"-   Effectivité et exactitude des informations transmises à la hiérarchie et aux services concernées.",null,null,null,null,null,{"$f":"IF(Q23>1,\"◄\",(IF(Q23<1,\"◄\",\"\")))","v":"◄"},null,2,null,{"$f":"IF(E23<>\"\",0,L23)","v":2},{"$f":"(IF(G23<>\"\",1/3,0)+IF(H23<>\"\",2/3,0)+IF(I23<>\"\",1,0))*L$21*10*N23/SUM(N$22:N$26)","v":0},null,{"$f":"COUNTA(E23:I23)","v":0},{"$f":"COUNTBLANK(J23)","v":0}]
[null,"·    en assurant la transmission des informations ;",null,"-   Adéquation entre les exigences liées à l’intervention et les qualifications.",null,null,null,null,null,{"$f":"IF(Q24>1,\"◄\",(IF(Q24<1,\"◄\",\"\")))","v":"◄"},null,2,null,{"$f":"IF(E24<>\"\",0,L24)","v":2},{"$f":"(IF(G24<>\"\",1/3,0)+IF(H24<>\"\",2/3,0)+IF(I24<>\"\",1,0))*L$21*10*N24/SUM(N$22:N$26)","v":0},null,{"$f":"COUNTA(E24:I24)","v":0},{"$f":"COUNTBLANK(J24)","v":0}]
[null,"·    dans les limites de son domaine d'intervention et dans le cadre de son champ de compétences ;",null,"-   Fiabilité des actions effectuées lors des interventions.",null,null,null,null,null,{"$f":"IF(Q25>1,\"◄\",(IF(Q25<1,\"◄\",\"\")))","v":"◄"},null,2,null,{"$f":"IF(E25<>\"\",0,L25)","v":2},{"$f":"(IF(G25<>\"\",1/3,0)+IF(H25<>\"\",2/3,0)+IF(I25<>\"\",1,0))*L$21*10*N25/SUM(N$22:N$26)","v":0},null,{"$f":"COUNTA(E25:I25)","v":0},{"$f":"COUNTBLANK(J25)","v":0}]
[null,"·    en garantissant (auto-contrôle) la conformité de ses interventions ;              ·    en s’impliquant dans la démarche qualité.",null,"-   Effectivité et rigueur de la contribution au système qualité de l’organisme.",null,null,null,null,null,{"$f":"IF(Q26>1,\"◄\",(IF(Q26<1,\"◄\",\"\")))","v":"◄"},null,1,null,{"$f":"IF(E26<>\"\",0,L26)","v":1},{"$f":"(IF(G26<>\"\",1/3,0)+IF(H26<>\"\",2/3,0)+IF(I26<>\"\",1,0))*L$21*10*N26/SUM(N$22:N$26)","v":0},null,{"$f":"COUNTA(E26:I26)","v":0},{"$f":"COUNTBLANK(J26)","v":0}]
[null,"C07. Effectuer des contrôles d'inspection et des essais de tout ou partie d'un aéronef léger",null,null,null,null,null,null,null,null,null,0.7,{"$f":"(SUM(M28:M38))","v":0},{"$f":"SUM(N28:N38)","v":13},{"$f":"SUM(O28:O38)","v":0}]
[null,"-   Mettre en œuvre les mesures de prévention et de protection règlementaires.",null,"-   Respect des conditions de sécurité. ",null,null,null,null,null,{"$f":"IF(Q28>1,\"◄\",(IF(Q28<1,\"◄\",\"\")))","v":"◄"},null,1,{"$f":"SUM(O28)","v":0},{"$f":"IF(E28<>\"\",0,L28)","v":1},{"$f":"(IF(G28<>\"\",1/3,0)+IF(H28<>\"\",2/3,0)+IF(I28<>\"\",1,0))*L$27*10*N28/SUM(N$28:N$38)","v":0},null,{"$f":"COUNTA(E28:I28)","v":0},{"$f":"COUNTBLANK(J28)","v":0}]
[null,"-   Rechercher les causes possibles d’une panne.",null,"-   Exactitude de l’identification des causes de pannes.",null,null,null,null,null,"◄",null,3,0,3,{"$f":"(IF(G29<>\"\",1/3,0)+IF(H29<>\"\",2/3,0)+IF(I29<>\"\",1,0))*L$27*10*N29/SUM(N$28:N$38)","v":0},null,0,0]
[null,"-   Identifier et utiliser les outils de diagnostic et de contrôle nécessaires.",null,"-   Choix et utilisation corrects des outils de diagnostic et de contrôle.",null,null,null,null,null,"◄",null,1,0,1,0,null,0,0]
[null,"-   Identifier les procédures d'urgence liées aux essais.",null,"-   Exactitude de l’identification des procédures associées à l’essai.",null,null,null,null,null,"◄",null,1,0,1,0,null,0,0]
[null,"-   Réaliser des essais, des contrôles, des mesures et des points fixes.",null,"-   Respect des conditions de mise en œuvre des équipements d’inspection ou d’essai.",null,null,null,null,null,"◄",null,1,{"$f":"SUM(O32:O34)","v":0},1,0,null,0,0]
[null,null,null,"-   Respect des protocoles de contrôle ou d’essai.",null,null,null,null,null,"◄",null,1,null,1,0,null,0,0]
[null,null,null,"-   Remise en état initial de l’aéronef ou du sous-ensemble.",null,null,null,null,null,"◄",null,1,null,1,0,null,0,0]
[null,"-   Caractériser des écarts.",null,"-   Caractérisation correcte des écarts constatés.",null,null,null,null,null,"◄",null,1,0,1,0,null,0,0]
[null,"-   Identifier la procédure corrective à mettre en œuvre en fonction des écarts constatés.",null,"-   Adéquation de la procédure corrective envisagée aux écarts constatés.",null,null,null,null,null,"◄",null,1,0,1,0,null,0,0]
[null,"-   Préparer le certificat de remise en service en vue de son émission.",null,"-   Exactitude et exploitabilité des renseignements portés dans les documents de traçabilité (procès verbal d’essai ou de point fixe).",null,null,null,null,null,"◄",null,1,{"$f":"SUM(O37:O38)","v":0},1,0,null,0,0]
[null,null,null,"-   Exactitude et exhaustivité des informations portées sur le certificat de remise en service.",null,null,null,null,null,"◄",null,1,null,1,0,null,0,0]
[null,null,null,null,"Taux d'indicateurs pour C05",null,{"$f":"N21/SUM(L22:L26)","v":1}]
[null,null,null,null,"Taux d'indicateurs pour C07",null,{"$f":"N27/SUM(L28:L38)","v":1}]
[null,null,null,null,"Note brute obtenue par calcul automatique (Attention si le taux de couverture des compétences est inférieur à 50%, la note n'est pas recevable) :",null,{"$f":"IF(OR(S21=0,G39<0.5,G40<0.5),\"!\",(M27+M21))","v":"!"},null,"/10"]
[]
[null,"Compétences évaluées",null,"Indicateurs de performance                                      évaluation","non",0,0.33333333333333331,0.66666666666666663,"3/3",null,null,"Poids de la compétence","Notes","Éval","Notes"]
["Partie 2                           Communication d’informations","C08. Communiquer des informations dans un contexte aéronautique  ",null,null,null,null,null,null,null,null,null,1,{"$f":"(SUM(M45:M51))","v":0},{"$f":"SUM(N45:N51)","v":8},{"$f":"SUM(O45:O51)","v":0},null,null,{"$f":"SUM(R45:R51)","v":0},{"$f":"IF(R44=7,1,0)","v":0}]
[null,"-   Communiquer par écrit en langue française, oralement et par gestes pour :",null,"-   Respect de la réglementation.",null,null,null,null,null,{"$f":"IF(Q45>1,\"◄\",(IF(Q45<1,\"◄\",\"\")))","v":"◄"},null,1,{"$f":"SUM(O45:O51)","v":0},{"$f":"IF(E45<>\"\",0,L45)","v":1},{"$f":"(IF(G45<>\"\",1/3,0)+IF(H45<>\"\",2/3,0)+IF(I45<>\"\",1,0))*L$44*10*N45/SUM(N$45:N$51)","v":0},null,{"$f":"COUNTA(E45:I45)","v":0},{"$f":"COUNTBLANK(J45)","v":0}]
[null,"·    échanger avec les infrastructures au sol ;",null,"-   Choix correct du destinataire et du moment de la transmission des informations et/ou du message.",null,null,null,null,null,"◄",null,1,null,1,{"$f":"(IF(G46<>\"\",1/3,0)+IF(H46<>\"\",2/3,0)+IF(I46<>\"\",1,0))*L$44*10*N46/SUM(N$45:N$51)","v":0},null,0,0]
[null,"·    signaler les anomalies ;",null,"-   Adéquation du langage utilisé à l’interlocuteur. ",null,null,null,null,null,"◄",null,1,null,1,0,null,0,0]
[null,"·    consigner des résultats ;",null,"-   Univocité de la transmission des informations et/ou du message.",null,null,null,null,null,"◄",null,1,null,1,0,null,0,0]
[null,"·    renseigner les documents de traçabilité ;",null,"-   Effectivité et conformité du signalement des anomalies.",null,null,null,null,null,"◄",null,2,null,2,0,null,0,0]
[null,"·    informer le client.",null,"-   Exactitude des résultats consignés.",null,null,null,null,null,"◄",null,1,null,1,0,null,0,0]
[null,null,null,"-   Exactitude du renseignement des documents de traçabilité.",null,null,null,null,null,"◄",null,1,null,1,0,null,0,0]
[null,null,null,null,"Taux d'indicateurs pour C08",null,{"$f":"N44/SUM(L45:L51)","v":1}]
[null,null,null,null,"Note brute obtenue par calcul automatique (Attention si le taux de couverture des compétences est inférieur à 50%, le sujet n'est pas recevable) :",null,{"$f":"IF(OR(S44=0,G52<0.5),\"!\",(M44))","v":"!"},null," /10"]
[]
[null,null,null,null,"Moyenne des notes obtenues aux deux parties :",null,{"$f":"SUM(G41,G53)","v":0},null," /20"]
[null,null,null,null,"Note sur 20 proposée au jury* :",null,null,null,"/20"]
["ATTENTION, si le symbole ◄ apparait dans cette colonne c'est qu'il y a plus d'une valeur donnée à l'indicateur, il faut alors choisir laquelle retenir, ou alors que l'indicateur est coché \"non évalué\""]
["* La note proposée, arrondie au demi point, est décidée par les évaluateurs à partir de la note brute qui peut être modulée de + 0 à + 1 point en fonction de la réactivité du candidat ou de tout autre attitude professionnelle positive observée."]
[]
[null,"Appréciation globale",null,{"$f":"(IF(R55>0,\"Attention erreur de saisie ! Voir ci-dessus\",\"\"))","v":""}]
[]
[]
[null,"Noms des Correcteurs",null,"Signatures",null,"Date"]
[]
[]
[]
[null,null,null,null,null,{"$f":"TODAY()","v":"2015-01-07"}]

{"sheet":"MC E1 AMT","index":17,"n_rows":67,"n_cols":33,"rows_kept":67,"cut":false,"hidden":true,"merged":[[57,0,57,9],[42,1,42,3],[43,1,43,2],[44,1,44,2],[45,1,45,2],[46,1,46,2],[47,1,47,2],[48,1,48,2],[49,1,49,2],[56,6,56,7],[56,8,56,9],[43,28,43,32],[42,0,53,0],[37,6,37,9],[38,6,38,9],[55,6,55,7],[55,8,55,9],[50,1,50,2],[51,1,51,2],[52,1,52,2],[53,1,53,2],[42,5,42,6],[43,8,43,9],[43,11,43,12],[43,14,43,15],[43,20,43,25],[40,0,40,9],[21,0,36,0],[39,6,39,7],[39,8,39,9],[22,1,22,2],[0,1,0,8],[1,1,1,2],[1,3,1,8],[2,1,2,2],[2,3,2,8],[3,1,3,2],[3,3,3,8],[4,1,4,2],[4,3,4,8],[5,1,5,2],[5,3,5,8],[6,1,6,2],[6,3,6,8],[7,1,7,2],[7,3,7,8],[8,1,8,2],[8,3,8,8],[9,1,9,2],[9,3,9,8],[10,1,10,8],[11,1,11,8],[12,1,18,8],[19,10,19,11],[20,1,20,2],[21,1,21,8],[23,1,23,2],[24,1,24,2],[32,1,32,2],[35,1,35,2],[36,1,36,2],[25,1,25,2],[26,1,26,2],[27,1,27,2],[28,1,28,8],[29,1,29,2],[30,1,30,2],[31,1,31,2],[33,1,33,2],[34,1,34,2],[59,1,59,2],[59,3,59,8],[60,1,60,8],[62,1,62,2],[62,5,62,8],[63,1,63,2],[63,5,63,8],[64,1,64,2],[65,1,65,2],[66,1,66,2],[66,5,66,8]]}
[null,"Identifications"]
[null,"Diplôme :",null,"Mention Complémentaire « Aéronautique»"]
[null,"Option :  ",null,{"$f":"CONCATENATE(Identification!B11)","v":"Sélectionner une option à partir de la liste déroulante"}]
[null,"Epreuve :",null,"Épreuve E1 : ETUDE DE SITUATIONS DE MAINTENANCE D'AERONEFS"]
[null,"Établissement :",null,{"$f":"CONCATENATE(Identification!B4)","v":""}]
[null,"Session : ",null,{"$f":"CONCATENATE(Identification!B12)","v":""}]
[null,"Nom du candidat :",null,{"$f":"CONCATENATE(Identification!B5)","v":""}]
[null,"Prénom du candidat :",null,{"$f":"CONCATENATE(Identification!B6)","v":""}]
[null,"Date de l'évaluation :"]
[null,"Lieu de l'évaluation (entreprise ou centre de formation) :"]
[]
[null,"Description sommaire du travail demandé (le sujet complet doit être joint à cette fiche) :"]
[]
[]
[]
[]
[]
[]
[]
[]
[null,"Compétences évaluées",null,"Indicateurs de performance                                      évaluation","non",0,0.33333333333333331,0.66666666666666663,"3/3",null,null,"Poids de la compétence","Notes","Éval","Notes"]
["Partie 1 - Coef. 1","C01 - Exploiter les informations relatives à une situation de maintenance d’un aéronef",null,null,null,null,null,null,null,null,null,0.4,{"$f":"(SUM(M23:M28))","v":0},{"$f":"SUM(N23:N28)","v":7},{"$f":"SUM(O23:O28)","v":0},null,null,{"$f":"SUM(R23:R37)","v":0},{"$f":"IF(R22=14,1,0)","v":0}]
[null,"-      Utiliser tous les types de sources d’information.",null,"-      Utilisation conforme de tous les types de sources d’information.",null,null,null,null,null,{"$f":"IF(Q23>1,\"◄\",(IF(Q23<1,\"◄\",\"\")))","v":"◄"},null,1,{"$f":"SUM(O23)*2","v":0},{"$f":"IF(E23<>\"\",0,L23)","v":1},{"$f":"(IF(G23<>\"\",1/3,0)+IF(H23<>\"\",2/3,0)+IF(I23<>\"\",1,0))*L$22*10*N23/SUM(N$23:N$28)","v":0},null,{"$f":"COUNTA(E23:I23)","v":0},{"$f":"COUNTBLANK(J23)","v":0}]
[null,"-      Identifier les informations pertinentes au regard de la situation.",null,"-      Exhaustivité de la sélection des informations nécessaires.",null,null,null,null,null,"◄",null,1,0,1,0,null,0,0]
[null,"-      Contrôler l’applicabilité des informations identifiées.",null,"-      Effectivité du contrôle de l’applicabilité de la documentation.",null,null,null,null,null,"◄",null,1,0,1,0,null,0,0]
[null,"-      Décoder des informations orales ou écrites y compris en langue anglaise.",null,"-      Exactitude du décodage des informations.",null,null,null,null,null,"◄",null,1,0,1,0,null,0,0]
[null,"-      Déduire, à partir des informations, la nature de la situation de maintenance à traiter.",null,"-      Exactitude de l’identification de la situation de maintenance à traiter.",null,null,null,null,null,"◄",null,1,0,1,0,null,0,0]
[null,"-      Déterminer les conditions de la remise en service.",null,"-      Exactitude et exhaustivité des conditions de la remise en service.",null,null,null,null,null,"◄",null,2,0,2,0,null,0,0]
[null,"C02 - Organiser une situation de maintenance d’aéronef ",null,null,null,null,null,null,null,null,null,0.6,{"$f":"(SUM(M30:M37))","v":0},{"$f":"SUM(N30:N37)","v":9},{"$f":"SUM(O30:O37)","v":0}]
[null," -      Identifier la liste des opérations de maintenance à conduire sur un aéronef à partir d'un bon de commande et/ou d'un compte-rendu de vol",null,"-      Identification exacte des opérations de maintenance à conduire.",null,null,null,null,null,{"$f":"IF(Q30>1,\"◄\",(IF(Q30<1,\"◄\",\"\")))","v":"◄"},null,1,{"$f":"SUM(O30)*2","v":0},{"$f":"IF(E30<>\"\",0,L30)","v":1},{"$f":"(IF(G30<>\"\",1/3,0)+IF(H30<>\"\",2/3,0)+IF(I30<>\"\",1,0))*L$29*10*N30/SUM(N$30:N$37)","v":0},null,{"$f":"COUNTA(E30:I30)","v":0},{"$f":"COUNTBLANK(J30)","v":0}]
[null,"-      Identifier ou déterminer les temps d’intervention.",null,"-      Identification juste ou détermination crédible des temps d’intervention au regard du contexte (lieu, délais, météorologie, qualifications, plan de charge des moyens …).",null,null,null,null,null,"◄",null,1,0,1,{"$f":"(IF(G31<>\"\",1/3,0)+IF(H31<>\"\",2/3,0)+IF(I31<>\"\",1,0))*L$29*10*N31/SUM(N$30:N$37)","v":0},null,0,0]
[null,"-      Proposer la liste des opérations reportables compte tenu des contraintes technico-économiques et réglementaires.",null,"-      Proposition argumentée des opérations reportables en fonction des contraintes.",null,null,null,null,null,"◄",null,1,0,1,0,null,0,0]
[null,"-      Identifier les habilitations nécessaires à la situation de maintenance.",null,"-      Identification exacte des habilitations nécessaires.",null,null,null,null,null,"◄",null,1,0,1,0,null,0,0]
[null,"-      Identifier la disponibilité des moyens humains, matériels, des pièces de rechange et des consommables nécessaires à l’intervention.",null,"-      Identification exacte de la disponibilité des moyens humains, matériels, des pièces de rechange et des consommables.",null,null,null,null,null,"◄",null,1,0,1,0,null,0,0]
[null,"-      Identifier les procédures concernées du plan qualité et du plan sécurité de l’entreprise.",null,"-      Identification exacte des procédures concernées du plan qualité et du plan de sécurité de l’entreprise.",null,null,null,null,null,"◄",null,1,0,1,0,null,0,0]
[null,"-      Ordonnancer les interventions.",null,"-      Pertinence de l’ordonnancement des différentes interventions.",null,null,null,null,null,"◄",null,2,0,2,0,null,0,0]
[null,"-      Coordonner les interventions.",null,"-      Coordination efficiente des différentes interventions au regard des contraintes.",null,null,null,null,null,"◄",null,1,0,1,0,null,0,0]
[null,null,null,null,"Taux d'indicateurs pour C01",null,{"$f":"N22/SUM(L23:L28)","v":1}]
[null,null,null,null,"Taux d'indicateurs pour C02",null,{"$f":"N29/SUM(L30:L37)","v":1}]
[null,null,null,null,"Note brute obtenue par calcul automatique (Attention si le taux de couverture des compétences est inférieur à 60%, la note n'est pas recevable) :",null,{"$f":"IF(OR(S22=0,G38<0.6,G39<0.6),\"!\",(M22+M29))","v":"!"},null," /20"]
["ATTENTION, si le symbole ◄ apparait dans cette colonne c'est qu'il y a plus d'une valeur donnée à l'indicateur, il faut alors choisir laquelle retenir, ou alors que l'indicateur est coché \"non évalué\""]
[]
["Partie 2 - Coef. 2",{"$f":"CONCATENATE(Identification!B11)","v":"Sélectionner une option à partir de la liste déroulante"}]
[null,"Savoirs",null,"Résultats",null,null,null,null,null,null,null,null,null,null,null,null,null,null,null,null,"Résultats pondérés",null,null,null,null,null,null,null,"Nombre de QCM par module"]
[null,"S5",null,"A saisir",null,null,null,null,null,null,null,null,null,null,null,null,null,null,null,null,"SAVOIR","AMT","AMP","HMT","HMP","AVI",null,"SAVOIR","AMT","AMP","HMT","HMP","AVI"]
[null,"S7A",null,"A saisir",null,null,null,null,null,null,null,null,null,null,null,null,null,null,null,null,"S5",{"$f":"IF(D45=\"Acquis\",AC46,\"\")","v":""},{"$f":"IF(G45=\"Acquis\",AD46,\"\")","v":""},{"$f":"IF(J46=\"Acquis\",AE46,\"\")","v":""},{"$f":"IF(M46=\"Acquis\",AF46,\"\")","v":""},{"$f":"IF(P46=\"Acquis\",AG46,\"\")","v":""},null,"S5",40,20,40,20,72]
[null,"S7A QD",null,"A saisir",null,null,null,null,null,null,null,null,null,null,null,null,null,null,null,null,"S7A","",{"$f":"IF(G46=\"Acquis\",AD47,\"\")","v":""},{"$f":"IF(J47=\"Acquis\",AE47,\"\")","v":""},{"$f":"IF(M47=\"Acquis\",AF47,\"\")","v":""},{"$f":"IF(P47=\"Acquis\",AG47,\"\")","v":""},null,"S7A",80,80,80,80,60]
[null,"S10",null,"A saisir",null,null,null,null,null,null,null,null,null,null,null,null,null,null,null,null,"S7A QD","",{"$f":"IF(G47=\"Acquis\",AD48,\"\")","v":""},{"$f":"IF(J48=\"Acquis\",AE48,\"\")","v":""},{"$f":"IF(M48=\"Acquis\",AF48,\"\")","v":""},{"$f":"IF(P48=\"Acquis\",AG48,\"\")","v":""},null,"S7A QD",32,32,32,32,32]
[null,"S10 QD",null,"A saisir",null,null,null,null,null,null,null,null,null,null,null,null,null,null,null,null,"S10","",{"$f":"IF(G48=\"Acquis\",AD49,\"\")","v":""},{"$f":"IF(J49=\"Acquis\",AE49,\"\")","v":""},{"$f":"IF(M49=\"Acquis\",AF49,\"\")","v":""},{"$f":"IF(P49=\"Acquis\",AG49,\"\")","v":""},null,"S10",40,40,40,40,40]
[null,"S11A",null,"A saisir",null,null,null,null,null,null,null,null,null,null,null,null,null,null,null,null,"S10 QD","",{"$f":"IF(G49=\"Acquis\",AD50,\"\")","v":""},{"$f":"IF(J50=\"Acquis\",AE50,\"\")","v":""},{"$f":"IF(M50=\"Acquis\",AF50,\"\")","v":""},{"$f":"IF(P50=\"Acquis\",AG50,\"\")","v":""},null,"S10 QD",16,16,16,16,16]
[null,"S15",null,"A saisir",null,null,null,null,null,null,null,null,null,null,null,null,null,null,null,null,"S11A","",null,null,null,null,null,"S11A",140]
[null,"S17A",null,"A saisir",null,null,null,null,null,null,null,null,null,null,null,null,null,null,null,null,"S11B",null,{"$f":"IF(G50=\"Acquis\",AD52,\"\")","v":""},null,null,null,null,"S11B",null,100]
[null,"Note Partielle",null,{"$f":"CEILING(((SUM(V46:V58)/AC59)*20),0.5)","v":0},null,null,null,null,null,null,null,null,null,null,null,null,null,null,null,null,"S12",null,null,{"$f":"IF(J51=\"Acquis\",AE53,\"\")","v":""},{"$f":"IF(M51=\"Acquis\",AF53,\"\")","v":""},null,null,"S12",null,null,128,128]
[null,"Note partie 2 sur 20",null,{"$f":"IF(C36=S36,IF(OR(D45=\"A saisir\",D46=\"A saisir\",D47=\"A saisir\",D48=\"A saisir\",D49=\"A saisir\",D50=\"A saisir\",D51=\"A saisir\",D52=\"A saisir\"),\"Résultats à saisir\",CEILING(((SUM(V46:V58)/AC59)*20),0.5)),\"\")","v":"Résultats à saisir"},null,null,null,null,null,null,null,null,null,null,null,null,null,null,null,null,"S13",null,null,null,null,{"$f":"IF(P51=\"Acquis\",AG54,\"\")","v":""},null,"S13",null,null,null,null,180]
[null,null,null,null,null,null,null,null,null,null,null,null,null,null,null,null,null,null,null,null,"S14",null,null,null,null,{"$f":"IF(P52=\"Acquis\",AG55,\"\")","v":""},null,"S14",null,null,null,null,24]
[null,null,null,null,"Note des deux parties sur 20 :",null,{"$f":"(SUM(D54,G40,D54)/3)","v":0},null,"/20",null,null,null,null,null,null,null,null,null,null,null,"S15",{"$f":"IF(D51=\"Acquis\",AC56,\"\")","v":""},null,{"$f":"IF(J52=\"Acquis\",AE56,\"\")","v":""},null,null,null,"S15",92,null,92]
[null,null,null,null,"Note des deux parties sur 20 proposée au jury* :",null,null,null,"/20",null,null,null,null,null,null,null,null,null,null,null,"S16",null,{"$f":"IF(G51=\"Acquis\",AD57,\"\")","v":""},null,{"$f":"IF(M52=\"Acquis\",AF57,\"\")","v":""},null,null,"S16",null,72,null,72]
["* La note proposée, arrondie au demi point, est décidée par les évaluateurs à partir de la note brute qui peut être modulée de + 0 à + 1 point en fonction de la réactivité du candidat ou de tout autre attitude professionnelle positive observée.",null,null,null,null,null,null,null,null,null,null,null,null,null,null,null,null,null,null,null,"S17A",{"$f":"IF(D52=\"Acquis\",AC58,\"\")","v":""},{"$f":"IF(G52=\"Acquis\",AD58,\"\")","v":""},null,null,null,null,"S17A",32,32]
[null,null,null,null,null,null,null,null,null,null,null,null,null,null,null,null,null,null,null,null,null,null,null,null,null,null,null,"Total QCM",{"$f":"SUM(AC46:AC58)","v":472},{"$f":"SUM(AD46:AD58)","v":392},{"$f":"SUM(AE46:AE58)","v":428},{"$f":"SUM(AF46:AF58)","v":388},{"$f":"SUM(AG46:AG58)","v":424}]
[null,"Appréciation globale"]
[]
[]
[null,"Noms des Correcteurs",null,"Signatures",null,"Date"]
[]
[]
[]
[null,null,null,null,null,{"$f":"TODAY()","v":"2015-01-07"}]

{"sheet":"MC E1 AMP","index":18,"n_rows":67,"n_cols":33,"rows_kept":67,"cut":false,"hidden":true,"merged":[[40,0,40,9],[57,0,57,9],[63,1,63,2],[63,5,63,8],[64,1,64,2],[52,1,52,2],[53,1,53,2],[55,6,55,7],[55,8,55,9],[56,6,56,7],[56,8,56,9],[46,1,46,2],[47,1,47,2],[48,1,48,2],[49,1,49,2],[50,1,50,2],[65,1,65,2],[66,1,66,2],[66,5,66,8],[59,1,59,2],[59,3,59,8],[60,1,60,8],[62,1,62,2],[62,5,62,8],[43,11,43,12],[43,14,43,15],[43,20,43,25],[43,28,43,32],[44,1,44,2],[42,0,53,0],[42,1,42,3],[42,5,42,6],[43,1,43,2],[43,8,43,9],[51,1,51,2],[45,1,45,2],[35,1,35,2],[37,6,37,9],[38,6,38,9],[39,6,39,7],[39,8,39,9],[10,1,10,8],[11,1,11,8],[12,1,18,8],[19,10,19,11],[20,1,20,2],[21,0,36,0],[21,1,21,8],[22,1,22,2],[23,1,23,2],[24,1,24,2],[36,1,36,2],[25,1,25,2],[26,1,26,2],[27,1,27,2],[28,1,28,8],[29,1,29,2],[30,1,30,2],[31,1,31,2],[32,1,32,2],[33,1,33,2],[34,1,34,2],[7,1,7,2],[7,3,7,8],[8,1,8,2],[8,3,8,8],[9,1,9,2],[9,3,9,8],[4,1,4,2],[4,3,4,8],[5,1,5,2],[5,3,5,8],[6,1,6,2],[6,3,6,8],[3,1,3,2],[3,3,3,8],[0,1,0,8],[1,1,1,2],[1,3,1,8],[2,1,2,2],[2,3,2,8]]}
[null,"Identifications"]
[null,"Diplôme :",null,"Mention Complémentaire « Aéronautique»"]
[null,"Option :  ",null,{"$f":"CONCATENATE(Identification!B11)","v":"Sélectionner une option à partir de la liste déroulante"}]
[null,"Epreuve :",null,"Épreuve E1 : ETUDE DE SITUATIONS DE MAINTENANCE D'AERONEFS"]
[null,"Établissement :",null,{"$f":"CONCATENATE(Identification!B4)","v":""}]
[null,"Session : ",null,{"$f":"CONCATENATE(Identification!B12)","v":""}]
[null,"Nom du candidat :",null,{"$f":"CONCATENATE(Identification!B5)","v":""}]
[null,"Prénom du candidat :",null,{"$f":"CONCATENATE(Identification!B6)","v":""}]
[null,"Date de l'évaluation :"]
[null,"Lieu de l'évaluation (entreprise ou centre de formation) :"]
[]
[null,"Description sommaire du travail demandé (le sujet complet doit être joint à cette fiche) :"]
[]
[]
[]
[]
[]
[]
[]
[]
[null,"Compétences évaluées",null,"Indicateurs de performance                                      évaluation","non",0,0.33333333333333331,0.66666666666666663,"3/3",null,null,"Poids de la compétence","Notes","Éval","Notes"]
["Partie 1 - Coef. 1","C01 - Exploiter les informations relatives à une situation de maintenance d’un aéronef",null,null,null,null,null,null,null,null,null,0.4,{"$f":"(SUM(M23:M28))","v":0},{"$f":"SUM(N23:N28)","v":7},{"$f":"SUM(O23:O28)","v":0},null,null,{"$f":"SUM(R23:R37)","v":0},{"$f":"IF(R22=14,1,0)","v":0}]
[null,"-      Utiliser tous les types de sources d’information.",null,"-      Utilisation conforme de tous les types de sources d’information.",null,null,null,null,null,{"$f":"IF(Q23>1,\"◄\",(IF(Q23<1,\"◄\",\"\")))","v":"◄"},null,1,{"$f":"SUM(O23)*2","v":0},{"$f":"IF(E23<>\"\",0,L23)","v":1},{"$f":"(IF(G23<>\"\",1/3,0)+IF(H23<>\"\",2/3,0)+IF(I23<>\"\",1,0))*L$22*10*N23/SUM(N$23:N$28)","v":0},null,{"$f":"COUNTA(E23:I23)","v":0},{"$f":"COUNTBLANK(J23)","v":0}]
[null,"-      Identifier les informations pertinentes au regard de la situation.",null,"-      Exhaustivité de la sélection des informations nécessaires.",null,null,null,null,null,"◄",null,1,0,1,0,null,0,0]
[null,"-      Contrôler l’applicabilité des informations identifiées.",null,"-      Effectivité du contrôle de l’applicabilité de la documentation.",null,null,null,null,null,"◄",null,1,0,1,0,null,0,0]
[null,"-      Décoder des informations orales ou écrites y compris en langue anglaise.",null,"-      Exactitude du décodage des informations.",null,null,null,null,null,"◄",null,1,0,1,0,null,0,0]
[null,"-      Déduire, à partir des informations, la nature de la situation de maintenance à traiter.",null,"-      Exactitude de l’identification de la situation de maintenance à traiter.",null,null,null,null,null,"◄",null,1,0,1,0,null,0,0]
[null,"-      Déterminer les conditions de la remise en service.",null,"-      Exactitude et exhaustivité des conditions de la remise en service.",null,null,null,null,null,"◄",null,2,0,2,0,null,0,0]
[null,"C02 - Organiser une situation de maintenance d’aéronef ",null,null,null,null,null,null,null,null,null,0.6,{"$f":"(SUM(M30:M37))","v":0},{"$f":"SUM(N30:N37)","v":9},{"$f":"SUM(O30:O37)","v":0}]
[null," -      Identifier la liste des opérations de maintenance à conduire sur un aéronef à partir d'un bon de commande et/ou d'un compte-rendu de vol",null,"-      Identification exacte des opérations de maintenance à conduire.",null,null,null,null,null,{"$f":"IF(Q30>1,\"◄\",(IF(Q30<1,\"◄\",\"\")))","v":"◄"},null,1,{"$f":"SUM(O30)*2","v":0},{"$f":"IF(E30<>\"\",0,L30)","v":1},{"$f":"(IF(G30<>\"\",1/3,0)+IF(H30<>\"\",2/3,0)+IF(I30<>\"\",1,0))*L$29*10*N30/SUM(N$30:N$37)","v":0},null,{"$f":"COUNTA(E30:I30)","v":0},{"$f":"COUNTBLANK(J30)","v":0}]
[null,"-      Identifier ou déterminer les temps d’intervention.",null,"-      Identification juste ou détermination crédible des temps d’intervention au regard du contexte (lieu, délais, météorologie, qualifications, plan de charge des moyens …).",null,null,null,null,null,"◄",null,1,0,1,{"$f":"(IF(G31<>\"\",1/3,0)+IF(H31<>\"\",2/3,0)+IF(I31<>\"\",1,0))*L$29*10*N31/SUM(N$30:N$37)","v":0},null,0,0]
[null,"-      Proposer la liste des opérations reportables compte tenu des contraintes technico-économiques et réglementaires.",null,"-      Proposition argumentée des opérations reportables en fonction des contraintes.",null,null,null,null,null,"◄",null,1,0,1,0,null,0,0]
[null,"-      Identifier les habilitations nécessaires à la situation de maintenance.",null,"-      Identification exacte des habilitations nécessaires.",null,null,null,null,null,"◄",null,1,0,1,0,null,0,0]
[null,"-      Identifier la disponibilité des moyens humains, matériels, des pièces de rechange et des consommables nécessaires à l’intervention.",null,"-      Identification exacte de la disponibilité des moyens humains, matériels, des pièces de rechange et des consommables.",null,null,null,null,null,"◄",null,1,0,1,0,null,0,0]
[null,"-      Identifier les procédures concernées du plan qualité et du plan sécurité de l’entreprise.",null,"-      Identification exacte des procédures concernées du plan qualité et du plan de sécurité de l’entreprise.",null,null,null,null,null,"◄",null,1,0,1,0,null,0,0]
[null,"-      Ordonnancer les interventions.",null,"-      Pertinence de l’ordonnancement des différentes interventions.",null,null,null,null,null,"◄",null,2,0,2,0,null,0,0]
[null,"-      Coordonner les interventions.",null,"-      Coordination efficiente des différentes interventions au regard des contraintes.",null,null,null,null,null,"◄",null,1,0,1,0,null,0,0]
[null,null,null,null,"Taux d'indicateurs pour C01",null,{"$f":"N22/SUM(L23:L28)","v":1}]
[null,null,null,null,"Taux d'indicateurs pour C02",null,{"$f":"N29/SUM(L30:L37)","v":1}]
[null,null,null,null,"Note brute obtenue par calcul automatique (Attention si le taux de couverture des compétences est inférieur à 60%, la note n'est pas recevable) :",null,{"$f":"IF(OR(S22=0,G38<0.6,G39<0.6),\"!\",(M22+M29))","v":"!"},null," /20"]
["ATTENTION, si le symbole ◄ apparait dans cette colonne c'est qu'il y a plus d'une valeur donnée à l'indicateur, il faut alors choisir laquelle retenir, ou alors que l'indicateur est coché \"non évalué\""]
[]
["Partie 2 - Coef. 2",{"$f":"CONCATENATE(Identification!B11)","v":"Sélectionner une option à partir de la liste déroulante"}]
[null,"Savoirs",null,"Résultats",null,null,null,null,null,null,null,null,null,null,null,null,null,null,null,null,"Résultats pondérés",null,null,null,null,null,null,null,"Nombre de QCM par module"]
[null,"S5",null,"A saisir",null,null,null,null,null,null,null,null,null,null,null,null,null,null,null,null,"SAVOIR","AMT","AMP","HMT","HMP","AVI",null,"SAVOIR","AMT","AMP","HMT","HMP","AVI"]
[null,"S7A",null,"A saisir",null,null,null,null,null,null,null,null,null,null,null,null,null,null,null,null,"S5",{"$f":"IF(E45=\"Acquis\",AC46,\"\")","v":""},{"$f":"IF(D45=\"Acquis\",AD46,\"\")","v":""},{"$f":"IF(J46=\"Acquis\",AE46,\"\")","v":""},{"$f":"IF(M46=\"Acquis\",AF46,\"\")","v":""},{"$f":"IF(P46=\"Acquis\",AG46,\"\")","v":""},null,"S5",40,20,40,20,72]
[null,"S7A QD",null,"A saisir",null,null,null,null,null,null,null,null,null,null,null,null,null,null,null,null,"S7A","",{"$f":"IF(D46=\"Acquis\",AD47,\"\")","v":""},{"$f":"IF(J47=\"Acquis\",AE47,\"\")","v":""},{"$f":"IF(M47=\"Acquis\",AF47,\"\")","v":""},{"$f":"IF(P47=\"Acquis\",AG47,\"\")","v":""},null,"S7A",80,80,80,80,60]
[null,"S10",null,"A saisir",null,null,null,null,null,null,null,null,null,null,null,null,null,null,null,null,"S7A QD","",{"$f":"IF(D47=\"Acquis\",AD48,\"\")","v":""},{"$f":"IF(J48=\"Acquis\",AE48,\"\")","v":""},{"$f":"IF(M48=\"Acquis\",AF48,\"\")","v":""},{"$f":"IF(P48=\"Acquis\",AG48,\"\")","v":""},null,"S7A QD",32,32,32,32,32]
[null,"S10 QD",null,"A saisir",null,null,null,null,null,null,null,null,null,null,null,null,null,null,null,null,"S10","",{"$f":"IF(D48=\"Acquis\",AD49,\"\")","v":""},{"$f":"IF(J49=\"Acquis\",AE49,\"\")","v":""},{"$f":"IF(M49=\"Acquis\",AF49,\"\")","v":""},{"$f":"IF(P49=\"Acquis\",AG49,\"\")","v":""},null,"S10",40,40,40,40,40]
[null,"S11B",null,"A saisir",null,null,null,null,null,null,null,null,null,null,null,null,null,null,null,null,"S10 QD","",{"$f":"IF(D49=\"Acquis\",AD50,\"\")","v":""},{"$f":"IF(J50=\"Acquis\",AE50,\"\")","v":""},{"$f":"IF(M50=\"Acquis\",AF50,\"\")","v":""},{"$f":"IF(P50=\"Acquis\",AG50,\"\")","v":""},null,"S10 QD",16,16,16,16,16]
[null,"S16",null,"A saisir",null,null,null,null,null,null,null,null,null,null,null,null,null,null,null,null,"S11A","",null,null,null,null,null,"S11A",140]
[null,"S17A",null,"A saisir",null,null,null,null,null,null,null,null,null,null,null,null,null,null,null,null,"S11B",null,{"$f":"IF(D50=\"Acquis\",AD52,\"\")","v":""},null,null,null,null,"S11B",null,100]
[null,"Note Partielle",null,{"$f":"CEILING(((SUM(W46:W58)/AD59)*20),0.5)","v":0},null,null,null,null,null,null,null,null,null,null,null,null,null,null,null,null,"S12",null,null,{"$f":"IF(J51=\"Acquis\",AE53,\"\")","v":""},{"$f":"IF(M51=\"Acquis\",AF53,\"\")","v":""},null,null,"S12",null,null,128,128]
[null,"Note partie 2 sur 20",null,{"$f":"IF(M45=O45,IF(OR(D45=\"A saisir\",D46=\"A saisir\",D47=\"A saisir\",D48=\"A saisir\",D49=\"A saisir\",D50=\"A saisir\",D51=\"A saisir\",D52=\"A saisir\"),\"Résultats à saisir\",CEILING(((SUM(W46:W58)/AD59)*20),0.5)),\"\")","v":"Résultats à saisir"},null,null,null,null,null,null,null,null,null,null,null,null,null,null,null,null,"S13",null,null,null,null,{"$f":"IF(P51=\"Acquis\",AG54,\"\")","v":""},null,"S13",null,null,null,null,180]
[null,null,null,null,null,null,null,null,null,null,null,null,null,null,null,null,null,null,null,null,"S14",null,null,null,null,{"$f":"IF(P52=\"Acquis\",AG55,\"\")","v":""},null,"S14",null,null,null,null,24]
[null,null,null,null,"Note des deux parties sur 20 :",null,{"$f":"(SUM(D54,G40,D54)/3)","v":0},null,"/20",null,null,null,null,null,null,null,null,null,null,null,"S15",{"$f":"IF(E51=\"Acquis\",AC56,\"\")","v":""},null,{"$f":"IF(J52=\"Acquis\",AE56,\"\")","v":""},null,null,null,"S15",92,null,92]
[null,null,null,null,"Note des deux parties sur 20 proposée au jury* :",null,null,null,"/20",null,null,null,null,null,null,null,null,null,null,null,"S16",null,{"$f":"IF(D51=\"Acquis\",AD57,\"\")","v":""},null,{"$f":"IF(M52=\"Acquis\",AF57,\"\")","v":""},null,null,"S16",null,72,null,72]
["* La note proposée, arrondie au demi point, est décidée par les évaluateurs à partir de la note brute qui peut être modulée de + 0 à + 1 point en fonction de la réactivité du candidat ou de tout autre attitude professionnelle positive observée.",null,null,null,null,null,null,null,null,null,null,null,null,null,null,null,null,null,null,null,"S17A",{"$f":"IF(E52=\"Acquis\",AC58,\"\")","v":""},{"$f":"IF(D52=\"Acquis\",AD58,\"\")","v":""},null,null,null,null,"S17A",32,32]
[null,null,null,null,null,null,null,null,null,null,null,null,null,null,null,null,null,null,null,null,null,null,null,null,null,null,null,"Total QCM",{"$f":"SUM(AC46:AC58)","v":472},{"$f":"SUM(AD46:AD58)","v":392},{"$f":"SUM(AE46:AE58)","v":428},{"$f":"SUM(AF46:AF58)","v":388},{"$f":"SUM(AG46:AG58)","v":424}]
[null,"Appréciation globale"]
[]
[]
[null,"Noms des Correcteurs",null,"Signatures",null,"Date"]
[]
[]
[]
[null,null,null,null,null,{"$f":"TODAY()","v":"2015-01-07"}]

{"sheet":"MC E1 HMT","index":19,"n_rows":67,"n_cols":33,"rows_kept":67,"cut":false,"hidden":true,"merged":[[42,0,52,0],[40,0,40,9],[58,0,58,9],[63,1,63,2],[63,5,63,8],[51,1,51,2],[52,1,52,2],[55,6,55,7],[55,8,55,9],[56,6,56,7],[56,8,56,9],[46,1,46,2],[47,1,47,2],[48,1,48,2],[49,1,49,2],[50,1,50,2],[64,1,64,2],[65,1,65,2],[66,1,66,2],[66,5,66,8],[59,1,59,2],[62,1,62,2],[62,5,62,8],[43,11,43,12],[43,14,43,15],[43,20,43,25],[43,28,43,32],[44,1,44,2],[35,1,35,2],[45,1,45,2],[37,6,37,9],[38,6,38,9],[39,6,39,7],[39,8,39,9],[42,1,42,3],[42,5,42,6],[43,1,43,2],[43,8,43,9],[10,1,10,8],[11,1,11,8],[12,1,18,8],[19,10,19,11],[20,1,20,2],[21,0,36,0],[21,1,21,8],[22,1,22,2],[23,1,23,2],[24,1,24,2],[36,1,36,2],[25,1,25,2],[26,1,26,2],[27,1,27,2],[28,1,28,8],[29,1,29,2],[30,1,30,2],[31,1,31,2],[32,1,32,2],[33,1,33,2],[34,1,34,2],[7,1,7,2],[7,3,7,8],[8,1,8,2],[8,3,8,8],[9,1,9,2],[9,3,9,8],[4,1,4,2],[4,3,4,8],[5,1,5,2],[5,3,5,8],[6,1,6,2],[6,3,6,8],[3,1,3,2],[3,3,3,8],[0,1,0,8],[1,1,1,2],[1,3,1,8],[2,1,2,2],[2,3,2,8]]}
[null,"Identifications"]
[null,"Diplôme :",null,"Mention Complémentaire « Aéronautique»"]
[null,"Option :  ",null,{"$f":"CONCATENATE(Identification!B11)","v":"Sélectionner une option à partir de la liste déroulante"}]
[null,"Epreuve :",null,"Épreuve E1 : ETUDE DE SITUATIONS DE MAINTENANCE D'AERONEFS"]
[null,"Établissement :",null,{"$f":"CONCATENATE(Identification!B4)","v":""}]
[null,"Session : ",null,{"$f":"CONCATENATE(Identification!B12)","v":""}]
[null,"Nom du candidat :",null,{"$f":"CONCATENATE(Identification!B5)","v":""}]
[null,"Prénom du candidat :",null,{"$f":"CONCATENATE(Identification!B6)","v":""}]
[null,"Date de l'évaluation :"]
[null,"Lieu de l'évaluation (entreprise ou centre de formation) :"]
[]
[null,"Description sommaire du travail demandé (le sujet complet doit être joint à cette fiche) :"]
[]
[]
[]
[]
[]
[]
[]
[]
[null,"Compétences évaluées",null,"Indicateurs de performance                                      évaluation","non",0,0.33333333333333331,0.66666666666666663,"3/3",null,null,"Poids de la compétence","Notes","Éval","Notes"]
["Partie 1 - Coef. 1","C01 - Exploiter les informations relatives à une situation de maintenance d’un aéronef",null,null,null,null,null,null,null,null,null,0.4,{"$f":"(SUM(M23:M28))","v":0},{"$f":"SUM(N23:N28)","v":7},{"$f":"SUM(O23:O28)","v":0},null,null,{"$f":"SUM(R23:R37)","v":0},{"$f":"IF(R22=14,1,0)","v":0}]
[null,"-      Utiliser tous les types de sources d’information.",null,"-      Utilisation conforme de tous les types de sources d’information.",null,null,null,null,null,{"$f":"IF(Q23>1,\"◄\",(IF(Q23<1,\"◄\",\"\")))","v":"◄"},null,1,{"$f":"SUM(O23)*2","v":0},{"$f":"IF(E23<>\"\",0,L23)","v":1},{"$f":"(IF(G23<>\"\",1/3,0)+IF(H23<>\"\",2/3,0)+IF(I23<>\"\",1,0))*L$22*10*N23/SUM(N$23:N$28)","v":0},null,{"$f":"COUNTA(E23:I23)","v":0},{"$f":"COUNTBLANK(J23)","v":0}]
[null,"-      Identifier les informations pertinentes au regard de la situation.",null,"-      Exhaustivité de la sélection des informations nécessaires.",null,null,null,null,null,"◄",null,1,0,1,0,null,0,0]
[null,"-      Contrôler l’applicabilité des informations identifiées.",null,"-      Effectivité du contrôle de l’applicabilité de la documentation.",null,null,null,null,null,"◄",null,1,0,1,0,null,0,0]
[null,"-      Décoder des informations orales ou écrites y compris en langue anglaise.",null,"-      Exactitude du décodage des informations.",null,null,null,null,null,"◄",null,1,0,1,0,null,0,0]
[null,"-      Déduire, à partir des informations, la nature de la situation de maintenance à traiter.",null,"-      Exactitude de l’identification de la situation de maintenance à traiter.",null,null,null,null,null,"◄",null,1,0,1,0,null,0,0]
[null,"-      Déterminer les conditions de la remise en service.",null,"-      Exactitude et exhaustivité des conditions de la remise en service.",null,null,null,null,null,"◄",null,2,0,2,0,null,0,0]
[null,"C02 - Organiser une situation de maintenance d’aéronef ",null,null,null,null,null,null,null,null,null,0.6,{"$f":"(SUM(M30:M37))","v":0},{"$f":"SUM(N30:N37)","v":9},{"$f":"SUM(O30:O37)","v":0}]
[null," -      Identifier la liste des opérations de maintenance à conduire sur un aéronef à partir d'un bon de commande et/ou d'un compte-rendu de vol",null,"-      Identification exacte des opérations de maintenance à conduire.",null,null,null,null,null,{"$f":"IF(Q30>1,\"◄\",(IF(Q30<1,\"◄\",\"\")))","v":"◄"},null,1,{"$f":"SUM(O30)*2","v":0},{"$f":"IF(E30<>\"\",0,L30)","v":1},{"$f":"(IF(G30<>\"\",1/3,0)+IF(H30<>\"\",2/3,0)+IF(I30<>\"\",1,0))*L$29*10*N30/SUM(N$30:N$37)","v":0},null,{"$f":"COUNTA(E30:I30)","v":0},{"$f":"COUNTBLANK(J30)","v":0}]
[null,"-      Identifier ou déterminer les temps d’intervention.",null,"-      Identification juste ou détermination crédible des temps d’intervention au regard du contexte (lieu, délais, météorologie, qualifications, plan de charge des moyens …).",null,null,null,null,null,"◄",null,1,0,1,{"$f":"(IF(G31<>\"\",1/3,0)+IF(H31<>\"\",2/3,0)+IF(I31<>\"\",1,0))*L$29*10*N31/SUM(N$30:N$37)","v":0},null,0,0]
[null,"-      Proposer la liste des opérations reportables compte tenu des contraintes technico-économiques et réglementaires.",null,"-      Proposition argumentée des opérations reportables en fonction des contraintes.",null,null,null,null,null,"◄",null,1,0,1,0,null,0,0]
[null,"-      Identifier les habilitations nécessaires à la situation de maintenance.",null,"-      Identification exacte des habilitations nécessaires.",null,null,null,null,null,"◄",null,1,0,1,0,null,0,0]
[null,"-      Identifier la disponibilité des moyens humains, matériels, des pièces de rechange et des consommables nécessaires à l’intervention.",null,"-      Identification exacte de la disponibilité des moyens humains, matériels, des pièces de rechange et des consommables.",null,null,null,null,null,"◄",null,1,0,1,0,null,0,0]
[null,"-      Identifier les procédures concernées du plan qualité et du plan sécurité de l’entreprise.",null,"-      Identification exacte des procédures concernées du plan qualité et du plan de sécurité de l’entreprise.",null,null,null,null,null,"◄",null,1,0,1,0,null,0,0]
[null,"-      Ordonnancer les interventions.",null,"-      Pertinence de l’ordonnancement des différentes interventions.",null,null,null,null,null,"◄",null,2,0,2,0,null,0,0]
[null,"-      Coordonner les interventions.",null,"-      Coordination efficiente des différentes interventions au regard des contraintes.",null,null,null,null,null,"◄",null,1,0,1,0,null,0,0]
[null,null,null,null,"Taux d'indicateurs pour C01",null,{"$f":"N22/SUM(L23:L28)","v":1}]
[null,null,null,null,"Taux d'indicateurs pour C02",null,{"$f":"N29/SUM(L30:L37)","v":1}]
[null,null,null,null,"Note brute obtenue par calcul automatique (Attention si le taux de couverture des compétences est inférieur à 60%, la note n'est pas recevable) :",null,{"$f":"IF(OR(S22=0,G38<0.6,G39<0.6),\"!\",(M22+M29))","v":"!"},null," /20"]
["ATTENTION, si le symbole ◄ apparait dans cette colonne c'est qu'il y a plus d'une valeur donnée à l'indicateur, il faut alors choisir laquelle retenir, ou alors que l'indicateur est coché \"non évalué\""]
[]
["Partie 2 - Coef. 2",{"$f":"CONCATENATE(Identification!B11)","v":"Sélectionner une option à partir de la liste déroulante"}]
[null,"Savoirs",null,"Résultats",null,null,null,null,null,null,null,null,null,null,null,null,null,null,null,null,"Résultats pondérés",null,null,null,null,null,null,null,"Nombre de QCM par module"]
[null,"S5",null,"A saisir",null,null,null,null,null,null,null,null,null,null,null,null,null,null,null,null,"SAVOIR","AMT","AMP","HMT","HMP","AVI",null,"SAVOIR","AMT","AMP","HMT","HMP","AVI"]
[null,"S7A",null,"A saisir",null,null,null,null,null,null,null,null,null,null,null,null,null,null,null,null,"S5",{"$f":"IF(E45=\"Acquis\",AC46,\"\")","v":""},{"$f":"IF(H45=\"Acquis\",AD46,\"\")","v":""},{"$f":"IF(D45=\"Acquis\",AE46,\"\")","v":""},{"$f":"IF(M46=\"Acquis\",AF46,\"\")","v":""},{"$f":"IF(P46=\"Acquis\",AG46,\"\")","v":""},null,"S5",40,20,40,20,72]
[null,"S7A QD",null,"A saisir",null,null,null,null,null,null,null,null,null,null,null,null,null,null,null,null,"S7A","",{"$f":"IF(G46=\"Acquis\",AD47,\"\")","v":""},{"$f":"IF(D46=\"Acquis\",AE47,\"\")","v":""},{"$f":"IF(M47=\"Acquis\",AF47,\"\")","v":""},{"$f":"IF(P47=\"Acquis\",AG47,\"\")","v":""},null,"S7A",80,80,80,80,60]
[null,"S10",null,"A saisir",null,null,null,null,null,null,null,null,null,null,null,null,null,null,null,null,"S7A QD","",{"$f":"IF(G47=\"Acquis\",AD48,\"\")","v":""},{"$f":"IF(D47=\"Acquis\",AE48,\"\")","v":""},{"$f":"IF(M48=\"Acquis\",AF48,\"\")","v":""},{"$f":"IF(P48=\"Acquis\",AG48,\"\")","v":""},null,"S7A QD",32,32,32,32,32]
[null,"S10 QD",null,"A saisir",null,null,null,null,null,null,null,null,null,null,null,null,null,null,null,null,"S10","",{"$f":"IF(H48=\"Acquis\",AD49,\"\")","v":""},{"$f":"IF(D48=\"Acquis\",AE49,\"\")","v":""},{"$f":"IF(M49=\"Acquis\",AF49,\"\")","v":""},{"$f":"IF(P49=\"Acquis\",AG49,\"\")","v":""},null,"S10",40,40,40,40,40]
[null,"S12",null,"A saisir",null,null,null,null,null,null,null,null,null,null,null,null,null,null,null,null,"S10 QD","",{"$f":"IF(H49=\"Acquis\",AD50,\"\")","v":""},{"$f":"IF(D49=\"Acquis\",AE50,\"\")","v":""},{"$f":"IF(M50=\"Acquis\",AF50,\"\")","v":""},{"$f":"IF(P50=\"Acquis\",AG50,\"\")","v":""},null,"S10 QD",16,16,16,16,16]
[null,"S15",null,"A saisir",null,null,null,null,null,null,null,null,null,null,null,null,null,null,null,null,"S11A","",null,null,null,null,null,"S11A",140]
[null,"Note Partielle",null,{"$f":"CEILING(((SUM(X46:X58)/AE59)*20),0.5)","v":0},null,null,null,null,null,null,null,null,null,null,null,null,null,null,null,null,"S11B",null,{"$f":"IF(H50=\"Acquis\",AD52,\"\")","v":""},null,null,null,null,"S11B",null,100]
[null,"Note partie 2 sur 20",null,{"$f":"IF(M45=O45,IF(OR(D45=\"A saisir\",D46=\"A saisir\",D47=\"A saisir\",D48=\"A saisir\",D49=\"A saisir\",D50=\"A saisir\",D51=\"A saisir\"),\"Résultats à saisir\",CEILING(((SUM(X46:X58)/AE59)*20),0.5)),\"\")","v":"Résultats à saisir"},null,null,null,null,null,null,null,null,null,null,null,null,null,null,null,null,"S12",null,null,{"$f":"IF(D50=\"Acquis\",AE53,\"\")","v":""},{"$f":"IF(M51=\"Acquis\",AF53,\"\")","v":""},null,null,"S12",null,null,128,128]
[null,null,null,null,null,null,null,null,null,null,null,null,null,null,null,null,null,null,null,null,"S13",null,null,null,null,{"$f":"IF(P51=\"Acquis\",AG54,\"\")","v":""},null,"S13",null,null,null,null,180]
[null,null,null,null,null,null,null,null,null,null,null,null,null,null,null,null,null,null,null,null,"S14",null,null,null,null,{"$f":"IF(P52=\"Acquis\",AG55,\"\")","v":""},null,"S14",null,null,null,null,24]
[null,null,null,null,"Note des deux parties sur 20 :",null,{"$f":"(SUM(D53,G40,D53)/3)","v":0},null,"/20",null,null,null,null,null,null,null,null,null,null,null,"S15",{"$f":"IF(E51=\"Acquis\",AC56,\"\")","v":""},null,{"$f":"IF(D51=\"Acquis\",AE56,\"\")","v":""},null,null,null,"S15",92,null,92]
[null,null,null,null,"Note des deux parties sur 20 proposée au jury* :",null,null,null,"/20",null,null,null,null,null,null,null,null,null,null,null,"S16",null,{"$f":"IF(H51=\"Acquis\",AD57,\"\")","v":""},null,{"$f":"IF(M52=\"Acquis\",AF57,\"\")","v":""},null,null,"S16",null,72,null,72]
[null,null,null,null,null,null,null,null,null,null,null,null,null,null,null,null,null,null,null,null,"S17A",{"$f":"IF(E52=\"Acquis\",AC58,\"\")","v":""},{"$f":"IF(K52=\"Acquis\",AD58,\"\")","v":""},null,null,null,null,"S17A",32,32]
["* La note proposée, arrondie au demi point, est décidée par les évaluateurs à partir de la note brute qui peut être modulée de + 0 à + 1 point en fonction de la réactivité du candidat ou de tout autre attitude professionnelle positive observée.",null,null,null,null,null,null,null,null,null,null,null,null,null,null,null,null,null,null,null,null,null,null,null,null,null,null,"Total QCM",{"$f":"SUM(AC46:AC58)","v":472},{"$f":"SUM(AD46:AD58)","v":392},{"$f":"SUM(AE46:AE58)","v":428},{"$f":"SUM(AF46:AF58)","v":388},{"$f":"SUM(AG46:AG58)","v":424}]
[null,"Appréciation globale"]
[]
[]
[null,"Noms des Correcteurs",null,"Signatures",null,"Date"]
[]
[]
[]
[null,null,null,null,null,{"$f":"TODAY()","v":"2015-01-07"}]

{"sheet":"MC E1 HMP","index":20,"n_rows":67,"n_cols":33,"rows_kept":67,"cut":false,"hidden":true,"merged":[[65,1,65,2],[66,1,66,2],[66,5,66,8],[40,0,40,9],[58,0,58,9],[59,1,59,2],[62,1,62,2],[62,5,62,8],[63,1,63,2],[63,5,63,8],[64,1,64,2],[52,1,52,2],[55,6,55,7],[55,8,55,9],[56,6,56,7],[56,8,56,9],[43,11,43,12],[43,14,43,15],[43,20,43,25],[43,28,43,32],[44,1,44,2],[42,0,52,0],[42,1,42,3],[42,5,42,6],[43,1,43,2],[43,8,43,9],[51,1,51,2],[45,1,45,2],[46,1,46,2],[47,1,47,2],[48,1,48,2],[49,1,49,2],[50,1,50,2],[35,1,35,2],[37,6,37,9],[38,6,38,9],[39,6,39,7],[39,8,39,9],[10,1,10,8],[11,1,11,8],[12,1,18,8],[19,10,19,11],[20,1,20,2],[21,0,36,0],[21,1,21,8],[22,1,22,2],[23,1,23,2],[24,1,24,2],[36,1,36,2],[25,1,25,2],[26,1,26,2],[27,1,27,2],[28,1,28,8],[29,1,29,2],[30,1,30,2],[31,1,31,2],[32,1,32,2],[33,1,33,2],[34,1,34,2],[7,1,7,2],[7,3,7,8],[8,1,8,2],[8,3,8,8],[9,1,9,2],[9,3,9,8],[4,1,4,2],[4,3,4,8],[5,1,5,2],[5,3,5,8],[6,1,6,2],[6,3,6,8],[3,1,3,2],[3,3,3,8],[0,1,0,8],[1,1,1,2],[1,3,1,8],[2,1,2,2],[2,3,2,8]]}
[null,"Identifications"]
[null,"Diplôme :",null,"Mention Complémentaire « Aéronautique»"]
[null,"Option :  ",null,{"$f":"CONCATENATE(Identification!B11)","v":"Sélectionner une option à partir de la liste déroulante"}]
[null,"Epreuve :",null,"Épreuve E1 : ETUDE DE SITUATIONS DE MAINTENANCE D'AERONEFS"]
[null,"Établissement :",null,{"$f":"CONCATENATE(Identification!B4)","v":""}]
[null,"Session : ",null,{"$f":"CONCATENATE(Identification!B12)","v":""}]
[null,"Nom du candidat :",null,{"$f":"CONCATENATE(Identification!B5)","v":""}]
[null,"Prénom du candidat :",null,{"$f":"CONCATENATE(Identification!B6)","v":""}]
[null,"Date de l'évaluation :"]
[null,"Lieu de l'évaluation (entreprise ou centre de formation) :"]
[]
[null,"Description sommaire du travail demandé (le sujet complet doit être joint à cette fiche) :"]
[]
[]
[]
[]
[]
[]
[]
[]
[null,"Compétences évaluées",null,"Indicateurs de performance                                      évaluation","non",0,0.33333333333333331,0.66666666666666663,"3/3",null,null,"Poids de la compétence","Notes","Éval","Notes"]
["Partie 1 - Coef. 1","C01 - Exploiter les informations relatives à une situation de maintenance d’un aéronef",null,null,null,null,null,null,null,null,null,0.4,{"$f":"(SUM(M23:M28))","v":0},{"$f":"SUM(N23:N28)","v":7},{"$f":"SUM(O23:O28)","v":0},null,null,{"$f":"SUM(R23:R37)","v":0},{"$f":"IF(R22=14,1,0)","v":0}]
[null,"-      Utiliser tous les types de sources d’information.",null,"-      Utilisation conforme de tous les types de sources d’information.",null,null,null,null,null,{"$f":"IF(Q23>1,\"◄\",(IF(Q23<1,\"◄\",\"\")))","v":"◄"},null,1,{"$f":"SUM(O23)*2","v":0},{"$f":"IF(E23<>\"\",0,L23)","v":1},{"$f":"(IF(G23<>\"\",1/3,0)+IF(H23<>\"\",2/3,0)+IF(I23<>\"\",1,0))*L$22*10*N23/SUM(N$23:N$28)","v":0},null,{"$f":"COUNTA(E23:I23)","v":0},{"$f":"COUNTBLANK(J23)","v":0}]
[null,"-      Identifier les informations pertinentes au regard de la situation.",null,"-      Exhaustivité de la sélection des informations nécessaires.",null,null,null,null,null,"◄",null,1,0,1,0,null,0,0]
[null,"-      Contrôler l’applicabilité des informations identifiées.",null,"-      Effectivité du contrôle de l’applicabilité de la documentation.",null,null,null,null,null,"◄",null,1,0,1,0,null,0,0]
[null,"-      Décoder des informations orales ou écrites y compris en langue anglaise.",null,"-      Exactitude du décodage des informations.",null,null,null,null,null,"◄",null,1,0,1,0,null,0,0]
[null,"-      Déduire, à partir des informations, la nature de la situation de maintenance à traiter.",null,"-      Exactitude de l’identification de la situation de maintenance à traiter.",null,null,null,null,null,"◄",null,1,0,1,0,null,0,0]
[null,"-      Déterminer les conditions de la remise en service.",null,"-      Exactitude et exhaustivité des conditions de la remise en service.",null,null,null,null,null,"◄",null,2,0,2,0,null,0,0]
[null,"C02 - Organiser une situation de maintenance d’aéronef ",null,null,null,null,null,null,null,null,null,0.6,{"$f":"(SUM(M30:M37))","v":0},{"$f":"SUM(N30:N37)","v":9},{"$f":"SUM(O30:O37)","v":0}]
[null," -      Identifier la liste des opérations de maintenance à conduire sur un aéronef à partir d'un bon de commande et/ou d'un compte-rendu de vol",null,"-      Identification exacte des opérations de maintenance à conduire.",null,null,null,null,null,{"$f":"IF(Q30>1,\"◄\",(IF(Q30<1,\"◄\",\"\")))","v":"◄"},null,1,{"$f":"SUM(O30)*2","v":0},{"$f":"IF(E30<>\"\",0,L30)","v":1},{"$f":"(IF(G30<>\"\",1/3,0)+IF(H30<>\"\",2/3,0)+IF(I30<>\"\",1,0))*L$29*10*N30/SUM(N$30:N$37)","v":0},null,{"$f":"COUNTA(E30:I30)","v":0},{"$f":"COUNTBLANK(J30)","v":0}]
[null,"-      Identifier ou déterminer les temps d’intervention.",null,"-      Identification juste ou détermination crédible des temps d’intervention au regard du contexte (lieu, délais, météorologie, qualifications, plan de charge des moyens …).",null,null,null,null,null,"◄",null,1,0,1,{"$f":"(IF(G31<>\"\",1/3,0)+IF(H31<>\"\",2/3,0)+IF(I31<>\"\",1,0))*L$29*10*N31/SUM(N$30:N$37)","v":0},null,0,0]
[null,"-      Proposer la liste des opérations reportables compte tenu des contraintes technico-économiques et réglementaires.",null,"-      Proposition argumentée des opérations reportables en fonction des contraintes.",null,null,null,null,null,"◄",null,1,0,1,0,null,0,0]
[null,"-      Identifier les habilitations nécessaires à la situation de maintenance.",null,"-      Identification exacte des habilitations nécessaires.",null,null,null,null,null,"◄",null,1,0,1,0,null,0,0]
[null,"-      Identifier la disponibilité des moyens humains, matériels, des pièces de rechange et des consommables nécessaires à l’intervention.",null,"-      Identification exacte de la disponibilité des moyens humains, matériels, des pièces de rechange et des consommables.",null,null,null,null,null,"◄",null,1,0,1,0,null,0,0]
[null,"-      Identifier les procédures concernées du plan qualité et du plan sécurité de l’entreprise.",null,"-      Identification exacte des procédures concernées du plan qualité et du plan de sécurité de l’entreprise.",null,null,null,null,null,"◄",null,1,0,1,0,null,0,0]
[null,"-      Ordonnancer les interventions.",null,"-      Pertinence de l’ordonnancement des différentes interventions.",null,null,null,null,null,"◄",null,2,0,2,0,null,0,0]
[null,"-      Coordonner les interventions.",null,"-      Coordination efficiente des différentes interventions au regard des contraintes.",null,null,null,null,null,"◄",null,1,0,1,0,null,0,0]
[null,null,null,null,"Taux d'indicateurs pour C01",null,{"$f":"N22/SUM(L23:L28)","v":1}]
[null,null,null,null,"Taux d'indicateurs pour C02",null,{"$f":"N29/SUM(L30:L37)","v":1}]
[null,null,null,null,"Note brute obtenue par calcul automatique (Attention si le taux de couverture des compétences est inférieur à 60%, la note n'est pas recevable) :",null,{"$f":"IF(OR(S22=0,G38<0.6,G39<0.6),\"!\",(M22+M29))","v":"!"},null," /20"]
["ATTENTION, si le symbole ◄ apparait dans cette colonne c'est qu'il y a plus d'une valeur donnée à l'indicateur, il faut alors choisir laquelle retenir, ou alors que l'indicateur est coché \"non évalué\""]
[]
["Partie 2 - Coef. 2",{"$f":"CONCATENATE(Identification!B11)","v":"Sélectionner une option à partir de la liste déroulante"}]
[null,"Savoirs",null,"Résultats",null,null,null,null,null,null,null,null,null,null,null,null,null,null,null,null,"Résultats pondérés",null,null,null,null,null,null,null,"Nombre de QCM par module"]
[null,"S5",null,"A saisir",null,null,null,null,null,null,null,null,null,null,null,null,null,null,null,null,"SAVOIR","AMT","AMP","HMT","HMP","AVI",null,"SAVOIR","AMT","AMP","HMT","HMP","AVI"]
[null,"S7A",null,"A saisir",null,null,null,null,null,null,null,null,null,null,null,null,null,null,null,null,"S5",null,null,null,{"$f":"IF(D45=\"Acquis\",AF46,\"\")","v":""},{"$f":"IF(P46=\"Acquis\",AG46,\"\")","v":""},null,"S5",40,20,40,20,72]
[null,"S7A QD",null,"A saisir",null,null,null,null,null,null,null,null,null,null,null,null,null,null,null,null,"S7A",null,null,null,{"$f":"IF(D46=\"Acquis\",AF47,\"\")","v":""},{"$f":"IF(P47=\"Acquis\",AG47,\"\")","v":""},null,"S7A",80,80,80,80,60]
[null,"S10",null,"A saisir",null,null,null,null,null,null,null,null,null,null,null,null,null,null,null,null,"S7A QD",null,null,null,{"$f":"IF(D47=\"Acquis\",AF48,\"\")","v":""},{"$f":"IF(P48=\"Acquis\",AG48,\"\")","v":""},null,"S7A QD",32,32,32,32,32]
[null,"S10 QD",null,"A saisir",null,null,null,null,null,null,null,null,null,null,null,null,null,null,null,null,"S10",null,null,null,{"$f":"IF(D48=\"Acquis\",AF49,\"\")","v":""},{"$f":"IF(P49=\"Acquis\",AG49,\"\")","v":""},null,"S10",40,40,40,40,40]
[null,"S12",null,"A saisir",null,null,null,null,null,null,null,null,null,null,null,null,null,null,null,null,"S10 QD",null,null,null,{"$f":"IF(D49=\"Acquis\",AF50,\"\")","v":""},{"$f":"IF(P50=\"Acquis\",AG50,\"\")","v":""},null,"S10 QD",16,16,16,16,16]
[null,"S15",null,"A saisir",null,null,null,null,null,null,null,null,null,null,null,null,null,null,null,null,"S11A",null,null,null,null,null,null,"S11A",140]
[null,"Note Partielle",null,{"$f":"CEILING(((SUM(Y46:Y58)/AF59)*20),0.5)","v":0},null,null,null,null,null,null,null,null,null,null,null,null,null,null,null,null,"S11B",null,null,null,null,null,null,"S11B",null,100]
[null,"Note partie 2 sur 20",null,{"$f":"IF(M45=O45,IF(OR(D45=\"A saisir\",D46=\"A saisir\",D47=\"A saisir\",D48=\"A saisir\",D49=\"A saisir\",D50=\"A saisir\",D51=\"A saisir\"),\"Résultats à saisir\",CEILING(((SUM(Y46:Y58)/AF59)*20),0.5)),\"\")","v":"Résultats à saisir"},null,null,null,null,null,null,null,null,null,null,null,null,null,null,null,null,"S12",null,null,null,{"$f":"IF(D50=\"Acquis\",AF53,\"\")","v":""},null,null,"S12",null,null,128,128]
[null,null,null,null,null,null,null,null,null,null,null,null,null,null,null,null,null,null,null,null,"S13",null,null,null,null,{"$f":"IF(P51=\"Acquis\",AG54,\"\")","v":""},null,"S13",null,null,null,null,180]
[null,null,null,null,null,null,null,null,null,null,null,null,null,null,null,null,null,null,null,null,"S14",null,null,null,null,{"$f":"IF(P52=\"Acquis\",AG55,\"\")","v":""},null,"S14",null,null,null,null,24]
[null,null,null,null,"Note des deux parties sur 20 :",null,{"$f":"(SUM(D53,G40,D53)/3)","v":0},null,"/20",null,null,null,null,null,null,null,null,null,null,null,"S15",null,null,null,null,null,null,"S15",92,null,92]
[null,null,null,null,"Note des deux parties sur 20 proposée au jury* :",null,null,null,"/20",null,null,null,null,null,null,null,null,null,null,null,"S16",null,null,null,{"$f":"IF(D51=\"Acquis\",AF57,\"\")","v":""},null,null,"S16",null,72,null,72]
[null,null,null,null,null,null,null,null,null,null,null,null,null,null,null,null,null,null,null,null,"S17A",null,null,null,null,null,null,"S17A",32,32]
["* La note proposée, arrondie au demi point, est décidée par les évaluateurs à partir de la note brute qui peut être modulée de + 0 à + 1 point en fonction de la réactivité du candidat ou de tout autre attitude professionnelle positive observée.",null,null,null,null,null,null,null,null,null,null,null,null,null,null,null,null,null,null,null,null,null,null,null,null,null,null,"Total QCM",{"$f":"SUM(AC46:AC58)","v":472},{"$f":"SUM(AD46:AD58)","v":392},{"$f":"SUM(AE46:AE58)","v":428},{"$f":"SUM(AF46:AF58)","v":388},{"$f":"SUM(AG46:AG58)","v":424}]
[null,"Appréciation globale"]
[]
[]
[null,"Noms des Correcteurs",null,"Signatures",null,"Date"]
[]
[]
[]
[null,null,null,null,null,{"$f":"TODAY()","v":"2015-01-07"}]

{"sheet":"MC E1 AVI","index":21,"n_rows":67,"n_cols":33,"rows_kept":67,"cut":false,"hidden":true,"merged":[[65,1,65,2],[66,1,66,2],[66,5,66,8],[40,0,40,9],[58,0,58,9],[59,1,59,2],[62,1,62,2],[62,5,62,8],[63,1,63,2],[63,5,63,8],[64,1,64,2],[52,1,52,2],[55,6,55,7],[55,8,55,9],[56,6,56,7],[56,8,56,9],[43,11,43,12],[43,14,43,15],[43,20,43,25],[43,28,43,32],[44,1,44,2],[42,0,52,0],[42,1,42,3],[42,5,42,6],[43,1,43,2],[43,8,43,9],[51,1,51,2],[45,1,45,2],[46,1,46,2],[47,1,47,2],[48,1,48,2],[49,1,49,2],[50,1,50,2],[35,1,35,2],[37,6,37,9],[38,6,38,9],[39,6,39,7],[39,8,39,9],[10,1,10,8],[11,1,11,8],[12,1,18,8],[19,10,19,11],[20,1,20,2],[21,0,36,0],[21,1,21,8],[22,1,22,2],[23,1,23,2],[24,1,24,2],[36,1,36,2],[25,1,25,2],[26,1,26,2],[27,1,27,2],[28,1,28,8],[29,1,29,2],[30,1,30,2],[31,1,31,2],[32,1,32,2],[33,1,33,2],[34,1,34,2],[7,1,7,2],[7,3,7,8],[8,1,8,2],[8,3,8,8],[9,1,9,2],[9,3,9,8],[4,1,4,2],[4,3,4,8],[5,1,5,2],[5,3,5,8],[6,1,6,2],[6,3,6,8],[3,1,3,2],[3,3,3,8],[0,1,0,8],[1,1,1,2],[1,3,1,8],[2,1,2,2],[2,3,2,8]]}
[null,"Identifications"]
[null,"Diplôme :",null,"Mention Complémentaire « Aéronautique»"]
[null,"Option :  ",null,{"$f":"CONCATENATE(Identification!B11)","v":"Sélectionner une option à partir de la liste déroulante"}]
[null,"Epreuve :",null,"Épreuve E1 : ETUDE DE SITUATIONS DE MAINTENANCE D'AERONEFS"]
[null,"Établissement :",null,{"$f":"CONCATENATE(Identification!B4)","v":""}]
[null,"Session : ",null,{"$f":"CONCATENATE(Identification!B12)","v":""}]
[null,"Nom du candidat :",null,{"$f":"CONCATENATE(Identification!B5)","v":""}]
[null,"Prénom du candidat :",null,{"$f":"CONCATENATE(Identification!B6)","v":""}]
[null,"Date de l'évaluation :"]
[null,"Lieu de l'évaluation (entreprise ou centre de formation) :"]
[]
[null,"Description sommaire du travail demandé (le sujet complet doit être joint à cette fiche) :"]
[]
[]
[]
[]
[]
[]
[]
[]
[null,"Compétences évaluées",null,"Indicateurs de performance                                      évaluation","non",0,0.33333333333333331,0.66666666666666663,"3/3",null,null,"Poids de la compétence","Notes","Éval","Notes"]
["Partie 1 - Coef. 1","C01 - Exploiter les informations relatives à une situation de maintenance d’un aéronef",null,null,null,null,null,null,null,null,null,0.4,{"$f":"(SUM(M23:M28))","v":0},{"$f":"SUM(N23:N28)","v":7},{"$f":"SUM(O23:O28)","v":0},null,null,{"$f":"SUM(R23:R37)","v":0},{"$f":"IF(R22=14,1,0)","v":0}]
[null,"-      Utiliser tous les types de sources d’information.",null,"-      Utilisation conforme de tous les types de sources d’information.",null,null,null,null,null,{"$f":"IF(Q23>1,\"◄\",(IF(Q23<1,\"◄\",\"\")))","v":"◄"},null,1,{"$f":"SUM(O23)*2","v":0},{"$f":"IF(E23<>\"\",0,L23)","v":1},{"$f":"(IF(G23<>\"\",1/3,0)+IF(H23<>\"\",2/3,0)+IF(I23<>\"\",1,0))*L$22*10*N23/SUM(N$23:N$28)","v":0},null,{"$f":"COUNTA(E23:I23)","v":0},{"$f":"COUNTBLANK(J23)","v":0}]
[null,"-      Identifier les informations pertinentes au regard de la situation.",null,"-      Exhaustivité de la sélection des informations nécessaires.",null,null,null,null,null,"◄",null,1,0,1,0,null,0,0]
[null,"-      Contrôler l’applicabilité des informations identifiées.",null,"-      Effectivité du contrôle de l’applicabilité de la documentation.",null,null,null,null,null,"◄",null,1,0,1,0,null,0,0]
[null,"-      Décoder des informations orales ou écrites y compris en langue anglaise.",null,"-      Exactitude du décodage des informations.",null,null,null,null,null,"◄",null,1,0,1,0,null,0,0]
[null,"-      Déduire, à partir des informations, la nature de la situation de maintenance à traiter.",null,"-      Exactitude de l’identification de la situation de maintenance à traiter.",null,null,null,null,null,"◄",null,1,0,1,0,null,0,0]
[null,"-      Déterminer les conditions de la remise en service.",null,"-      Exactitude et exhaustivité des conditions de la remise en service.",null,null,null,null,null,"◄",null,2,0,2,0,null,0,0]
[null,"C02 - Organiser une situation de maintenance d’aéronef ",null,null,null,null,null,null,null,null,null,0.6,{"$f":"(SUM(M30:M37))","v":0},{"$f":"SUM(N30:N37)","v":9},{"$f":"SUM(O30:O37)","v":0}]
[null," -      Identifier la liste des opérations de maintenance à conduire sur un aéronef à partir d'un bon de commande et/ou d'un compte-rendu de vol",null,"-      Identification exacte des opérations de maintenance à conduire.",null,null,null,null,null,{"$f":"IF(Q30>1,\"◄\",(IF(Q30<1,\"◄\",\"\")))","v":"◄"},null,1,{"$f":"SUM(O30)*2","v":0},{"$f":"IF(E30<>\"\",0,L30)","v":1},{"$f":"(IF(G30<>\"\",1/3,0)+IF(H30<>\"\",2/3,0)+IF(I30<>\"\",1,0))*L$29*10*N30/SUM(N$30:N$37)","v":0},null,{"$f":"COUNTA(E30:I30)","v":0},{"$f":"COUNTBLANK(J30)","v":0}]
[null,"-      Identifier ou déterminer les temps d’intervention.",null,"-      Identification juste ou détermination crédible des temps d’intervention au regard du contexte (lieu, délais, météorologie, qualifications, plan de charge des moyens …).",null,null,null,null,null,"◄",null,1,0,1,{"$f":"(IF(G31<>\"\",1/3,0)+IF(H31<>\"\",2/3,0)+IF(I31<>\"\",1,0))*L$29*10*N31/SUM(N$30:N$37)","v":0},null,0,0]
[null,"-      Proposer la liste des opérations reportables compte tenu des contraintes technico-économiques et réglementaires.",null,"-      Proposition argumentée des opérations reportables en fonction des contraintes.",null,null,null,null,null,"◄",null,1,0,1,0,null,0,0]
[null,"-      Identifier les habilitations nécessaires à la situation de maintenance.",null,"-      Identification exacte des habilitations nécessaires.",null,null,null,null,null,"◄",null,1,0,1,0,null,0,0]
[null,"-      Identifier la disponibilité des moyens humains, matériels, des pièces de rechange et des consommables nécessaires à l’intervention.",null,"-      Identification exacte de la disponibilité des moyens humains, matériels, des pièces de rechange et des consommables.",null,null,null,null,null,"◄",null,1,0,1,0,null,0,0]
[null,"-      Identifier les procédures concernées du plan qualité et du plan sécurité de l’entreprise.",null,"-      Identification exacte des procédures concernées du plan qualité et du plan de sécurité de l’entreprise.",null,null,null,null,null,"◄",null,1,0,1,0,null,0,0]
[null,"-      Ordonnancer les interventions.",null,"-      Pertinence de l’ordonnancement des différentes interventions.",null,null,null,null,null,"◄",null,2,0,2,0,null,0,0]
[null,"-      Coordonner les interventions.",null,"-      Coordination efficiente des différentes interventions au regard des contraintes.",null,null,null,null,null,"◄",null,1,0,1,0,null,0,0]
[null,null,null,null,"Taux d'indicateurs pour C01",null,{"$f":"N22/SUM(L23:L28)","v":1}]
[null,null,null,null,"Taux d'indicateurs pour C02",null,{"$f":"N29/SUM(L30:L37)","v":1}]
[null,null,null,null,"Note brute obtenue par calcul automatique (Attention si le taux de couverture des compétences est inférieur à 60%, la note n'est pas recevable) :",null,{"$f":"IF(OR(S22=0,G38<0.6,G39<0.6),\"!\",(M22+M29))","v":"!"},null," /20"]
["ATTENTION, si le symbole ◄ apparait dans cette colonne c'est qu'il y a plus d'une valeur donnée à l'indicateur, il faut alors choisir laquelle retenir, ou alors que l'indicateur est coché \"non évalué\""]
[]
["Partie 2 - Coef. 2",{"$f":"CONCATENATE(Identification!B11)","v":"Sélectionner une option à partir de la liste déroulante"}]
[null,"Savoirs",null,"Résultats",null,null,null,null,null,null,null,null,null,null,null,null,null,null,null,null,"Résultats pondérés",null,null,null,null,null,null,null,"Nombre de QCM par module"]
[null,"S5",null,"A saisir",null,null,null,null,null,null,null,null,null,null,null,null,null,null,null,null,"SAVOIR","AMT","AMP","HMT","HMP","AVI",null,"SAVOIR","AMT","AMP","HMT","HMP","AVI"]
[null,"S7A",null,"A saisir",null,null,null,null,null,null,null,null,null,null,null,null,null,null,null,null,"S5",null,null,null,{"$f":"IF(D45=\"Acquis\",AF46,\"\")","v":""},{"$f":"IF(D45=\"Acquis\",AG46,\"\")","v":""},null,"S5",40,20,40,20,72]
[null,"S7A QD",null,"A saisir",null,null,null,null,null,null,null,null,null,null,null,null,null,null,null,null,"S7A",null,null,null,{"$f":"IF(D46=\"Acquis\",AF47,\"\")","v":""},{"$f":"IF(D46=\"Acquis\",AG47,\"\")","v":""},null,"S7A",80,80,80,80,60]
[null,"S10",null,"A saisir",null,null,null,null,null,null,null,null,null,null,null,null,null,null,null,null,"S7A QD",null,null,null,{"$f":"IF(D47=\"Acquis\",AF48,\"\")","v":""},{"$f":"IF(D47=\"Acquis\",AG48,\"\")","v":""},null,"S7A QD",32,32,32,32,32]
[null,"S10 QD",null,"A saisir",null,null,null,null,null,null,null,null,null,null,null,null,null,null,null,null,"S10",null,null,null,{"$f":"IF(D48=\"Acquis\",AF49,\"\")","v":""},{"$f":"IF(D48=\"Acquis\",AG49,\"\")","v":""},null,"S10",40,40,40,40,40]
[null,"S13",null,"A saisir",null,null,null,null,null,null,null,null,null,null,null,null,null,null,null,null,"S10 QD",null,null,null,{"$f":"IF(D49=\"Acquis\",AF50,\"\")","v":""},{"$f":"IF(D49=\"Acquis\",AG50,\"\")","v":""},null,"S10 QD",16,16,16,16,16]
[null,"S14",null,"A saisir",null,null,null,null,null,null,null,null,null,null,null,null,null,null,null,null,"S11A",null,null,null,null,null,null,"S11A",140]
[null,"Note Partielle",null,{"$f":"CEILING(((SUM(Z46:Z58)/AG59)*20),0.5)","v":0},null,null,null,null,null,null,null,null,null,null,null,null,null,null,null,null,"S11B",null,null,null,null,null,null,"S11B",null,100]
[null,"Note partie 2 sur 20",null,{"$f":"IF(M45=O45,IF(OR(D45=\"A saisir\",D46=\"A saisir\",D47=\"A saisir\",D48=\"A saisir\",D49=\"A saisir\",D50=\"A saisir\",D51=\"A saisir\"),\"Résultats à saisir\",CEILING(((SUM(Z46:Z58)/AG59)*20),0.5)),\"\")","v":"Résultats à saisir"},null,null,null,null,null,null,null,null,null,null,null,null,null,null,null,null,"S12",null,null,null,{"$f":"IF(D50=\"Acquis\",AF53,\"\")","v":""},null,null,"S12",null,null,128,128]
[null,null,null,null,null,null,null,null,null,null,null,null,null,null,null,null,null,null,null,null,"S13",null,null,null,null,{"$f":"IF(D50=\"Acquis\",AG54,\"\")","v":""},null,"S13",null,null,null,null,180]
[null,null,null,null,null,null,null,null,null,null,null,null,null,null,null,null,null,null,null,null,"S14",null,null,null,null,{"$f":"IF(D51=\"Acquis\",AG55,\"\")","v":""},null,"S14",null,null,null,null,24]
[null,null,null,null,"Note des deux parties sur 20 :",null,{"$f":"(SUM(D53,G40,D53)/3)","v":0},null,"/20",null,null,null,null,null,null,null,null,null,null,null,"S15",null,null,null,null,null,null,"S15",92,null,92]
[null,null,null,null,"Note des deux parties sur 20 proposée au jury* :",null,null,null,"/20",null,null,null,null,null,null,null,null,null,null,null,"S16",null,null,null,{"$f":"IF(D51=\"Acquis\",AF57,\"\")","v":""},null,null,"S16",null,72,null,72]
[null,null,null,null,null,null,null,null,null,null,null,null,null,null,null,null,null,null,null,null,"S17A",null,null,null,null,null,null,"S17A",32,32]
["* La note proposée, arrondie au demi point, est décidée par les évaluateurs à partir de la note brute qui peut être modulée de + 0 à + 1 point en fonction de la réactivité du candidat ou de tout autre attitude professionnelle positive observée.",null,null,null,null,null,null,null,null,null,null,null,null,null,null,null,null,null,null,null,null,null,null,null,null,null,null,"Total QCM",{"$f":"SUM(AC46:AC58)","v":472},{"$f":"SUM(AD46:AD58)","v":392},{"$f":"SUM(AE46:AE58)","v":428},{"$f":"SUM(AF46:AF58)","v":388},{"$f":"SUM(AG46:AG58)","v":424}]
[null,"Appréciation globale"]
[]
[]
[null,"Noms des Correcteurs",null,"Signatures",null,"Date"]
[]
[]
[]
[null,null,null,null,null,{"$f":"TODAY()","v":"2015-01-07"}]

{"sheet":"MC E2","index":22,"n_rows":56,"n_cols":18,"rows_kept":56,"cut":false,"hidden":true,"merged":[[42,9,45,9],[30,0,31,1],[29,0,29,7],[26,0,27,1],[32,11,33,11],[22,11,24,11],[25,0,25,1],[26,11,27,11],[34,11,36,11],[37,11,38,11],[28,0,28,1],[34,0,36,1],[37,0,38,1],[19,9,19,10],[0,0,0,7],[1,0,1,1],[1,2,1,7],[2,0,2,1],[2,2,2,7],[3,0,3,1],[3,2,3,7],[9,2,9,7],[4,2,4,7],[5,0,5,1],[5,2,5,7],[6,0,6,1],[6,2,6,7],[4,0,4,1],[10,0,10,7],[11,0,11,7],[12,0,18,7],[20,0,20,1],[21,0,21,7],[7,0,7,1],[7,2,7,7],[8,0,8,1],[8,2,8,7],[9,0,9,1],[49,0,49,7],[51,0,51,1],[51,4,51,7],[44,5,44,6],[43,7,43,8],[44,7,44,8],[45,0,45,8],[55,0,55,1],[55,4,55,7],[22,0,24,1],[53,0,53,1],[39,0,39,1],[40,0,40,1],[54,0,54,1],[48,0,48,1],[32,0,32,1],[33,0,33,1],[41,5,41,8],[52,0,52,1],[52,4,52,7],[48,2,48,7],[42,5,42,8],[43,5,43,6]]}
["Identifications"]
["Diplôme :",null,"Mention Complémentaire « Aéronautique»"]
["Option :  ",null,{"$f":"CONCATENATE(Identification!B11)","v":"Sélectionner une option à partir de la liste déroulante"}]
["Epreuve :",null,"Épreuve E2 : CONDUITE DE LA MAINTENANCE EN ENTREPRISE"]
["Établissement :",null,{"$f":"CONCATENATE(Identification!B4)","v":""}]
["Session : ",null,{"$f":"CONCATENATE(Identification!B12)","v":""}]
["Nom du candidat :",null,{"$f":"CONCATENATE(Identification!B5)","v":""}]
["Prénom du candidat :",null,{"$f":"CONCATENATE(Identification!B6)","v":""}]
["Date de l'évaluation :"]
["Lieu de l'évaluation (entreprise ou centre de formation) :"]
[]
["Description sommaire du travail demandé (le sujet complet doit être joint à cette fiche) :"]
[]
[]
[]
[]
[]
[]
[]
[]
["Compétences évaluées",null,"Indicateurs de performance                              évaluation","non",0,0.33333333333333331,0.66666666666666663,"3/3",null,null,"Poids de la compétence","Notes","Éval","Notes"]
["C06 - Communiquer des informations dans un contexte aéronautique",null,null,null,null,null,null,null,null,null,0.4,{"$f":"(SUM(L23:L29))","v":0},{"$f":"SUM(M23:M29)","v":7},{"$f":"SUM(N23:N29)","v":0},null,null,{"$f":"SUM(Q23:Q41)","v":0},{"$f":"IF(Q22=18,1,0)","v":0}]
["-      Transmettre des informations oralement, par écrit et par gestes.",null,"-      Choix correct du destinataire et du moment de la transmission des informations et/ou du message.",null,null,null,null,null,{"$f":"IF(P23>1,\"◄\",(IF(P23<1,\"◄\",\"\")))","v":"◄"},null,1,{"$f":"SUM(N23:N25)*2","v":0},{"$f":"IF(D23<>\"\",0,K23)","v":1},{"$f":"(IF(F23<>\"\",1/3,0)+IF(G23<>\"\",2/3,0)+IF(H23<>\"\",1,0))*K$22*10*M23/SUM(M$23:M$29)","v":0},null,{"$f":"COUNTA(D23:H23)","v":0},{"$f":"COUNTBLANK(I23)","v":0}]
[null,null,"-      Adéquation du langage utilisé à l’interlocuteur. (phraséologie adaptée au roulage d’un aéronef sur un aéroport, guidage d’un aéronef au sol, …).",null,null,null,null,null,"◄",null,1,null,1,0,null,0,0]
[null,null,"-      Efficience des échanges.",null,null,null,null,null,"◄",null,1,null,1,0,null,0,0]
["-      Décoder des informations orales, écrites et gestuelles (phraséologie aéronautique, sigles, signaux, gestes conventionnels …).",null,"-      Exactitude du décodage.",null,null,null,null,null,"◄",null,1,{"$f":"SUM(N26)*2","v":0},1,0,null,0,0]
["-      S’assurer de la compréhension par un tiers des informations transmises.",null,"-      Effectivité de la mesure de la compréhension des informations.",null,null,null,null,null,"◄",null,1,{"$f":"SUM(N27:N28)*2","v":0},1,0,null,0,0]
[null,null,"-      Fidélité de la reformulation.",null,null,null,null,null,"◄",null,1,null,1,0,null,0,0]
["-      Assurer la circulation des informations entre les intervenants concernés.",null,"-      Effectivité de la circulation des informations entre les intervenants.",null,null,null,null,null,"◄",null,1,{"$f":"SUM(N29)*2","v":0},1,0,null,0,0]
["C07 - Adopter et impulser des attitudes professionnelles répondant aux exigences de l’aéronautique",null,null,null,null,null,null,null,null,null,0.6,{"$f":"(SUM(L31:L41))","v":0},{"$f":"SUM(M31:M41)","v":12},{"$f":"SUM(N31:N41)","v":0}]
["-      Avoir une attitude responsable au regard des exigences de l’industrie et de l’exploitation des aéronefs (sécurité des vols, navigabilité des aéronefs, développement durable...). ",null,"-       Adéquation de son attitude à la situation. ",null,null,null,null,null,{"$f":"IF(P31>1,\"◄\",(IF(P31<1,\"◄\",\"\")))","v":"◄"},null,1,{"$f":"SUM(N31)*2","v":0},{"$f":"IF(D31<>\"\",0,K31)","v":1},{"$f":"(IF(F31<>\"\",1/3,0)+IF(G31<>\"\",2/3,0)+IF(H31<>\"\",1,0))*K$30*10*M31/SUM(M$31:M$41)","v":0},null,{"$f":"COUNTA(D31:H31)","v":0},{"$f":"COUNTBLANK(I31)","v":0}]
[null,null,"-       Exhaustivité des risques identifiés au regard d’une situation professionnelle donnée. ",null,null,null,null,null,"◄",null,1,{"$f":"SUM(N32)*2","v":0},1,{"$f":"(IF(F32<>\"\",1/3,0)+IF(G32<>\"\",2/3,0)+IF(H32<>\"\",1,0))*K$30*10*M32/SUM(M$31:M$41)","v":0},null,0,0]
["-      Limiter son domaine d’intervention à son champ de qualification et/ou d’habilitation. ",null,"-      Adéquation entre son champ de qualification et/ou d’habilitation et le domaine d’intervention.",null,null,null,null,null,"◄",null,1,{"$f":"SUM(N33:N34)*2","v":0},1,0,null,0,0]
["-      Respecter les procédures. ",null,"-      Rigueur dans l’application des procédures et des consignes (y compris celles relatives à la prévention de la santé et de l’environnement).",null,null,null,null,null,"◄",null,2,null,2,0,null,0,0]
["-      Appliquer la démarche qualité de l’entreprise et les règles liées aux facteurs humains et à la prévention des risques (anti-FOD, SGS …). ",null,"-      Compréhension et appropriation des indicateurs disponibles liés à la qualité, aux facteurs humains, à la sécurité, aux coûts, aux délais... ",null,null,null,null,null,"◄",null,1,{"$f":"SUM(N35:N37)*2","v":0},1,0,null,0,0]
[null,null,"-       Exhaustivité du repérage des écarts liés à son activité. ",null,null,null,null,null,"◄",null,1,null,1,0,null,0,0]
[null,null,"-       Effectivité et rigueur de la contribution au système qualité et au système de retour d’expérience de l’organisme. ",null,null,null,null,null,"◄",null,1,null,1,0,null,0,0]
["-      Contribuer à l’amélioration continue de la qualité et de la sécurité. ",null,"-      Identification crédible des marges de progrès. ",null,null,null,null,null,"◄",null,1,{"$f":"SUM(N38:N39)*2","v":0},1,0,null,0,0]
[null,null,"-       Propositions d’amélioration pertinentes. ",null,null,null,null,null,"◄",null,1,null,1,0,null,0,0]
["-      Relayer et promouvoir, au sein d’une équipe, les attitudes professionnelles adaptées aux exigences de l’aéronautique.",null,"-      Adhésion de l’équipe aux messages portés.",null,null,null,null,null,"◄",null,1,{"$f":"SUM(N40)*2","v":0},1,0,null,0,0]
["-      Assurer les relations avec le client.",null,"-      Pertinence et exploitabilité des conseils et suggestions aux clients.",null,null,null,null,null,"◄",null,1,{"$f":"SUM(N41)*2","v":0},1,0,null,0,0]
[null,null,null,"Taux d'indicateurs pour C06",null,{"$f":"M22/SUM(K23:K29)","v":1}]
[null,null,null,"Taux d'indicateurs pour C07",null,{"$f":"M30/SUM(K31:K41)","v":1}]
[null,null,null,"Note brute obtenue par calcul automatique (Attention si le taux de couverture des compétences est inférieur à 90%, le sujet n'est pas recevable) :",null,{"$f":"IF(OR(R22=0,F42<0.9,F43<0.9),\"!\",(L22+L30))","v":"!"},null," /20"]
[null,null,null,"Note sur 20 proposée au jury* :",null,null,null,"/20"]
["ATTENTION, si le symbole ◄ apparait dans cette colonne c'est qu'il y a plus d'une valeur donnée à l'indicateur, il faut alors choisir laquelle retenir, ou alors que l'indicateur est coché \"non évalué\""]
["* La note proposée, arrondie au demi point, est décidée par les évaluateurs à partir de la note brute qui peut être modulée de + 0 à + 1 point en fonction de la réactivité du candidat ou de tout autre attitude professionnelle positive observée."]
[]
["Appréciation globale",null,{"$f":"(IF(Q43>0,\"Attention erreur de saisie ! Voir ci-dessus\",\"\"))","v":""}]
[]
[]
["Noms des Correcteurs",null,"Signatures",null,"Date"]
[]
[]
[]
[null,null,null,null,{"$f":"TODAY()","v":"2015-01-07"}]

{"sheet":"MC E3","index":23,"n_rows":63,"n_cols":18,"rows_kept":63,"cut":false,"hidden":true,"merged":[[45,11,46,11],[47,5,47,8],[48,5,48,8],[49,5,49,8],[52,0,52,8],[50,5,50,6],[50,7,50,8],[51,5,51,6],[51,7,51,8],[25,11,26,11],[31,11,32,11],[33,11,34,11],[35,11,36,11],[38,11,39,11],[42,11,43,11],[0,0,0,7],[1,0,1,1],[1,2,1,7],[2,0,2,1],[2,2,2,7],[3,0,3,1],[3,2,3,7],[4,0,4,1],[4,2,4,7],[5,0,5,1],[5,2,5,7],[6,0,6,1],[6,2,6,7],[7,0,7,1],[7,2,7,7],[8,0,8,1],[8,2,8,7],[9,0,9,1],[9,2,9,7],[22,0,22,1],[27,0,27,1],[10,0,10,7],[11,0,11,7],[12,0,18,7],[19,9,19,10],[20,0,20,1],[21,0,21,7],[44,0,44,1],[45,0,46,1],[40,0,40,1],[41,0,41,7],[42,0,43,1],[38,0,39,1],[28,0,28,1],[29,0,29,7],[33,0,34,1],[35,0,36,1],[37,0,37,1],[62,0,62,1],[62,4,62,7],[23,0,23,1],[24,0,24,1],[25,0,26,1],[60,0,60,1],[61,0,61,1],[55,2,55,7],[56,0,56,7],[58,0,58,1],[58,4,58,7],[30,0,30,1],[31,0,32,1],[59,0,59,1],[59,4,59,7],[55,0,55,1]]}
["Identifications"]
["Diplôme :",null,"Mention Complémentaire « Aéronautique»"]
["Option :  ",null,{"$f":"CONCATENATE(Identification!B11)","v":"Sélectionner une option à partir de la liste déroulante"}]
["Epreuve :",null,"Épreuve E3 : INTERVENTIONS DE MAINTENANCE"]
["Établissement :",null,{"$f":"CONCATENATE(Identification!B4)","v":""}]
["Session : ",null,{"$f":"CONCATENATE(Identification!B12)","v":""}]
["Nom du candidat :",null,{"$f":"CONCATENATE(Identification!B5)","v":""}]
["Prénom du candidat :",null,{"$f":"CONCATENATE(Identification!B6)","v":""}]
["Date de l'évaluation :"]
["Lieu de l'évaluation (entreprise ou centre de formation) :"]
[]
["Description sommaire du travail demandé (le sujet complet doit être joint à cette fiche) :"]
[]
[]
[]
[]
[]
[]
[]
[]
["Compétences évaluées",null,"Indicateurs de performance                              évaluation","non",0,0.33333333333333331,0.66666666666666663,"3/3",null,null,"Poids de la compétence","Notes","Éval","Notes"]
["C03 - Configurer un aéronef en vue de sa maintenance ",null,null,null,null,null,null,null,null,null,0.2,{"$f":"(SUM(L23:L29))","v":0},{"$f":"SUM(M23:M29)","v":11},{"$f":"SUM(N23:N29)","v":0},null,null,{"$f":"SUM(Q23:Q47)","v":0},{"$f":"IF(Q22=23,1,0)","v":0}]
["-      Accueillir un aéronef en piste ou en zone d’entretien.",null,"-      Respect des procédures opératoires d’accueil de l’aéronef.",null,null,null,null,null,{"$f":"IF(P23>1,\"◄\",(IF(P23<1,\"◄\",\"\")))","v":"◄"},null,1,{"$f":"SUM(N23)*2","v":0},{"$f":"IF(D23<>\"\",0,K23)","v":1},{"$f":"(IF(F23<>\"\",1/3,0)+IF(G23<>\"\",2/3,0)+IF(H23<>\"\",1,0))*K$22*10*M23/SUM(M$23:M$29)","v":0},null,{"$f":"COUNTA(D23:H23)","v":0},{"$f":"COUNTBLANK(I23)","v":0}]
["-      Vérifier la configuration d’un aéronef lors de sa prise en charge.",null,"-      Vérification rigoureuse de la configuration de l’aéronef lors de sa prise en charge (documentaire, matérielle par une inspection visuelle et /ou des échanges avec des tiers).",null,null,null,null,null,{"$f":"IF(P24>1,\"◄\",(IF(P24<1,\"◄\",\"\")))","v":"◄"},null,2,{"$f":"SUM(N24)*2","v":0},{"$f":"IF(D24<>\"\",0,K24)","v":2},{"$f":"(IF(F24<>\"\",1/3,0)+IF(G24<>\"\",2/3,0)+IF(H24<>\"\",1,0))*K$22*10*M24/SUM(M$23:M$29)","v":0},null,{"$f":"COUNTA(D24:H24)","v":0},{"$f":"COUNTBLANK(I24)","v":0}]
["-      Coordonner les différents intervenants.",null,"-      Coordination efficiente des différents intervenants.",null,null,null,null,null,"◄",null,1,{"$f":"SUM(N25)*2","v":0},1,0,null,0,0]
["-      Assurer le déplacement d’un aéronef.",null,"-      Mise en œuvre adaptée des moyens de déplacement.",null,null,null,null,null,"◄",null,1,{"$f":"SUM(N26:N27)*2","v":0},1,0,null,0,0]
[null,null,"-      Déplacement correct de l’aéronef conformément aux procédures.",null,null,null,null,null,"◄",null,1,null,1,0,null,0,0]
["-      Préparer et mettre en sécurité l’environnement de la zone de maintenance.",null,"-      Préparation et mise en sécurité rigoureuses de l’environnement de la zone de maintenance. ",null,null,null,null,null,"◄",null,2,{"$f":"SUM(N28)*2","v":0},2,0,null,0,0]
["-      Mettre en sécurité un aéronef en vue de sa maintenance.",null,"-      Sécurisation effective de l’aéronef en vue de sa maintenance.",null,null,null,null,null,"◄",null,3,{"$f":"SUM(N29)*2","v":0},3,0,null,0,0]
["C04 - Réaliser la maintenance d’un aéronef",null,null,null,null,null,null,null,null,null,0.5,{"$f":"(SUM(L31:L41))","v":0},{"$f":"SUM(M31:M41)","v":16},{"$f":"SUM(N31:N41)","v":0}]
["-      Identifier les symptômes d’un dysfonctionnement ou d’une panne.",null,"-      Identification pertinente des symptômes liés à un éventuel dysfonctionnement.",null,null,null,null,null,{"$f":"IF(P31>1,\"◄\",(IF(P31<1,\"◄\",\"\")))","v":"◄"},null,2,{"$f":"SUM(N31)*2","v":0},{"$f":"IF(D31<>\"\",0,K31)","v":2},{"$f":"(IF(F31<>\"\",1/3,0)+IF(G31<>\"\",2/3,0)+IF(H31<>\"\",1,0))*K$30*10*M31/SUM(M$31:M$41)","v":0},null,{"$f":"COUNTA(D31:H31)","v":0},{"$f":"COUNTBLANK(I31)","v":0}]
["-      Réaliser un diagnostic.",null,"-      Méthode adaptée d’investigation de recherche des causes d’un dysfonctionnement ou d’une panne.",null,null,null,null,null,{"$f":"IF(P32>1,\"◄\",(IF(P32<1,\"◄\",\"\")))","v":"◄"},null,3,{"$f":"SUM(N32:N33)*2","v":0},{"$f":"IF(D32<>\"\",0,K32)","v":3},{"$f":"(IF(F32<>\"\",1/3,0)+IF(G32<>\"\",2/3,0)+IF(H32<>\"\",1,0))*K$30*10*M32/SUM(M$31:M$41)","v":0},null,{"$f":"COUNTA(D32:H32)","v":0},{"$f":"COUNTBLANK(I32)","v":0}]
[null,null,"-      Choix et mise en œuvre corrects des outils de diagnostic.",null,null,null,null,null,{"$f":"IF(P33>1,\"◄\",(IF(P33<1,\"◄\",\"\")))","v":"◄"},null,1,null,{"$f":"IF(D33<>\"\",0,K33)","v":1},0,null,{"$f":"COUNTA(D33:H33)","v":0},{"$f":"COUNTBLANK(I33)","v":0}]
["-      Réaliser un contrôle et une inspection.",null,"-      Mise en œuvre correcte des outils de contrôle et d’inspection. ",null,null,null,null,null,{"$f":"IF(P34>1,\"◄\",(IF(P34<1,\"◄\",\"\")))","v":"◄"},null,1,{"$f":"SUM(N34:N35)*2","v":0},{"$f":"IF(D34<>\"\",0,K34)","v":1},0,null,{"$f":"COUNTA(D34:H34)","v":0},{"$f":"COUNTBLANK(I34)","v":0}]
[null,null,"-      Identification correcte des non-conformités.",null,null,null,null,null,{"$f":"IF(P35>1,\"◄\",(IF(P35<1,\"◄\",\"\")))","v":"◄"},null,3,null,{"$f":"IF(D35<>\"\",0,K35)","v":3},0,null,{"$f":"COUNTA(D35:H35)","v":0},{"$f":"COUNTBLANK(I35)","v":0}]
["-      Préparer une intervention de maintenance.",null,"-      Respect des procédures de préparation des zones de travail.",null,null,null,null,null,{"$f":"IF(P36>1,\"◄\",(IF(P36<1,\"◄\",\"\")))","v":"◄"},null,1,{"$f":"SUM(N36:N37)*2","v":0},{"$f":"IF(D36<>\"\",0,K36)","v":1},0,null,{"$f":"COUNTA(D36:H36)","v":0},{"$f":"COUNTBLANK(I36)","v":0}]
[null,null,"-      Mobilisation des ressources documentaires, matérielles et humaines adaptées.",null,null,null,null,null,"◄",null,1,null,1,0,null,0,0]
["-      Mettre en œuvre les procédés d’exécution.",null,"-      Respect des procédures d’exécution et des techniques d’usage courant.",null,null,null,null,null,"◄",null,1,{"$f":"SUM(N38)*2","v":0},1,0,null,0,0]
["-      Réaliser des tests et des essais.",null,"-      Respect des procédures de mise en œuvre des moyens de tests et d’essais. ",null,null,null,null,null,"◄",null,1,{"$f":"SUM(N39:N40)*2","v":0},1,0,null,0,0]
[null,null,"-      Interprétation correcte des résultats.",null,null,null,null,null,"◄",null,1,null,1,0,null,0,0]
["-      Appliquer les règles de sécurité, de sûreté, d’hygiène, de protection des biens, des personnes et de l’environnement.",null,"-      Respect des règles d’hygiène, de sécurité et de protection des biens; des personnes et de l’environnement.",null,null,null,null,null,"◄",null,1,{"$f":"SUM(N41)*2","v":0},1,0,null,0,0]
["C05 - Prendre une décision de remise en service",null,null,null,null,null,null,null,null,null,0.3,{"$f":"(SUM(L43:L47))","v":0},{"$f":"SUM(M43:M47)","v":5},{"$f":"SUM(N43:N47)","v":0}]
["-      Hiérarchiser en fonction des contraintes les arguments en faveur ou défaveur d’une décision de remise en service.",null,"-      Hiérarchisation pertinente des arguments.",null,null,null,null,null,{"$f":"IF(P43>1,\"◄\",(IF(P43<1,\"◄\",\"\")))","v":"◄"},null,1,{"$f":"SUM(N43:N44)*2","v":0},{"$f":"IF(D43<>\"\",0,K43)","v":1},{"$f":"(IF(F43<>\"\",1/3,0)+IF(G43<>\"\",2/3,0)+IF(H43<>\"\",1,0))*K$42*10*M43/SUM(M$43:M$47)","v":0},null,{"$f":"COUNTA(D43:H43)","v":0},{"$f":"COUNTBLANK(I43)","v":0}]
[null,null,"-      Qualité de l’argumentaire au regard des contraintes.",null,null,null,null,null,{"$f":"IF(P44>1,\"◄\",(IF(P44<1,\"◄\",\"\")))","v":"◄"},null,1,null,1,{"$f":"(IF(F44<>\"\",1/3,0)+IF(G44<>\"\",2/3,0)+IF(H44<>\"\",1,0))*K$42*10*M44/SUM(M$43:M$47)","v":0},null,{"$f":"COUNTA(D44:H44)","v":0},{"$f":"COUNTBLANK(I44)","v":0}]
["-      Faire le choix d’effectuer une intervention de maintenance ou de remettre en service sous condition un aéronef, en tenant compte de la réglementation et des arguments contradictoires.",null,"-      Justesse du choix d’une option au regard de la réglementation et des arguments contradictoires.",null,null,null,null,null,{"$f":"IF(P45>1,\"◄\",(IF(P45<1,\"◄\",\"\")))","v":"◄"},null,1,{"$f":"SUM(N45)*2","v":0},{"$f":"IF(D45<>\"\",0,K45)","v":1},{"$f":"(IF(F45<>\"\",1/3,0)+IF(G45<>\"\",2/3,0)+IF(H45<>\"\",1,0))*K$42*10*M45/SUM(M$43:M$47)","v":0},null,{"$f":"COUNTA(D45:H45)","v":0},{"$f":"COUNTBLANK(I45)","v":0}]
["-      Formuler les conditions de remise en service.",null,"-      Clarté et univocité du message.",null,null,null,null,null,{"$f":"IF(P46>1,\"◄\",(IF(P46<1,\"◄\",\"\")))","v":"◄"},null,1,{"$f":"SUM(N46:N47)*2","v":0},{"$f":"IF(D46<>\"\",0,K46)","v":1},{"$f":"(IF(F46<>\"\",1/3,0)+IF(G46<>\"\",2/3,0)+IF(H46<>\"\",1,0))*K$42*10*M46/SUM(M$43:M$47)","v":0},null,{"$f":"COUNTA(D46:H46)","v":0},{"$f":"COUNTBLANK(I46)","v":0}]
[null,null,"-      Exhaustivité des conditions.",null,null,null,null,null,{"$f":"IF(P47>1,\"◄\",(IF(P47<1,\"◄\",\"\")))","v":"◄"},null,1,null,{"$f":"IF(D47<>\"\",0,K47)","v":1},{"$f":"(IF(F47<>\"\",1/3,0)+IF(G47<>\"\",2/3,0)+IF(H47<>\"\",1,0))*K$42*10*M47/SUM(M$43:M$47)","v":0},null,{"$f":"COUNTA(D47:H47)","v":0},{"$f":"COUNTBLANK(I47)","v":0}]
[null,null,null,"Taux d'indicateurs pour C03",null,{"$f":"M22/SUM(K23:K29)","v":1}]
[null,null,null,"Taux d'indicateurs pour C04",null,{"$f":"M30/SUM(K31:K41)","v":1}]
[null,null,null,"Taux d'indicateurs pour C05",null,{"$f":"M42/SUM(K43:K47)","v":1}]
[null,null,null,"Note brute obtenue par calcul automatique (Attention si le taux de couverture des compétences est inférieur à 75%, la note n'est pas recevable) :",null,{"$f":"IF(OR(R22=0,F48<0.75,F49<0.75,F50<0.75),\"!\",(L30+L42+L22))","v":"!"},null," /20"]
[null,null,null,"Note sur 20 proposée au jury* :",null,null,null,"/20"]
["ATTENTION, si le symbole ◄ apparait dans cette colonne c'est qu'il y a plus d'une valeur donnée à l'indicateur, il faut alors choisir laquelle retenir, ou alors que l'indicateur est coché \"non évalué\""]
["* La note proposée, arrondie au demi point, est décidée par les évaluateurs à partir de la note brute qui peut être modulée de + 0 à + 1 point en fonction de la réactivité du candidat ou de tout autre attitude professionnelle positive observée."]
[]
["Appréciation globale",null,{"$f":"(IF(Q52>0,\"Attention erreur de saisie ! Voir ci-dessus\",\"\"))","v":""}]
[]
[]
["Noms des Correcteurs",null,"Signatures",null,"Date"]
[]
[]
[]
[null,null,null,null,{"$f":"TODAY()","v":"2015-01-07"}]